Organisation Name,Organisation Code,Unique Ref No,Effective date,Directorate,Supplier Name,Payment Date,Net amount,Purpose of Spend,Procurement Classification (Higher level),Procurement Classification (Lower level),CAPITAL / REVENUE
Walsall Council,http://opendatacommunities.org/id/metropolitan-district-council/walsall ,WC157-1,31.12.2023,CHILDRENS,247 CARS (WILLENHALL) LIMITED,20/12/2023,384.25,1220-Professional Fees & Services,SUPPLIES & SERVICES,SERVICES,REVENUE
Walsall Council,http://opendatacommunities.org/id/metropolitan-district-council/walsall ,WC157-2,31.12.2023,CHILDRENS,247 CARS (WILLENHALL) LIMITED,20/12/2023,-445.73,1220-Professional Fees & Services,SUPPLIES & SERVICES,SERVICES,REVENUE
Walsall Council,http://opendatacommunities.org/id/metropolitan-district-council/walsall ,WC157-3,31.12.2023,CHILDRENS,247 CARS (WILLENHALL) LIMITED,20/12/2023,445.73,1220-Professional Fees & Services,SUPPLIES & SERVICES,SERVICES,REVENUE
Walsall Council,http://opendatacommunities.org/id/metropolitan-district-council/walsall ,WC157-4,31.12.2023,CHILDRENS,247 CARS (WILLENHALL) LIMITED,19/12/2023,"1,881.95",1220-Professional Fees & Services,SUPPLIES & SERVICES,SERVICES,REVENUE
Walsall Council,http://opendatacommunities.org/id/metropolitan-district-council/walsall ,WC157-5,31.12.2023,CHILDRENS,247 CARS (WILLENHALL) LIMITED,19/12/2023,287.66,1220-Professional Fees & Services,SUPPLIES & SERVICES,SERVICES,REVENUE
Walsall Council,http://opendatacommunities.org/id/metropolitan-district-council/walsall ,WC157-6,31.12.2023,CHILDRENS,247 CARS (WILLENHALL) LIMITED,04/12/2023,"1,827.75",6241-Hire of Vehicle with Driver,TRANSPORT,DIRECT TRANSPORT COSTS,REVENUE
Walsall Council,http://opendatacommunities.org/id/metropolitan-district-council/walsall ,WC157-7,31.12.2023,CHILDRENS,247 CARS (WILLENHALL) LIMITED,04/12/2023,"1,704.00",6241-Hire of Vehicle with Driver,TRANSPORT,DIRECT TRANSPORT COSTS,REVENUE
Walsall Council,http://opendatacommunities.org/id/metropolitan-district-council/walsall ,WC157-8,31.12.2023,CHILDRENS,247 CARS (WILLENHALL) LIMITED,04/12/2023,"1,704.00",6241-Hire of Vehicle with Driver,TRANSPORT,DIRECT TRANSPORT COSTS,REVENUE
Walsall Council,http://opendatacommunities.org/id/metropolitan-district-council/walsall ,WC157-9,31.12.2023,CHILDRENS,247 CARS (WILLENHALL) LIMITED,04/12/2023,"1,704.00",6241-Hire of Vehicle with Driver,TRANSPORT,DIRECT TRANSPORT COSTS,REVENUE
Walsall Council,http://opendatacommunities.org/id/metropolitan-district-council/walsall ,WC157-10,31.12.2023,CHILDRENS,247 CARS (WILLENHALL) LIMITED,04/12/2023,"1,118.70",6241-Hire of Vehicle with Driver,TRANSPORT,DIRECT TRANSPORT COSTS,REVENUE
Walsall Council,http://opendatacommunities.org/id/metropolitan-district-council/walsall ,WC157-11,31.12.2023,CHILDRENS,247 CARS (WILLENHALL) LIMITED,04/12/2023,720.90,6241-Hire of Vehicle with Driver,TRANSPORT,DIRECT TRANSPORT COSTS,REVENUE
Walsall Council,http://opendatacommunities.org/id/metropolitan-district-council/walsall ,WC157-12,31.12.2023,CHILDRENS,247 CARS (WILLENHALL) LIMITED,04/12/2023,"2,040.00",6241-Hire of Vehicle with Driver,TRANSPORT,DIRECT TRANSPORT COSTS,REVENUE
Walsall Council,http://opendatacommunities.org/id/metropolitan-district-council/walsall ,WC157-13,31.12.2023,CHILDRENS,247 CARS (WILLENHALL) LIMITED,04/12/2023,864.50,6241-Hire of Vehicle with Driver,TRANSPORT,DIRECT TRANSPORT COSTS,REVENUE
Walsall Council,http://opendatacommunities.org/id/metropolitan-district-council/walsall ,WC157-14,31.12.2023,CHILDRENS,247 CARS (WILLENHALL) LIMITED,04/12/2023,"1,704.00",6241-Hire of Vehicle with Driver,TRANSPORT,DIRECT TRANSPORT COSTS,REVENUE
Walsall Council,http://opendatacommunities.org/id/metropolitan-district-council/walsall ,WC157-15,31.12.2023,CHILDRENS,247 CARS (WILLENHALL) LIMITED,04/12/2023,"1,704.00",6241-Hire of Vehicle with Driver,TRANSPORT,DIRECT TRANSPORT COSTS,REVENUE
Walsall Council,http://opendatacommunities.org/id/metropolitan-district-council/walsall ,WC157-16,31.12.2023,CHILDRENS,247 CARS (WILLENHALL) LIMITED,04/12/2023,"1,704.00",6241-Hire of Vehicle with Driver,TRANSPORT,DIRECT TRANSPORT COSTS,REVENUE
Walsall Council,http://opendatacommunities.org/id/metropolitan-district-council/walsall ,WC157-17,31.12.2023,CHILDRENS,247 CARS (WILLENHALL) LIMITED,04/12/2023,"1,704.00",6241-Hire of Vehicle with Driver,TRANSPORT,DIRECT TRANSPORT COSTS,REVENUE
Walsall Council,http://opendatacommunities.org/id/metropolitan-district-council/walsall ,WC157-18,31.12.2023,CHILDRENS,247 CARS (WILLENHALL) LIMITED,04/12/2023,"1,200.00",6241-Hire of Vehicle with Driver,TRANSPORT,DIRECT TRANSPORT COSTS,REVENUE
Walsall Council,http://opendatacommunities.org/id/metropolitan-district-council/walsall ,WC157-19,31.12.2023,CHILDRENS,247 CARS (WILLENHALL) LIMITED,04/12/2023,"1,660.10",6241-Hire of Vehicle with Driver,TRANSPORT,DIRECT TRANSPORT COSTS,REVENUE
Walsall Council,http://opendatacommunities.org/id/metropolitan-district-council/walsall ,WC157-20,31.12.2023,CHILDRENS,247 CARS (WILLENHALL) LIMITED,04/12/2023,"1,295.00",6241-Hire of Vehicle with Driver,TRANSPORT,DIRECT TRANSPORT COSTS,REVENUE
Walsall Council,http://opendatacommunities.org/id/metropolitan-district-council/walsall ,WC157-21,31.12.2023,CHILDRENS,247 CARS (WILLENHALL) LIMITED,04/12/2023,"1,295.00",6241-Hire of Vehicle with Driver,TRANSPORT,DIRECT TRANSPORT COSTS,REVENUE
Walsall Council,http://opendatacommunities.org/id/metropolitan-district-council/walsall ,WC157-22,31.12.2023,CHILDRENS,247 CARS (WILLENHALL) LIMITED,04/12/2023,"1,704.00",6241-Hire of Vehicle with Driver,TRANSPORT,DIRECT TRANSPORT COSTS,REVENUE
Walsall Council,http://opendatacommunities.org/id/metropolitan-district-council/walsall ,WC157-23,31.12.2023,CHILDRENS,247 CARS (WILLENHALL) LIMITED,04/12/2023,"1,585.95",6241-Hire of Vehicle with Driver,TRANSPORT,DIRECT TRANSPORT COSTS,REVENUE
Walsall Council,http://opendatacommunities.org/id/metropolitan-district-council/walsall ,WC157-24,31.12.2023,CHILDRENS,247 CARS (WILLENHALL) LIMITED,04/12/2023,"1,419.00",6241-Hire of Vehicle with Driver,TRANSPORT,DIRECT TRANSPORT COSTS,REVENUE
Walsall Council,http://opendatacommunities.org/id/metropolitan-district-council/walsall ,WC157-25,31.12.2023,CHILDRENS,247 CARS (WILLENHALL) LIMITED,04/12/2023,"1,643.70",6241-Hire of Vehicle with Driver,TRANSPORT,DIRECT TRANSPORT COSTS,REVENUE
Walsall Council,http://opendatacommunities.org/id/metropolitan-district-council/walsall ,WC157-26,31.12.2023,CHILDRENS,247 CARS (WILLENHALL) LIMITED,04/12/2023,"2,491.95",6241-Hire of Vehicle with Driver,TRANSPORT,DIRECT TRANSPORT COSTS,REVENUE
Walsall Council,http://opendatacommunities.org/id/metropolitan-district-council/walsall ,WC157-27,31.12.2023,CHILDRENS,247 CARS (WILLENHALL) LIMITED,04/12/2023,"1,335.00",6241-Hire of Vehicle with Driver,TRANSPORT,DIRECT TRANSPORT COSTS,REVENUE
Walsall Council,http://opendatacommunities.org/id/metropolitan-district-council/walsall ,WC157-28,31.12.2023,CHILDRENS,247 CARS (WILLENHALL) LIMITED,04/12/2023,"1,139.40",6241-Hire of Vehicle with Driver,TRANSPORT,DIRECT TRANSPORT COSTS,REVENUE
Walsall Council,http://opendatacommunities.org/id/metropolitan-district-council/walsall ,WC157-29,31.12.2023,CHILDRENS,247 CARS (WILLENHALL) LIMITED,04/12/2023,"1,968.59",6241-Hire of Vehicle with Driver,TRANSPORT,DIRECT TRANSPORT COSTS,REVENUE
Walsall Council,http://opendatacommunities.org/id/metropolitan-district-council/walsall ,WC157-30,31.12.2023,CHILDRENS,247 CARS (WILLENHALL) LIMITED,04/12/2023,"1,704.00",6241-Hire of Vehicle with Driver,TRANSPORT,DIRECT TRANSPORT COSTS,REVENUE
Walsall Council,http://opendatacommunities.org/id/metropolitan-district-council/walsall ,WC157-31,31.12.2023,CHILDRENS,247 CARS (WILLENHALL) LIMITED,04/12/2023,"1,605.00",6241-Hire of Vehicle with Driver,TRANSPORT,DIRECT TRANSPORT COSTS,REVENUE
Walsall Council,http://opendatacommunities.org/id/metropolitan-district-council/walsall ,WC157-32,31.12.2023,CHILDRENS,247 CARS (WILLENHALL) LIMITED,04/12/2023,"1,339.00",6241-Hire of Vehicle with Driver,TRANSPORT,DIRECT TRANSPORT COSTS,REVENUE
Walsall Council,http://opendatacommunities.org/id/metropolitan-district-council/walsall ,WC157-33,31.12.2023,CHILDRENS,247 CARS (WILLENHALL) LIMITED,04/12/2023,"2,019.50",6241-Hire of Vehicle with Driver,TRANSPORT,DIRECT TRANSPORT COSTS,REVENUE
Walsall Council,http://opendatacommunities.org/id/metropolitan-district-council/walsall ,WC157-34,31.12.2023,CHILDRENS,247 CARS (WILLENHALL) LIMITED,04/12/2023,"1,951.95",6241-Hire of Vehicle with Driver,TRANSPORT,DIRECT TRANSPORT COSTS,REVENUE
Walsall Council,http://opendatacommunities.org/id/metropolitan-district-council/walsall ,WC157-35,31.12.2023,CHILDRENS,247 CARS (WILLENHALL) LIMITED,04/12/2023,"2,116.50",6241-Hire of Vehicle with Driver,TRANSPORT,DIRECT TRANSPORT COSTS,REVENUE
Walsall Council,http://opendatacommunities.org/id/metropolitan-district-council/walsall ,WC157-36,31.12.2023,CHILDRENS,247 CARS (WILLENHALL) LIMITED,04/12/2023,848.16,6241-Hire of Vehicle with Driver,TRANSPORT,DIRECT TRANSPORT COSTS,REVENUE
Walsall Council,http://opendatacommunities.org/id/metropolitan-district-council/walsall ,WC157-37,31.12.2023,CHILDRENS,247 CARS (WILLENHALL) LIMITED,04/12/2023,"1,183.00",6241-Hire of Vehicle with Driver,TRANSPORT,DIRECT TRANSPORT COSTS,REVENUE
Walsall Council,http://opendatacommunities.org/id/metropolitan-district-council/walsall ,WC157-38,31.12.2023,CHILDRENS,247 CARS (WILLENHALL) LIMITED,04/12/2023,"1,111.20",6241-Hire of Vehicle with Driver,TRANSPORT,DIRECT TRANSPORT COSTS,REVENUE
Walsall Council,http://opendatacommunities.org/id/metropolitan-district-council/walsall ,WC157-39,31.12.2023,CHILDRENS,247 CARS (WILLENHALL) LIMITED,04/12/2023,"1,966.50",6241-Hire of Vehicle with Driver,TRANSPORT,DIRECT TRANSPORT COSTS,REVENUE
Walsall Council,http://opendatacommunities.org/id/metropolitan-district-council/walsall ,WC157-40,31.12.2023,CHILDRENS,247 CARS (WILLENHALL) LIMITED,04/12/2023,"1,295.00",6241-Hire of Vehicle with Driver,TRANSPORT,DIRECT TRANSPORT COSTS,REVENUE
Walsall Council,http://opendatacommunities.org/id/metropolitan-district-council/walsall ,WC157-41,31.12.2023,CHILDRENS,247 CARS (WILLENHALL) LIMITED,04/12/2023,"1,295.00",6241-Hire of Vehicle with Driver,TRANSPORT,DIRECT TRANSPORT COSTS,REVENUE
Walsall Council,http://opendatacommunities.org/id/metropolitan-district-council/walsall ,WC157-42,31.12.2023,CHILDRENS,247 CARS (WILLENHALL) LIMITED,04/12/2023,"1,704.00",6241-Hire of Vehicle with Driver,TRANSPORT,DIRECT TRANSPORT COSTS,REVENUE
Walsall Council,http://opendatacommunities.org/id/metropolitan-district-council/walsall ,WC157-43,31.12.2023,CHILDRENS,247 CARS (WILLENHALL) LIMITED,04/12/2023,"1,800.00",6241-Hire of Vehicle with Driver,TRANSPORT,DIRECT TRANSPORT COSTS,REVENUE
Walsall Council,http://opendatacommunities.org/id/metropolitan-district-council/walsall ,WC157-44,31.12.2023,CHILDRENS,247 CARS (WILLENHALL) LIMITED,04/12/2023,"1,800.45",6241-Hire of Vehicle with Driver,TRANSPORT,DIRECT TRANSPORT COSTS,REVENUE
Walsall Council,http://opendatacommunities.org/id/metropolitan-district-council/walsall ,WC157-45,31.12.2023,CHILDRENS,247 CARS (WILLENHALL) LIMITED,04/12/2023,"2,487.45",6241-Hire of Vehicle with Driver,TRANSPORT,DIRECT TRANSPORT COSTS,REVENUE
Walsall Council,http://opendatacommunities.org/id/metropolitan-district-council/walsall ,WC157-46,31.12.2023,CHILDRENS,247 CARS (WILLENHALL) LIMITED,04/12/2023,"2,353.91",6241-Hire of Vehicle with Driver,TRANSPORT,DIRECT TRANSPORT COSTS,REVENUE
Walsall Council,http://opendatacommunities.org/id/metropolitan-district-council/walsall ,WC157-47,31.12.2023,CHILDRENS,247 CARS (WILLENHALL) LIMITED,04/12/2023,"1,748.60",6241-Hire of Vehicle with Driver,TRANSPORT,DIRECT TRANSPORT COSTS,REVENUE
Walsall Council,http://opendatacommunities.org/id/metropolitan-district-council/walsall ,WC157-48,31.12.2023,CHILDRENS,247 CARS (WILLENHALL) LIMITED,04/12/2023,"1,410.64",6241-Hire of Vehicle with Driver,TRANSPORT,DIRECT TRANSPORT COSTS,REVENUE
Walsall Council,http://opendatacommunities.org/id/metropolitan-district-council/walsall ,WC157-49,31.12.2023,CHILDRENS,5 CARE SERVICES LTD,29/12/2023,252.00,6220-Professional Fees & Services,SUPPLIES & SERVICES,SERVICES,REVENUE
Walsall Council,http://opendatacommunities.org/id/metropolitan-district-council/walsall ,WC157-50,31.12.2023,CHILDRENS,5 CARE SERVICES LTD,06/12/2023,724.50,6220-Professional Fees & Services,SUPPLIES & SERVICES,SERVICES,REVENUE
Walsall Council,http://opendatacommunities.org/id/metropolitan-district-council/walsall ,WC157-51,31.12.2023,CHILDRENS,5 CARE SERVICES LTD,06/12/2023,"2,412.00",6220-Professional Fees & Services,SUPPLIES & SERVICES,SERVICES,REVENUE
Walsall Council,http://opendatacommunities.org/id/metropolitan-district-council/walsall ,WC157-52,31.12.2023,CHILDRENS,5 CARE SERVICES LTD,19/12/2023,252.00,6220-Professional Fees & Services,SUPPLIES & SERVICES,SERVICES,REVENUE
Walsall Council,http://opendatacommunities.org/id/metropolitan-district-council/walsall ,WC157-53,31.12.2023,CHILDRENS,5 CARE SERVICES LTD,19/12/2023,"2,304.00",6220-Professional Fees & Services,SUPPLIES & SERVICES,SERVICES,REVENUE
Walsall Council,http://opendatacommunities.org/id/metropolitan-district-council/walsall ,WC157-54,31.12.2023,ADULT SOCIAL CARE,5 CARE SERVICES LTD,05/12/2023,774.00,6541-Domiciliary Care,THIRD PARTY PAYMENTS,PRIVATE CONTRACTOR,REVENUE
Walsall Council,http://opendatacommunities.org/id/metropolitan-district-council/walsall ,WC157-55,31.12.2023,ADULT SOCIAL CARE,5 CARE SERVICES LTD,05/12/2023,283.50,6541-Domiciliary Care,THIRD PARTY PAYMENTS,PRIVATE CONTRACTOR,REVENUE
Walsall Council,http://opendatacommunities.org/id/metropolitan-district-council/walsall ,WC157-56,31.12.2023,ADULT SOCIAL CARE,5 CARE SERVICES LTD,05/12/2023,756.00,6541-Domiciliary Care,THIRD PARTY PAYMENTS,PRIVATE CONTRACTOR,REVENUE
Walsall Council,http://opendatacommunities.org/id/metropolitan-district-council/walsall ,WC157-57,31.12.2023,ADULT SOCIAL CARE,5 CARE SERVICES LTD,05/12/2023,283.50,6541-Domiciliary Care,THIRD PARTY PAYMENTS,PRIVATE CONTRACTOR,REVENUE
Walsall Council,http://opendatacommunities.org/id/metropolitan-district-council/walsall ,WC157-58,31.12.2023,ADULT SOCIAL CARE,5 CARE SERVICES LTD,05/12/2023,"1,386.00",6541-Domiciliary Care,THIRD PARTY PAYMENTS,PRIVATE CONTRACTOR,REVENUE
Walsall Council,http://opendatacommunities.org/id/metropolitan-district-council/walsall ,WC157-59,31.12.2023,ADULT SOCIAL CARE,5 CARE SERVICES LTD,05/12/2023,324.00,6541-Domiciliary Care,THIRD PARTY PAYMENTS,PRIVATE CONTRACTOR,REVENUE
Walsall Council,http://opendatacommunities.org/id/metropolitan-district-council/walsall ,WC157-60,31.12.2023,ADULT SOCIAL CARE,5 CARE SERVICES LTD,05/12/2023,651.00,6541-Domiciliary Care,THIRD PARTY PAYMENTS,PRIVATE CONTRACTOR,REVENUE
Walsall Council,http://opendatacommunities.org/id/metropolitan-district-council/walsall ,WC157-61,31.12.2023,ADULT SOCIAL CARE,5 CARE SERVICES LTD,05/12/2023,630.00,6541-Domiciliary Care,THIRD PARTY PAYMENTS,PRIVATE CONTRACTOR,REVENUE
Walsall Council,http://opendatacommunities.org/id/metropolitan-district-council/walsall ,WC157-62,31.12.2023,ADULT SOCIAL CARE,5 CARE SERVICES LTD,05/12/2023,567.00,6541-Domiciliary Care,THIRD PARTY PAYMENTS,PRIVATE CONTRACTOR,REVENUE
Walsall Council,http://opendatacommunities.org/id/metropolitan-district-council/walsall ,WC157-63,31.12.2023,ADULT SOCIAL CARE,5 CARE SERVICES LTD,05/12/2023,567.00,6541-Domiciliary Care,THIRD PARTY PAYMENTS,PRIVATE CONTRACTOR,REVENUE
Walsall Council,http://opendatacommunities.org/id/metropolitan-district-council/walsall ,WC157-64,31.12.2023,ADULT SOCIAL CARE,5 CARE SERVICES LTD,05/12/2023,504.00,6541-Domiciliary Care,THIRD PARTY PAYMENTS,PRIVATE CONTRACTOR,REVENUE
Walsall Council,http://opendatacommunities.org/id/metropolitan-district-council/walsall ,WC157-65,31.12.2023,ADULT SOCIAL CARE,5 CARE SERVICES LTD,05/12/2023,567.00,6541-Domiciliary Care,THIRD PARTY PAYMENTS,PRIVATE CONTRACTOR,REVENUE
Walsall Council,http://opendatacommunities.org/id/metropolitan-district-council/walsall ,WC157-66,31.12.2023,ADULT SOCIAL CARE,5 CARE SERVICES LTD,05/12/2023,504.00,6541-Domiciliary Care,THIRD PARTY PAYMENTS,PRIVATE CONTRACTOR,REVENUE
Walsall Council,http://opendatacommunities.org/id/metropolitan-district-council/walsall ,WC157-67,31.12.2023,ADULT SOCIAL CARE,5 CARE SERVICES LTD,05/12/2023,283.50,6541-Domiciliary Care,THIRD PARTY PAYMENTS,PRIVATE CONTRACTOR,REVENUE
Walsall Council,http://opendatacommunities.org/id/metropolitan-district-council/walsall ,WC157-68,31.12.2023,ADULT SOCIAL CARE,5 CARE SERVICES LTD,05/12/2023,819.00,6541-Domiciliary Care,THIRD PARTY PAYMENTS,PRIVATE CONTRACTOR,REVENUE
Walsall Council,http://opendatacommunities.org/id/metropolitan-district-council/walsall ,WC157-69,31.12.2023,ADULT SOCIAL CARE,5 CARE SERVICES LTD,05/12/2023,378.00,6541-Domiciliary Care,THIRD PARTY PAYMENTS,PRIVATE CONTRACTOR,REVENUE
Walsall Council,http://opendatacommunities.org/id/metropolitan-district-council/walsall ,WC157-70,31.12.2023,ADULT SOCIAL CARE,5 CARE SERVICES LTD,05/12/2023,567.00,6541-Domiciliary Care,THIRD PARTY PAYMENTS,PRIVATE CONTRACTOR,REVENUE
Walsall Council,http://opendatacommunities.org/id/metropolitan-district-council/walsall ,WC157-71,31.12.2023,ADULT SOCIAL CARE,5 CARE SERVICES LTD,05/12/2023,"1,008.00",6541-Domiciliary Care,THIRD PARTY PAYMENTS,PRIVATE CONTRACTOR,REVENUE
Walsall Council,http://opendatacommunities.org/id/metropolitan-district-council/walsall ,WC157-72,31.12.2023,ADULT SOCIAL CARE,5 CARE SERVICES LTD,05/12/2023,666.00,6541-Domiciliary Care,THIRD PARTY PAYMENTS,PRIVATE CONTRACTOR,REVENUE
Walsall Council,http://opendatacommunities.org/id/metropolitan-district-council/walsall ,WC157-73,31.12.2023,ADULT SOCIAL CARE,5 CARE SERVICES LTD,05/12/2023,567.00,6541-Domiciliary Care,THIRD PARTY PAYMENTS,PRIVATE CONTRACTOR,REVENUE
Walsall Council,http://opendatacommunities.org/id/metropolitan-district-council/walsall ,WC157-74,31.12.2023,ADULT SOCIAL CARE,5 CARE SERVICES LTD,05/12/2023,567.00,6541-Domiciliary Care,THIRD PARTY PAYMENTS,PRIVATE CONTRACTOR,REVENUE
Walsall Council,http://opendatacommunities.org/id/metropolitan-district-council/walsall ,WC157-75,31.12.2023,ADULT SOCIAL CARE,5 CARE SERVICES LTD,05/12/2023,256.50,6541-Domiciliary Care,THIRD PARTY PAYMENTS,PRIVATE CONTRACTOR,REVENUE
Walsall Council,http://opendatacommunities.org/id/metropolitan-district-council/walsall ,WC157-76,31.12.2023,ADULT SOCIAL CARE,5 CARE SERVICES LTD,05/12/2023,283.50,6541-Domiciliary Care,THIRD PARTY PAYMENTS,PRIVATE CONTRACTOR,REVENUE
Walsall Council,http://opendatacommunities.org/id/metropolitan-district-council/walsall ,WC157-77,31.12.2023,ADULT SOCIAL CARE,5 CARE SERVICES LTD,05/12/2023,567.00,6541-Domiciliary Care,THIRD PARTY PAYMENTS,PRIVATE CONTRACTOR,REVENUE
Walsall Council,http://opendatacommunities.org/id/metropolitan-district-council/walsall ,WC157-78,31.12.2023,ADULT SOCIAL CARE,5 CARE SERVICES LTD,05/12/2023,252.00,6541-Domiciliary Care,THIRD PARTY PAYMENTS,PRIVATE CONTRACTOR,REVENUE
Walsall Council,http://opendatacommunities.org/id/metropolitan-district-council/walsall ,WC157-79,31.12.2023,ADULT SOCIAL CARE,5 CARE SERVICES LTD,05/12/2023,"1,206.00",6541-Domiciliary Care,THIRD PARTY PAYMENTS,PRIVATE CONTRACTOR,REVENUE
Walsall Council,http://opendatacommunities.org/id/metropolitan-district-council/walsall ,WC157-80,31.12.2023,ADULT SOCIAL CARE,5 CARE SERVICES LTD,05/12/2023,328.50,6541-Domiciliary Care,THIRD PARTY PAYMENTS,PRIVATE CONTRACTOR,REVENUE
Walsall Council,http://opendatacommunities.org/id/metropolitan-district-council/walsall ,WC157-81,31.12.2023,ADULT SOCIAL CARE,5 CARE SERVICES LTD,05/12/2023,981.00,6541-Domiciliary Care,THIRD PARTY PAYMENTS,PRIVATE CONTRACTOR,REVENUE
Walsall Council,http://opendatacommunities.org/id/metropolitan-district-council/walsall ,WC157-82,31.12.2023,ADULT SOCIAL CARE,5 CARE SERVICES LTD,05/12/2023,378.00,6541-Domiciliary Care,THIRD PARTY PAYMENTS,PRIVATE CONTRACTOR,REVENUE
Walsall Council,http://opendatacommunities.org/id/metropolitan-district-council/walsall ,WC157-83,31.12.2023,ADULT SOCIAL CARE,5 CARE SERVICES LTD,05/12/2023,567.00,6541-Domiciliary Care,THIRD PARTY PAYMENTS,PRIVATE CONTRACTOR,REVENUE
Walsall Council,http://opendatacommunities.org/id/metropolitan-district-council/walsall ,WC157-84,31.12.2023,ADULT SOCIAL CARE,5 CARE SERVICES LTD,05/12/2023,486.00,6541-Domiciliary Care,THIRD PARTY PAYMENTS,PRIVATE CONTRACTOR,REVENUE
Walsall Council,http://opendatacommunities.org/id/metropolitan-district-council/walsall ,WC157-85,31.12.2023,ADULT SOCIAL CARE,5 CARE SERVICES LTD,05/12/2023,294.00,6541-Domiciliary Care,THIRD PARTY PAYMENTS,PRIVATE CONTRACTOR,REVENUE
Walsall Council,http://opendatacommunities.org/id/metropolitan-district-council/walsall ,WC157-86,31.12.2023,ADULT SOCIAL CARE,5 CARE SERVICES LTD,05/12/2023,315.00,6541-Domiciliary Care,THIRD PARTY PAYMENTS,PRIVATE CONTRACTOR,REVENUE
Walsall Council,http://opendatacommunities.org/id/metropolitan-district-council/walsall ,WC157-87,31.12.2023,ADULT SOCIAL CARE,5 CARE SERVICES LTD,05/12/2023,567.00,6541-Domiciliary Care,THIRD PARTY PAYMENTS,PRIVATE CONTRACTOR,REVENUE
Walsall Council,http://opendatacommunities.org/id/metropolitan-district-council/walsall ,WC157-88,31.12.2023,ADULT SOCIAL CARE,5 CARE SERVICES LTD,05/12/2023,567.00,6541-Domiciliary Care,THIRD PARTY PAYMENTS,PRIVATE CONTRACTOR,REVENUE
Walsall Council,http://opendatacommunities.org/id/metropolitan-district-council/walsall ,WC157-89,31.12.2023,ADULT SOCIAL CARE,5 CARE SERVICES LTD,05/12/2023,360.00,6541-Domiciliary Care,THIRD PARTY PAYMENTS,PRIVATE CONTRACTOR,REVENUE
Walsall Council,http://opendatacommunities.org/id/metropolitan-district-council/walsall ,WC157-90,31.12.2023,ADULT SOCIAL CARE,5 CARE SERVICES LTD,05/12/2023,378.00,6541-Domiciliary Care,THIRD PARTY PAYMENTS,PRIVATE CONTRACTOR,REVENUE
Walsall Council,http://opendatacommunities.org/id/metropolitan-district-council/walsall ,WC157-91,31.12.2023,ADULT SOCIAL CARE,5 CARE SERVICES LTD,05/12/2023,567.00,6541-Domiciliary Care,THIRD PARTY PAYMENTS,PRIVATE CONTRACTOR,REVENUE
Walsall Council,http://opendatacommunities.org/id/metropolitan-district-council/walsall ,WC157-92,31.12.2023,ADULT SOCIAL CARE,5 CARE SERVICES LTD,05/12/2023,"1,008.00",6541-Domiciliary Care,THIRD PARTY PAYMENTS,PRIVATE CONTRACTOR,REVENUE
Walsall Council,http://opendatacommunities.org/id/metropolitan-district-council/walsall ,WC157-93,31.12.2023,ADULT SOCIAL CARE,5 CARE SERVICES LTD,05/12/2023,756.00,6541-Domiciliary Care,THIRD PARTY PAYMENTS,PRIVATE CONTRACTOR,REVENUE
Walsall Council,http://opendatacommunities.org/id/metropolitan-district-council/walsall ,WC157-94,31.12.2023,ADULT SOCIAL CARE,5 CARE SERVICES LTD,05/12/2023,630.00,6541-Domiciliary Care,THIRD PARTY PAYMENTS,PRIVATE CONTRACTOR,REVENUE
Walsall Council,http://opendatacommunities.org/id/metropolitan-district-council/walsall ,WC157-95,31.12.2023,ADULT SOCIAL CARE,5 CARE SERVICES LTD,05/12/2023,283.50,6541-Domiciliary Care,THIRD PARTY PAYMENTS,PRIVATE CONTRACTOR,REVENUE
Walsall Council,http://opendatacommunities.org/id/metropolitan-district-council/walsall ,WC157-96,31.12.2023,ADULT SOCIAL CARE,5 CARE SERVICES LTD,05/12/2023,378.00,6541-Domiciliary Care,THIRD PARTY PAYMENTS,PRIVATE CONTRACTOR,REVENUE
Walsall Council,http://opendatacommunities.org/id/metropolitan-district-council/walsall ,WC157-97,31.12.2023,ADULT SOCIAL CARE,5 CARE SERVICES LTD,05/12/2023,567.00,6541-Domiciliary Care,THIRD PARTY PAYMENTS,PRIVATE CONTRACTOR,REVENUE
Walsall Council,http://opendatacommunities.org/id/metropolitan-district-council/walsall ,WC157-98,31.12.2023,ADULT SOCIAL CARE,5 CARE SERVICES LTD,05/12/2023,567.00,6541-Domiciliary Care,THIRD PARTY PAYMENTS,PRIVATE CONTRACTOR,REVENUE
Walsall Council,http://opendatacommunities.org/id/metropolitan-district-council/walsall ,WC157-99,31.12.2023,ADULT SOCIAL CARE,5 CARE SERVICES LTD,05/12/2023,567.00,6541-Domiciliary Care,THIRD PARTY PAYMENTS,PRIVATE CONTRACTOR,REVENUE
Walsall Council,http://opendatacommunities.org/id/metropolitan-district-council/walsall ,WC157-100,31.12.2023,ADULT SOCIAL CARE,5 CARE SERVICES LTD,05/12/2023,504.00,6541-Domiciliary Care,THIRD PARTY PAYMENTS,PRIVATE CONTRACTOR,REVENUE
Walsall Council,http://opendatacommunities.org/id/metropolitan-district-council/walsall ,WC157-101,31.12.2023,ADULT SOCIAL CARE,5 CARE SERVICES LTD,05/12/2023,486.00,6541-Domiciliary Care,THIRD PARTY PAYMENTS,PRIVATE CONTRACTOR,REVENUE
Walsall Council,http://opendatacommunities.org/id/metropolitan-district-council/walsall ,WC157-102,31.12.2023,ADULT SOCIAL CARE,5 CARE SERVICES LTD,05/12/2023,774.00,6541-Domiciliary Care,THIRD PARTY PAYMENTS,PRIVATE CONTRACTOR,REVENUE
Walsall Council,http://opendatacommunities.org/id/metropolitan-district-council/walsall ,WC157-103,31.12.2023,ADULT SOCIAL CARE,5 CARE SERVICES LTD,05/12/2023,283.50,6541-Domiciliary Care,THIRD PARTY PAYMENTS,PRIVATE CONTRACTOR,REVENUE
Walsall Council,http://opendatacommunities.org/id/metropolitan-district-council/walsall ,WC157-104,31.12.2023,ADULT SOCIAL CARE,5 CARE SERVICES LTD,05/12/2023,738.00,6541-Domiciliary Care,THIRD PARTY PAYMENTS,PRIVATE CONTRACTOR,REVENUE
Walsall Council,http://opendatacommunities.org/id/metropolitan-district-council/walsall ,WC157-105,31.12.2023,ADULT SOCIAL CARE,5 CARE SERVICES LTD,05/12/2023,567.00,6541-Domiciliary Care,THIRD PARTY PAYMENTS,PRIVATE CONTRACTOR,REVENUE
Walsall Council,http://opendatacommunities.org/id/metropolitan-district-council/walsall ,WC157-106,31.12.2023,ADULT SOCIAL CARE,5 CARE SERVICES LTD,05/12/2023,294.00,6541-Domiciliary Care,THIRD PARTY PAYMENTS,PRIVATE CONTRACTOR,REVENUE
Walsall Council,http://opendatacommunities.org/id/metropolitan-district-council/walsall ,WC157-107,31.12.2023,ADULT SOCIAL CARE,5 CARE SERVICES LTD,05/12/2023,315.00,6541-Domiciliary Care,THIRD PARTY PAYMENTS,PRIVATE CONTRACTOR,REVENUE
Walsall Council,http://opendatacommunities.org/id/metropolitan-district-council/walsall ,WC157-108,31.12.2023,ADULT SOCIAL CARE,5 CARE SERVICES LTD,05/12/2023,567.00,6541-Domiciliary Care,THIRD PARTY PAYMENTS,PRIVATE CONTRACTOR,REVENUE
Walsall Council,http://opendatacommunities.org/id/metropolitan-district-council/walsall ,WC157-109,31.12.2023,ADULT SOCIAL CARE,5 CARE SERVICES LTD,05/12/2023,567.00,6541-Domiciliary Care,THIRD PARTY PAYMENTS,PRIVATE CONTRACTOR,REVENUE
Walsall Council,http://opendatacommunities.org/id/metropolitan-district-council/walsall ,WC157-110,31.12.2023,ADULT SOCIAL CARE,5 CARE SERVICES LTD,05/12/2023,432.00,6541-Domiciliary Care,THIRD PARTY PAYMENTS,PRIVATE CONTRACTOR,REVENUE
Walsall Council,http://opendatacommunities.org/id/metropolitan-district-council/walsall ,WC157-111,31.12.2023,ADULT SOCIAL CARE,5 CARE SERVICES LTD,05/12/2023,283.50,6541-Domiciliary Care,THIRD PARTY PAYMENTS,PRIVATE CONTRACTOR,REVENUE
Walsall Council,http://opendatacommunities.org/id/metropolitan-district-council/walsall ,WC157-112,31.12.2023,ADULT SOCIAL CARE,5 CARE SERVICES LTD,05/12/2023,567.00,6541-Domiciliary Care,THIRD PARTY PAYMENTS,PRIVATE CONTRACTOR,REVENUE
Walsall Council,http://opendatacommunities.org/id/metropolitan-district-council/walsall ,WC157-113,31.12.2023,ADULT SOCIAL CARE,5 CARE SERVICES LTD,05/12/2023,252.00,6541-Domiciliary Care,THIRD PARTY PAYMENTS,PRIVATE CONTRACTOR,REVENUE
Walsall Council,http://opendatacommunities.org/id/metropolitan-district-council/walsall ,WC157-114,31.12.2023,ADULT SOCIAL CARE,5 CARE SERVICES LTD,05/12/2023,630.00,6541-Domiciliary Care,THIRD PARTY PAYMENTS,PRIVATE CONTRACTOR,REVENUE
Walsall Council,http://opendatacommunities.org/id/metropolitan-district-council/walsall ,WC157-115,31.12.2023,ADULT SOCIAL CARE,5 CARE SERVICES LTD,05/12/2023,328.50,6541-Domiciliary Care,THIRD PARTY PAYMENTS,PRIVATE CONTRACTOR,REVENUE
Walsall Council,http://opendatacommunities.org/id/metropolitan-district-council/walsall ,WC157-116,31.12.2023,ADULT SOCIAL CARE,5 CARE SERVICES LTD,05/12/2023,"1,089.00",6541-Domiciliary Care,THIRD PARTY PAYMENTS,PRIVATE CONTRACTOR,REVENUE
Walsall Council,http://opendatacommunities.org/id/metropolitan-district-council/walsall ,WC157-117,31.12.2023,ADULT SOCIAL CARE,5 CARE SERVICES LTD,05/12/2023,"1,386.00",6541-Domiciliary Care,THIRD PARTY PAYMENTS,PRIVATE CONTRACTOR,REVENUE
Walsall Council,http://opendatacommunities.org/id/metropolitan-district-council/walsall ,WC157-118,31.12.2023,ADULT SOCIAL CARE,5 CARE SERVICES LTD,05/12/2023,324.00,6541-Domiciliary Care,THIRD PARTY PAYMENTS,PRIVATE CONTRACTOR,REVENUE
Walsall Council,http://opendatacommunities.org/id/metropolitan-district-council/walsall ,WC157-119,31.12.2023,ADULT SOCIAL CARE,5 CARE SERVICES LTD,05/12/2023,651.00,6541-Domiciliary Care,THIRD PARTY PAYMENTS,PRIVATE CONTRACTOR,REVENUE
Walsall Council,http://opendatacommunities.org/id/metropolitan-district-council/walsall ,WC157-120,31.12.2023,ADULT SOCIAL CARE,5 CARE SERVICES LTD,05/12/2023,283.50,6541-Domiciliary Care,THIRD PARTY PAYMENTS,PRIVATE CONTRACTOR,REVENUE
Walsall Council,http://opendatacommunities.org/id/metropolitan-district-council/walsall ,WC157-121,31.12.2023,ADULT SOCIAL CARE,5 CARE SERVICES LTD,05/12/2023,819.00,6541-Domiciliary Care,THIRD PARTY PAYMENTS,PRIVATE CONTRACTOR,REVENUE
Walsall Council,http://opendatacommunities.org/id/metropolitan-district-council/walsall ,WC157-122,31.12.2023,ADULT SOCIAL CARE,5 CARE SERVICES LTD,05/12/2023,567.00,6541-Domiciliary Care,THIRD PARTY PAYMENTS,PRIVATE CONTRACTOR,REVENUE
Walsall Council,http://opendatacommunities.org/id/metropolitan-district-council/walsall ,WC157-123,31.12.2023,ADULT SOCIAL CARE,5 CARE SERVICES LTD,05/12/2023,256.50,6541-Domiciliary Care,THIRD PARTY PAYMENTS,PRIVATE CONTRACTOR,REVENUE
Walsall Council,http://opendatacommunities.org/id/metropolitan-district-council/walsall ,WC157-124,31.12.2023,ADULT SOCIAL CARE,5 CARE SERVICES LTD,13/12/2023,"2,295.00",6554-Professional Services-Priv Contractor & Other Agencies,THIRD PARTY PAYMENTS,PRIVATE CONTRACTOR,REVENUE
Walsall Council,http://opendatacommunities.org/id/metropolitan-district-council/walsall ,WC157-125,31.12.2023,ADULT SOCIAL CARE,5 CARE SERVICES LTD,13/12/2023,297.00,6554-Professional Services-Priv Contractor & Other Agencies,THIRD PARTY PAYMENTS,PRIVATE CONTRACTOR,REVENUE
Walsall Council,http://opendatacommunities.org/id/metropolitan-district-council/walsall ,WC157-126,31.12.2023,ADULT SOCIAL CARE,5 CARE SERVICES LTD,13/12/2023,"1,008.00",6554-Professional Services-Priv Contractor & Other Agencies,THIRD PARTY PAYMENTS,PRIVATE CONTRACTOR,REVENUE
Walsall Council,http://opendatacommunities.org/id/metropolitan-district-council/walsall ,WC157-127,31.12.2023,ADULT SOCIAL CARE,5 CARE SERVICES LTD,13/12/2023,"1,071.00",6554-Professional Services-Priv Contractor & Other Agencies,THIRD PARTY PAYMENTS,PRIVATE CONTRACTOR,REVENUE
Walsall Council,http://opendatacommunities.org/id/metropolitan-district-council/walsall ,WC157-128,31.12.2023,ADULT SOCIAL CARE,5 CARE SERVICES LTD,13/12/2023,414.00,6554-Professional Services-Priv Contractor & Other Agencies,THIRD PARTY PAYMENTS,PRIVATE CONTRACTOR,REVENUE
Walsall Council,http://opendatacommunities.org/id/metropolitan-district-council/walsall ,WC157-129,31.12.2023,ADULT SOCIAL CARE,5 CARE SERVICES LTD,13/12/2023,"1,354.50",6554-Professional Services-Priv Contractor & Other Agencies,THIRD PARTY PAYMENTS,PRIVATE CONTRACTOR,REVENUE
Walsall Council,http://opendatacommunities.org/id/metropolitan-district-council/walsall ,WC157-130,31.12.2023,ADULT SOCIAL CARE,5 CARE SERVICES LTD,19/12/2023,360.00,6541-Domiciliary Care,THIRD PARTY PAYMENTS,PRIVATE CONTRACTOR,REVENUE
Walsall Council,http://opendatacommunities.org/id/metropolitan-district-council/walsall ,WC157-131,31.12.2023,ADULT SOCIAL CARE,5 CARE SERVICES LTD,19/12/2023,450.00,6541-Domiciliary Care,THIRD PARTY PAYMENTS,PRIVATE CONTRACTOR,REVENUE
Walsall Council,http://opendatacommunities.org/id/metropolitan-district-council/walsall ,WC157-132,31.12.2023,ADULT SOCIAL CARE,5 CARE SERVICES LTD,19/12/2023,"1,008.00",6541-Domiciliary Care,THIRD PARTY PAYMENTS,PRIVATE CONTRACTOR,REVENUE
Walsall Council,http://opendatacommunities.org/id/metropolitan-district-council/walsall ,WC157-133,31.12.2023,ADULT SOCIAL CARE,5 CARE SERVICES LTD,19/12/2023,756.00,6541-Domiciliary Care,THIRD PARTY PAYMENTS,PRIVATE CONTRACTOR,REVENUE
Walsall Council,http://opendatacommunities.org/id/metropolitan-district-council/walsall ,WC157-134,31.12.2023,ADULT SOCIAL CARE,5 CARE SERVICES LTD,19/12/2023,630.00,6541-Domiciliary Care,THIRD PARTY PAYMENTS,PRIVATE CONTRACTOR,REVENUE
Walsall Council,http://opendatacommunities.org/id/metropolitan-district-council/walsall ,WC157-135,31.12.2023,ADULT SOCIAL CARE,5 CARE SERVICES LTD,19/12/2023,283.50,6541-Domiciliary Care,THIRD PARTY PAYMENTS,PRIVATE CONTRACTOR,REVENUE
Walsall Council,http://opendatacommunities.org/id/metropolitan-district-council/walsall ,WC157-136,31.12.2023,ADULT SOCIAL CARE,5 CARE SERVICES LTD,19/12/2023,432.00,6541-Domiciliary Care,THIRD PARTY PAYMENTS,PRIVATE CONTRACTOR,REVENUE
Walsall Council,http://opendatacommunities.org/id/metropolitan-district-council/walsall ,WC157-137,31.12.2023,ADULT SOCIAL CARE,5 CARE SERVICES LTD,19/12/2023,378.00,6541-Domiciliary Care,THIRD PARTY PAYMENTS,PRIVATE CONTRACTOR,REVENUE
Walsall Council,http://opendatacommunities.org/id/metropolitan-district-council/walsall ,WC157-138,31.12.2023,ADULT SOCIAL CARE,5 CARE SERVICES LTD,19/12/2023,567.00,6541-Domiciliary Care,THIRD PARTY PAYMENTS,PRIVATE CONTRACTOR,REVENUE
Walsall Council,http://opendatacommunities.org/id/metropolitan-district-council/walsall ,WC157-139,31.12.2023,ADULT SOCIAL CARE,5 CARE SERVICES LTD,19/12/2023,567.00,6541-Domiciliary Care,THIRD PARTY PAYMENTS,PRIVATE CONTRACTOR,REVENUE
Walsall Council,http://opendatacommunities.org/id/metropolitan-district-council/walsall ,WC157-140,31.12.2023,ADULT SOCIAL CARE,5 CARE SERVICES LTD,19/12/2023,567.00,6541-Domiciliary Care,THIRD PARTY PAYMENTS,PRIVATE CONTRACTOR,REVENUE
Walsall Council,http://opendatacommunities.org/id/metropolitan-district-council/walsall ,WC157-141,31.12.2023,ADULT SOCIAL CARE,5 CARE SERVICES LTD,19/12/2023,504.00,6541-Domiciliary Care,THIRD PARTY PAYMENTS,PRIVATE CONTRACTOR,REVENUE
Walsall Council,http://opendatacommunities.org/id/metropolitan-district-council/walsall ,WC157-142,31.12.2023,ADULT SOCIAL CARE,5 CARE SERVICES LTD,19/12/2023,486.00,6541-Domiciliary Care,THIRD PARTY PAYMENTS,PRIVATE CONTRACTOR,REVENUE
Walsall Council,http://opendatacommunities.org/id/metropolitan-district-council/walsall ,WC157-143,31.12.2023,ADULT SOCIAL CARE,5 CARE SERVICES LTD,19/12/2023,684.00,6541-Domiciliary Care,THIRD PARTY PAYMENTS,PRIVATE CONTRACTOR,REVENUE
Walsall Council,http://opendatacommunities.org/id/metropolitan-district-council/walsall ,WC157-144,31.12.2023,ADULT SOCIAL CARE,5 CARE SERVICES LTD,19/12/2023,283.50,6541-Domiciliary Care,THIRD PARTY PAYMENTS,PRIVATE CONTRACTOR,REVENUE
Walsall Council,http://opendatacommunities.org/id/metropolitan-district-council/walsall ,WC157-145,31.12.2023,ADULT SOCIAL CARE,5 CARE SERVICES LTD,19/12/2023,666.00,6541-Domiciliary Care,THIRD PARTY PAYMENTS,PRIVATE CONTRACTOR,REVENUE
Walsall Council,http://opendatacommunities.org/id/metropolitan-district-council/walsall ,WC157-146,31.12.2023,ADULT SOCIAL CARE,5 CARE SERVICES LTD,19/12/2023,567.00,6541-Domiciliary Care,THIRD PARTY PAYMENTS,PRIVATE CONTRACTOR,REVENUE
Walsall Council,http://opendatacommunities.org/id/metropolitan-district-council/walsall ,WC157-147,31.12.2023,ADULT SOCIAL CARE,5 CARE SERVICES LTD,19/12/2023,294.00,6541-Domiciliary Care,THIRD PARTY PAYMENTS,PRIVATE CONTRACTOR,REVENUE
Walsall Council,http://opendatacommunities.org/id/metropolitan-district-council/walsall ,WC157-148,31.12.2023,ADULT SOCIAL CARE,5 CARE SERVICES LTD,19/12/2023,315.00,6541-Domiciliary Care,THIRD PARTY PAYMENTS,PRIVATE CONTRACTOR,REVENUE
Walsall Council,http://opendatacommunities.org/id/metropolitan-district-council/walsall ,WC157-149,31.12.2023,ADULT SOCIAL CARE,5 CARE SERVICES LTD,19/12/2023,567.00,6541-Domiciliary Care,THIRD PARTY PAYMENTS,PRIVATE CONTRACTOR,REVENUE
Walsall Council,http://opendatacommunities.org/id/metropolitan-district-council/walsall ,WC157-150,31.12.2023,ADULT SOCIAL CARE,5 CARE SERVICES LTD,19/12/2023,735.00,6541-Domiciliary Care,THIRD PARTY PAYMENTS,PRIVATE CONTRACTOR,REVENUE
Walsall Council,http://opendatacommunities.org/id/metropolitan-district-council/walsall ,WC157-151,31.12.2023,ADULT SOCIAL CARE,5 CARE SERVICES LTD,19/12/2023,567.00,6541-Domiciliary Care,THIRD PARTY PAYMENTS,PRIVATE CONTRACTOR,REVENUE
Walsall Council,http://opendatacommunities.org/id/metropolitan-district-council/walsall ,WC157-152,31.12.2023,ADULT SOCIAL CARE,5 CARE SERVICES LTD,19/12/2023,567.00,6541-Domiciliary Care,THIRD PARTY PAYMENTS,PRIVATE CONTRACTOR,REVENUE
Walsall Council,http://opendatacommunities.org/id/metropolitan-district-council/walsall ,WC157-153,31.12.2023,ADULT SOCIAL CARE,5 CARE SERVICES LTD,19/12/2023,630.00,6541-Domiciliary Care,THIRD PARTY PAYMENTS,PRIVATE CONTRACTOR,REVENUE
Walsall Council,http://opendatacommunities.org/id/metropolitan-district-council/walsall ,WC157-154,31.12.2023,ADULT SOCIAL CARE,5 CARE SERVICES LTD,19/12/2023,328.50,6541-Domiciliary Care,THIRD PARTY PAYMENTS,PRIVATE CONTRACTOR,REVENUE
Walsall Council,http://opendatacommunities.org/id/metropolitan-district-council/walsall ,WC157-155,31.12.2023,ADULT SOCIAL CARE,5 CARE SERVICES LTD,19/12/2023,306.00,6541-Domiciliary Care,THIRD PARTY PAYMENTS,PRIVATE CONTRACTOR,REVENUE
Walsall Council,http://opendatacommunities.org/id/metropolitan-district-council/walsall ,WC157-156,31.12.2023,ADULT SOCIAL CARE,5 CARE SERVICES LTD,19/12/2023,"1,386.00",6541-Domiciliary Care,THIRD PARTY PAYMENTS,PRIVATE CONTRACTOR,REVENUE
Walsall Council,http://opendatacommunities.org/id/metropolitan-district-council/walsall ,WC157-157,31.12.2023,ADULT SOCIAL CARE,5 CARE SERVICES LTD,19/12/2023,324.00,6541-Domiciliary Care,THIRD PARTY PAYMENTS,PRIVATE CONTRACTOR,REVENUE
Walsall Council,http://opendatacommunities.org/id/metropolitan-district-council/walsall ,WC157-158,31.12.2023,ADULT SOCIAL CARE,5 CARE SERVICES LTD,19/12/2023,651.00,6541-Domiciliary Care,THIRD PARTY PAYMENTS,PRIVATE CONTRACTOR,REVENUE
Walsall Council,http://opendatacommunities.org/id/metropolitan-district-council/walsall ,WC157-159,31.12.2023,ADULT SOCIAL CARE,5 CARE SERVICES LTD,19/12/2023,283.50,6541-Domiciliary Care,THIRD PARTY PAYMENTS,PRIVATE CONTRACTOR,REVENUE
Walsall Council,http://opendatacommunities.org/id/metropolitan-district-council/walsall ,WC157-160,31.12.2023,ADULT SOCIAL CARE,5 CARE SERVICES LTD,19/12/2023,819.00,6541-Domiciliary Care,THIRD PARTY PAYMENTS,PRIVATE CONTRACTOR,REVENUE
Walsall Council,http://opendatacommunities.org/id/metropolitan-district-council/walsall ,WC157-161,31.12.2023,ADULT SOCIAL CARE,5 CARE SERVICES LTD,19/12/2023,567.00,6541-Domiciliary Care,THIRD PARTY PAYMENTS,PRIVATE CONTRACTOR,REVENUE
Walsall Council,http://opendatacommunities.org/id/metropolitan-district-council/walsall ,WC157-162,31.12.2023,ADULT SOCIAL CARE,5 CARE SERVICES LTD,19/12/2023,256.50,6541-Domiciliary Care,THIRD PARTY PAYMENTS,PRIVATE CONTRACTOR,REVENUE
Walsall Council,http://opendatacommunities.org/id/metropolitan-district-council/walsall ,WC157-163,31.12.2023,ADULT SOCIAL CARE,5 CARE SERVICES LTD,19/12/2023,283.50,6541-Domiciliary Care,THIRD PARTY PAYMENTS,PRIVATE CONTRACTOR,REVENUE
Walsall Council,http://opendatacommunities.org/id/metropolitan-district-council/walsall ,WC157-164,31.12.2023,ADULT SOCIAL CARE,5 CARE SERVICES LTD,19/12/2023,756.00,6541-Domiciliary Care,THIRD PARTY PAYMENTS,PRIVATE CONTRACTOR,REVENUE
Walsall Council,http://opendatacommunities.org/id/metropolitan-district-council/walsall ,WC157-165,31.12.2023,ADULT SOCIAL CARE,5 CARE SERVICES LTD,19/12/2023,630.00,6541-Domiciliary Care,THIRD PARTY PAYMENTS,PRIVATE CONTRACTOR,REVENUE
Walsall Council,http://opendatacommunities.org/id/metropolitan-district-council/walsall ,WC157-166,31.12.2023,ADULT SOCIAL CARE,5 CARE SERVICES LTD,19/12/2023,567.00,6541-Domiciliary Care,THIRD PARTY PAYMENTS,PRIVATE CONTRACTOR,REVENUE
Walsall Council,http://opendatacommunities.org/id/metropolitan-district-council/walsall ,WC157-167,31.12.2023,ADULT SOCIAL CARE,5 CARE SERVICES LTD,19/12/2023,504.00,6541-Domiciliary Care,THIRD PARTY PAYMENTS,PRIVATE CONTRACTOR,REVENUE
Walsall Council,http://opendatacommunities.org/id/metropolitan-district-council/walsall ,WC157-168,31.12.2023,ADULT SOCIAL CARE,5 CARE SERVICES LTD,19/12/2023,666.00,6541-Domiciliary Care,THIRD PARTY PAYMENTS,PRIVATE CONTRACTOR,REVENUE
Walsall Council,http://opendatacommunities.org/id/metropolitan-district-council/walsall ,WC157-169,31.12.2023,ADULT SOCIAL CARE,5 CARE SERVICES LTD,19/12/2023,567.00,6541-Domiciliary Care,THIRD PARTY PAYMENTS,PRIVATE CONTRACTOR,REVENUE
Walsall Council,http://opendatacommunities.org/id/metropolitan-district-council/walsall ,WC157-170,31.12.2023,ADULT SOCIAL CARE,5 CARE SERVICES LTD,19/12/2023,283.50,6541-Domiciliary Care,THIRD PARTY PAYMENTS,PRIVATE CONTRACTOR,REVENUE
Walsall Council,http://opendatacommunities.org/id/metropolitan-district-council/walsall ,WC157-171,31.12.2023,ADULT SOCIAL CARE,5 CARE SERVICES LTD,19/12/2023,567.00,6541-Domiciliary Care,THIRD PARTY PAYMENTS,PRIVATE CONTRACTOR,REVENUE
Walsall Council,http://opendatacommunities.org/id/metropolitan-district-council/walsall ,WC157-172,31.12.2023,ADULT SOCIAL CARE,5 CARE SERVICES LTD,19/12/2023,567.00,6541-Domiciliary Care,THIRD PARTY PAYMENTS,PRIVATE CONTRACTOR,REVENUE
Walsall Council,http://opendatacommunities.org/id/metropolitan-district-council/walsall ,WC157-173,31.12.2023,ADULT SOCIAL CARE,5 CARE SERVICES LTD,19/12/2023,567.00,6541-Domiciliary Care,THIRD PARTY PAYMENTS,PRIVATE CONTRACTOR,REVENUE
Walsall Council,http://opendatacommunities.org/id/metropolitan-district-council/walsall ,WC157-174,31.12.2023,ADULT SOCIAL CARE,5 CARE SERVICES LTD,19/12/2023,360.00,6541-Domiciliary Care,THIRD PARTY PAYMENTS,PRIVATE CONTRACTOR,REVENUE
Walsall Council,http://opendatacommunities.org/id/metropolitan-district-council/walsall ,WC157-175,31.12.2023,ADULT SOCIAL CARE,5 CARE SERVICES LTD,19/12/2023,630.00,6541-Domiciliary Care,THIRD PARTY PAYMENTS,PRIVATE CONTRACTOR,REVENUE
Walsall Council,http://opendatacommunities.org/id/metropolitan-district-council/walsall ,WC157-176,31.12.2023,ADULT SOCIAL CARE,5 CARE SERVICES LTD,19/12/2023,"1,008.00",6541-Domiciliary Care,THIRD PARTY PAYMENTS,PRIVATE CONTRACTOR,REVENUE
Walsall Council,http://opendatacommunities.org/id/metropolitan-district-council/walsall ,WC157-177,31.12.2023,ADULT SOCIAL CARE,5 CARE SERVICES LTD,19/12/2023,630.00,6541-Domiciliary Care,THIRD PARTY PAYMENTS,PRIVATE CONTRACTOR,REVENUE
Walsall Council,http://opendatacommunities.org/id/metropolitan-district-council/walsall ,WC157-178,31.12.2023,ADULT SOCIAL CARE,5 CARE SERVICES LTD,19/12/2023,328.50,6541-Domiciliary Care,THIRD PARTY PAYMENTS,PRIVATE CONTRACTOR,REVENUE
Walsall Council,http://opendatacommunities.org/id/metropolitan-district-council/walsall ,WC157-179,31.12.2023,ADULT SOCIAL CARE,5 CARE SERVICES LTD,19/12/2023,567.00,6541-Domiciliary Care,THIRD PARTY PAYMENTS,PRIVATE CONTRACTOR,REVENUE
Walsall Council,http://opendatacommunities.org/id/metropolitan-district-council/walsall ,WC157-180,31.12.2023,ADULT SOCIAL CARE,5 CARE SERVICES LTD,19/12/2023,774.00,6541-Domiciliary Care,THIRD PARTY PAYMENTS,PRIVATE CONTRACTOR,REVENUE
Walsall Council,http://opendatacommunities.org/id/metropolitan-district-council/walsall ,WC157-181,31.12.2023,ADULT SOCIAL CARE,5 CARE SERVICES LTD,19/12/2023,283.50,6541-Domiciliary Care,THIRD PARTY PAYMENTS,PRIVATE CONTRACTOR,REVENUE
Walsall Council,http://opendatacommunities.org/id/metropolitan-district-council/walsall ,WC157-182,31.12.2023,ADULT SOCIAL CARE,5 CARE SERVICES LTD,19/12/2023,378.00,6541-Domiciliary Care,THIRD PARTY PAYMENTS,PRIVATE CONTRACTOR,REVENUE
Walsall Council,http://opendatacommunities.org/id/metropolitan-district-council/walsall ,WC157-183,31.12.2023,ADULT SOCIAL CARE,5 CARE SERVICES LTD,19/12/2023,486.00,6541-Domiciliary Care,THIRD PARTY PAYMENTS,PRIVATE CONTRACTOR,REVENUE
Walsall Council,http://opendatacommunities.org/id/metropolitan-district-council/walsall ,WC157-184,31.12.2023,ADULT SOCIAL CARE,5 CARE SERVICES LTD,19/12/2023,294.00,6541-Domiciliary Care,THIRD PARTY PAYMENTS,PRIVATE CONTRACTOR,REVENUE
Walsall Council,http://opendatacommunities.org/id/metropolitan-district-council/walsall ,WC157-185,31.12.2023,ADULT SOCIAL CARE,5 CARE SERVICES LTD,19/12/2023,567.00,6541-Domiciliary Care,THIRD PARTY PAYMENTS,PRIVATE CONTRACTOR,REVENUE
Walsall Council,http://opendatacommunities.org/id/metropolitan-district-council/walsall ,WC157-186,31.12.2023,ADULT SOCIAL CARE,5 CARE SERVICES LTD,19/12/2023,567.00,6541-Domiciliary Care,THIRD PARTY PAYMENTS,PRIVATE CONTRACTOR,REVENUE
Walsall Council,http://opendatacommunities.org/id/metropolitan-district-council/walsall ,WC157-187,31.12.2023,ADULT SOCIAL CARE,5 CARE SERVICES LTD,19/12/2023,"1,386.00",6541-Domiciliary Care,THIRD PARTY PAYMENTS,PRIVATE CONTRACTOR,REVENUE
Walsall Council,http://opendatacommunities.org/id/metropolitan-district-council/walsall ,WC157-188,31.12.2023,ADULT SOCIAL CARE,5 CARE SERVICES LTD,19/12/2023,324.00,6541-Domiciliary Care,THIRD PARTY PAYMENTS,PRIVATE CONTRACTOR,REVENUE
Walsall Council,http://opendatacommunities.org/id/metropolitan-district-council/walsall ,WC157-189,31.12.2023,ADULT SOCIAL CARE,5 CARE SERVICES LTD,19/12/2023,651.00,6541-Domiciliary Care,THIRD PARTY PAYMENTS,PRIVATE CONTRACTOR,REVENUE
Walsall Council,http://opendatacommunities.org/id/metropolitan-district-council/walsall ,WC157-190,31.12.2023,ADULT SOCIAL CARE,5 CARE SERVICES LTD,19/12/2023,283.50,6541-Domiciliary Care,THIRD PARTY PAYMENTS,PRIVATE CONTRACTOR,REVENUE
Walsall Council,http://opendatacommunities.org/id/metropolitan-district-council/walsall ,WC157-191,31.12.2023,ADULT SOCIAL CARE,5 CARE SERVICES LTD,19/12/2023,819.00,6541-Domiciliary Care,THIRD PARTY PAYMENTS,PRIVATE CONTRACTOR,REVENUE
Walsall Council,http://opendatacommunities.org/id/metropolitan-district-council/walsall ,WC157-192,31.12.2023,ADULT SOCIAL CARE,5 CARE SERVICES LTD,19/12/2023,567.00,6541-Domiciliary Care,THIRD PARTY PAYMENTS,PRIVATE CONTRACTOR,REVENUE
Walsall Council,http://opendatacommunities.org/id/metropolitan-district-council/walsall ,WC157-193,31.12.2023,ADULT SOCIAL CARE,5 CARE SERVICES LTD,19/12/2023,256.50,6541-Domiciliary Care,THIRD PARTY PAYMENTS,PRIVATE CONTRACTOR,REVENUE
Walsall Council,http://opendatacommunities.org/id/metropolitan-district-council/walsall ,WC157-194,31.12.2023,"ECONOMY, ENVIRONMENT & COMMUNITIES",A D T FIRE AND SECURITY PLC,19/12/2023,"1,256.28",6410-Security & Alarm Maintenance,PREMISES,REPAIRS & MAINTENANCE,REVENUE
Walsall Council,http://opendatacommunities.org/id/metropolitan-district-council/walsall ,WC157-195,31.12.2023,RESOURCES AND TRANSFORMATION,A D T FIRE AND SECURITY PLC,13/12/2023,386.71,6310-Repair & Maintenance of Furniture & Equipment,SUPPLIES & SERVICES,EQUIPMENT FURNITURE & MATERIALS,REVENUE
Walsall Council,http://opendatacommunities.org/id/metropolitan-district-council/walsall ,WC157-196,31.12.2023,CHILDRENS,A D T FIRE AND SECURITY PLC,13/12/2023,"1,101.37",6223-Operational Maintenance,PREMISES,REPAIRS & MAINTENANCE,REVENUE
Walsall Council,http://opendatacommunities.org/id/metropolitan-district-council/walsall ,WC157-197,31.12.2023,RESOURCES AND TRANSFORMATION,A D T FIRE AND SECURITY PLC,13/12/2023,668.94,6310-Repair & Maintenance of Furniture & Equipment,SUPPLIES & SERVICES,EQUIPMENT FURNITURE & MATERIALS,REVENUE
Walsall Council,http://opendatacommunities.org/id/metropolitan-district-council/walsall ,WC157-198,31.12.2023,"ECONOMY, ENVIRONMENT & COMMUNITIES",A F BLAKEMORE & SON LTD,20/12/2023,335.76,6413-Food & Drink Supplies,SUPPLIES & SERVICES,CATERING,REVENUE
Walsall Council,http://opendatacommunities.org/id/metropolitan-district-council/walsall ,WC157-199,31.12.2023,"ECONOMY, ENVIRONMENT & COMMUNITIES",A F BLAKEMORE & SON LTD,20/12/2023,"1,315.56",6413-Food & Drink Supplies,SUPPLIES & SERVICES,CATERING,REVENUE
Walsall Council,http://opendatacommunities.org/id/metropolitan-district-council/walsall ,WC157-200,31.12.2023,"ECONOMY, ENVIRONMENT & COMMUNITIES",A F BLAKEMORE & SON LTD,20/12/2023,"1,020.22",6413-Food & Drink Supplies,SUPPLIES & SERVICES,CATERING,REVENUE
Walsall Council,http://opendatacommunities.org/id/metropolitan-district-council/walsall ,WC157-201,31.12.2023,"ECONOMY, ENVIRONMENT & COMMUNITIES",A F BLAKEMORE & SON LTD,20/12/2023,353.52,6413-Food & Drink Supplies,SUPPLIES & SERVICES,CATERING,REVENUE
Walsall Council,http://opendatacommunities.org/id/metropolitan-district-council/walsall ,WC157-202,31.12.2023,"ECONOMY, ENVIRONMENT & COMMUNITIES",A F BLAKEMORE & SON LTD,20/12/2023,980.99,6413-Food & Drink Supplies,SUPPLIES & SERVICES,CATERING,REVENUE
Walsall Council,http://opendatacommunities.org/id/metropolitan-district-council/walsall ,WC157-203,31.12.2023,"ECONOMY, ENVIRONMENT & COMMUNITIES",A F BLAKEMORE & SON LTD,20/12/2023,260.74,6413-Food & Drink Supplies,SUPPLIES & SERVICES,CATERING,REVENUE
Walsall Council,http://opendatacommunities.org/id/metropolitan-district-council/walsall ,WC157-204,31.12.2023,"ECONOMY, ENVIRONMENT & COMMUNITIES",A F BLAKEMORE & SON LTD,20/12/2023,657.30,6413-Food & Drink Supplies,SUPPLIES & SERVICES,CATERING,REVENUE
Walsall Council,http://opendatacommunities.org/id/metropolitan-district-council/walsall ,WC157-205,31.12.2023,"ECONOMY, ENVIRONMENT & COMMUNITIES",A F BLAKEMORE & SON LTD,21/12/2023,494.74,6413-Food & Drink Supplies,SUPPLIES & SERVICES,CATERING,REVENUE
Walsall Council,http://opendatacommunities.org/id/metropolitan-district-council/walsall ,WC157-206,31.12.2023,"ECONOMY, ENVIRONMENT & COMMUNITIES",A F BLAKEMORE & SON LTD,21/12/2023,868.19,6413-Food & Drink Supplies,SUPPLIES & SERVICES,CATERING,REVENUE
Walsall Council,http://opendatacommunities.org/id/metropolitan-district-council/walsall ,WC157-207,31.12.2023,"ECONOMY, ENVIRONMENT & COMMUNITIES",A F BLAKEMORE & SON LTD,21/12/2023,"1,022.90",6413-Food & Drink Supplies,SUPPLIES & SERVICES,CATERING,REVENUE
Walsall Council,http://opendatacommunities.org/id/metropolitan-district-council/walsall ,WC157-208,31.12.2023,"ECONOMY, ENVIRONMENT & COMMUNITIES",A F BLAKEMORE & SON LTD,21/12/2023,548.43,6413-Food & Drink Supplies,SUPPLIES & SERVICES,CATERING,REVENUE
Walsall Council,http://opendatacommunities.org/id/metropolitan-district-council/walsall ,WC157-209,31.12.2023,CHILDRENS,A1 WALSALL RADIO CARS,04/12/2023,"2,520.00",6241-Hire of Vehicle with Driver,TRANSPORT,DIRECT TRANSPORT COSTS,REVENUE
Walsall Council,http://opendatacommunities.org/id/metropolitan-district-council/walsall ,WC157-210,31.12.2023,CHILDRENS,A1 WALSALL RADIO CARS,04/12/2023,864.00,6241-Hire of Vehicle with Driver,TRANSPORT,DIRECT TRANSPORT COSTS,REVENUE
Walsall Council,http://opendatacommunities.org/id/metropolitan-district-council/walsall ,WC157-211,31.12.2023,CHILDRENS,A1 WALSALL RADIO CARS,04/12/2023,"1,575.00",6241-Hire of Vehicle with Driver,TRANSPORT,DIRECT TRANSPORT COSTS,REVENUE
Walsall Council,http://opendatacommunities.org/id/metropolitan-district-council/walsall ,WC157-212,31.12.2023,CHILDRENS,A1 WALSALL RADIO CARS,04/12/2023,"1,470.00",6241-Hire of Vehicle with Driver,TRANSPORT,DIRECT TRANSPORT COSTS,REVENUE
Walsall Council,http://opendatacommunities.org/id/metropolitan-district-council/walsall ,WC157-213,31.12.2023,CHILDRENS,A1 WALSALL RADIO CARS,04/12/2023,"1,245.00",6241-Hire of Vehicle with Driver,TRANSPORT,DIRECT TRANSPORT COSTS,REVENUE
Walsall Council,http://opendatacommunities.org/id/metropolitan-district-council/walsall ,WC157-214,31.12.2023,CHILDRENS,A1 WALSALL RADIO CARS,04/12/2023,"1,620.00",6241-Hire of Vehicle with Driver,TRANSPORT,DIRECT TRANSPORT COSTS,REVENUE
Walsall Council,http://opendatacommunities.org/id/metropolitan-district-council/walsall ,WC157-215,31.12.2023,"ECONOMY, ENVIRONMENT & COMMUNITIES",AAINA COMMUNITY HUB,01/12/2023,"11,457.18",6430-Grants to Other Orgs,SUPPLIES & SERVICES,GRANTS (EXP) & SUBSCRIPTIONS,REVENUE
Walsall Council,http://opendatacommunities.org/id/metropolitan-district-council/walsall ,WC157-216,31.12.2023,"ECONOMY, ENVIRONMENT & COMMUNITIES",AAINA COMMUNITY HUB,21/12/2023,"1,666.66",6430-Grants to Other Orgs,SUPPLIES & SERVICES,GRANTS (EXP) & SUBSCRIPTIONS,REVENUE
Walsall Council,http://opendatacommunities.org/id/metropolitan-district-council/walsall ,WC157-217,31.12.2023,ADULT SOCIAL CARE,REDACTED,07/12/2023,"1,126.20",6541-Direct Payment,THIRD PARTY PAYMENTS,PRIVATE CONTRACTOR,REVENUE
Walsall Council,http://opendatacommunities.org/id/metropolitan-district-council/walsall ,WC157-218,31.12.2023,CHILDRENS,REDACTED,19/12/2023,879.55,1220-Professional Fees & Services,SUPPLIES & SERVICES,SERVICES,REVENUE
Walsall Council,http://opendatacommunities.org/id/metropolitan-district-council/walsall ,WC157-219,31.12.2023,CHILDRENS,REDACTED,19/12/2023,"1,633.45",1220-Professional Fees & Services,SUPPLIES & SERVICES,SERVICES,REVENUE
Walsall Council,http://opendatacommunities.org/id/metropolitan-district-council/walsall ,WC157-220,31.12.2023,CHILDRENS,REDACTED,12/12/2023,502.60,1220-Professional Fees & Services,SUPPLIES & SERVICES,SERVICES,REVENUE
Walsall Council,http://opendatacommunities.org/id/metropolitan-district-council/walsall ,WC157-221,31.12.2023,CHILDRENS,ABACUS FOSTERING LTD,22/12/2023,"2,984.80",6223-Independent Foster Care-Oth Agency Provision,THIRD PARTY PAYMENTS,PRIVATE CONTRACTOR,REVENUE
Walsall Council,http://opendatacommunities.org/id/metropolitan-district-council/walsall ,WC157-222,31.12.2023,CHILDRENS,ABACUS FOSTERING LTD,22/12/2023,"2,818.88",6223-Independent Foster Care-Oth Agency Provision,THIRD PARTY PAYMENTS,PRIVATE CONTRACTOR,REVENUE
Walsall Council,http://opendatacommunities.org/id/metropolitan-district-council/walsall ,WC157-223,31.12.2023,CHILDRENS,ABACUS FOSTERING LTD,22/12/2023,"3,038.80",6223-Independent Foster Care-Oth Agency Provision,THIRD PARTY PAYMENTS,PRIVATE CONTRACTOR,REVENUE
Walsall Council,http://opendatacommunities.org/id/metropolitan-district-council/walsall ,WC157-224,31.12.2023,CHILDRENS,ABACUS FOSTERING LTD,22/12/2023,"3,198.72",6223-Independent Foster Care-Oth Agency Provision,THIRD PARTY PAYMENTS,PRIVATE CONTRACTOR,REVENUE
Walsall Council,http://opendatacommunities.org/id/metropolitan-district-council/walsall ,WC157-225,31.12.2023,ADULT SOCIAL CARE,ABBEY HEALTHCARE HOMES LTD,19/12/2023,"3,180.76",6541-Residential,THIRD PARTY PAYMENTS,PRIVATE CONTRACTOR,REVENUE
Walsall Council,http://opendatacommunities.org/id/metropolitan-district-council/walsall ,WC157-226,31.12.2023,ADULT SOCIAL CARE,ABBEY HEALTHCARE HOMES LTD,19/12/2023,"3,180.76",6541-Residential,THIRD PARTY PAYMENTS,PRIVATE CONTRACTOR,REVENUE
Walsall Council,http://opendatacommunities.org/id/metropolitan-district-council/walsall ,WC157-227,31.12.2023,ADULT SOCIAL CARE,ABBEY HEALTHCARE HOMES LTD,19/12/2023,"4,000.00",6541-Residential,THIRD PARTY PAYMENTS,PRIVATE CONTRACTOR,REVENUE
Walsall Council,http://opendatacommunities.org/id/metropolitan-district-council/walsall ,WC157-228,31.12.2023,ADULT SOCIAL CARE,ABBEY HEALTHCARE HOMES LTD,19/12/2023,"2,432.32",6541-Residential,THIRD PARTY PAYMENTS,PRIVATE CONTRACTOR,REVENUE
Walsall Council,http://opendatacommunities.org/id/metropolitan-district-council/walsall ,WC157-229,31.12.2023,CHILDRENS,ABC DAY NURSERY (WILLENHALL) LIMITED,01/12/2023,"4,386.93",1265-Early Years Supplementary Grant Expenditure,TRANSFER PAYMENTS,SCHOOLCHILDREN/STUDENTS,REVENUE
Walsall Council,http://opendatacommunities.org/id/metropolitan-district-council/walsall ,WC157-230,31.12.2023,CHILDRENS,ABC DAY NURSERY (WILLENHALL) LIMITED,01/12/2023,"2,179.30",1265-Early Years Supplementary Grant Expenditure,TRANSFER PAYMENTS,SCHOOLCHILDREN/STUDENTS,REVENUE
Walsall Council,http://opendatacommunities.org/id/metropolitan-district-council/walsall ,WC157-231,31.12.2023,ADULT SOCIAL CARE,REDACTED,07/12/2023,"3,047.80",6541-Direct Payment,THIRD PARTY PAYMENTS,PRIVATE CONTRACTOR,REVENUE
Walsall Council,http://opendatacommunities.org/id/metropolitan-district-council/walsall ,WC157-232,31.12.2023,ADULT SOCIAL CARE,ABILITY HEALTHCARE CANNOCK LTD,14/12/2023,"1,290.00",6541-Domiciliary Care,THIRD PARTY PAYMENTS,PRIVATE CONTRACTOR,REVENUE
Walsall Council,http://opendatacommunities.org/id/metropolitan-district-council/walsall ,WC157-233,31.12.2023,ADULT SOCIAL CARE,ABILITY HEALTHCARE CANNOCK LTD,14/12/2023,272.32,6541-Domiciliary Care,THIRD PARTY PAYMENTS,PRIVATE CONTRACTOR,REVENUE
Walsall Council,http://opendatacommunities.org/id/metropolitan-district-council/walsall ,WC157-234,31.12.2023,ADULT SOCIAL CARE,ABILITY HEALTHCARE CANNOCK LTD,14/12/2023,283.42,6541-Domiciliary Care,THIRD PARTY PAYMENTS,PRIVATE CONTRACTOR,REVENUE
Walsall Council,http://opendatacommunities.org/id/metropolitan-district-council/walsall ,WC157-235,31.12.2023,ADULT SOCIAL CARE,ABILITY HEALTHCARE CANNOCK LTD,14/12/2023,306.36,6541-Domiciliary Care,THIRD PARTY PAYMENTS,PRIVATE CONTRACTOR,REVENUE
Walsall Council,http://opendatacommunities.org/id/metropolitan-district-council/walsall ,WC157-236,31.12.2023,ADULT SOCIAL CARE,ABILITY HEALTHCARE CANNOCK LTD,14/12/2023,272.32,6541-Domiciliary Care,THIRD PARTY PAYMENTS,PRIVATE CONTRACTOR,REVENUE
Walsall Council,http://opendatacommunities.org/id/metropolitan-district-council/walsall ,WC157-237,31.12.2023,ADULT SOCIAL CARE,ABILITY HEALTHCARE CANNOCK LTD,14/12/2023,306.36,6541-Domiciliary Care,THIRD PARTY PAYMENTS,PRIVATE CONTRACTOR,REVENUE
Walsall Council,http://opendatacommunities.org/id/metropolitan-district-council/walsall ,WC157-238,31.12.2023,ADULT SOCIAL CARE,ABILITY HEALTHCARE CANNOCK LTD,14/12/2023,476.56,6541-Domiciliary Care,THIRD PARTY PAYMENTS,PRIVATE CONTRACTOR,REVENUE
Walsall Council,http://opendatacommunities.org/id/metropolitan-district-council/walsall ,WC157-239,31.12.2023,ADULT SOCIAL CARE,ABILITY HEALTHCARE CANNOCK LTD,14/12/2023,272.32,6541-Domiciliary Care,THIRD PARTY PAYMENTS,PRIVATE CONTRACTOR,REVENUE
Walsall Council,http://opendatacommunities.org/id/metropolitan-district-council/walsall ,WC157-240,31.12.2023,ADULT SOCIAL CARE,ABILITY HEALTHCARE CANNOCK LTD,14/12/2023,306.36,6541-Domiciliary Care,THIRD PARTY PAYMENTS,PRIVATE CONTRACTOR,REVENUE
Walsall Council,http://opendatacommunities.org/id/metropolitan-district-council/walsall ,WC157-241,31.12.2023,ADULT SOCIAL CARE,ABILITY HEALTHCARE CANNOCK LTD,14/12/2023,306.36,6541-Domiciliary Care,THIRD PARTY PAYMENTS,PRIVATE CONTRACTOR,REVENUE
Walsall Council,http://opendatacommunities.org/id/metropolitan-district-council/walsall ,WC157-242,31.12.2023,ADULT SOCIAL CARE,ABILITY HEALTHCARE CANNOCK LTD,14/12/2023,272.32,6541-Domiciliary Care,THIRD PARTY PAYMENTS,PRIVATE CONTRACTOR,REVENUE
Walsall Council,http://opendatacommunities.org/id/metropolitan-district-council/walsall ,WC157-243,31.12.2023,ADULT SOCIAL CARE,ABILITY HEALTHCARE CANNOCK LTD,14/12/2023,276.00,6541-Domiciliary Care,THIRD PARTY PAYMENTS,PRIVATE CONTRACTOR,REVENUE
Walsall Council,http://opendatacommunities.org/id/metropolitan-district-council/walsall ,WC157-244,31.12.2023,ADULT SOCIAL CARE,ABILITY HEALTHCARE CANNOCK LTD,14/12/2023,272.32,6541-Domiciliary Care,THIRD PARTY PAYMENTS,PRIVATE CONTRACTOR,REVENUE
Walsall Council,http://opendatacommunities.org/id/metropolitan-district-council/walsall ,WC157-245,31.12.2023,ADULT SOCIAL CARE,ABILITY HEALTHCARE CANNOCK LTD,14/12/2023,272.32,6541-Domiciliary Care,THIRD PARTY PAYMENTS,PRIVATE CONTRACTOR,REVENUE
Walsall Council,http://opendatacommunities.org/id/metropolitan-district-council/walsall ,WC157-246,31.12.2023,ADULT SOCIAL CARE,ABILITY HEALTHCARE CANNOCK LTD,14/12/2023,306.36,6541-Domiciliary Care,THIRD PARTY PAYMENTS,PRIVATE CONTRACTOR,REVENUE
Walsall Council,http://opendatacommunities.org/id/metropolitan-district-council/walsall ,WC157-247,31.12.2023,ADULT SOCIAL CARE,ABILITY HEALTHCARE CANNOCK LTD,14/12/2023,257.60,6541-Domiciliary Care,THIRD PARTY PAYMENTS,PRIVATE CONTRACTOR,REVENUE
Walsall Council,http://opendatacommunities.org/id/metropolitan-district-council/walsall ,WC157-248,31.12.2023,ADULT SOCIAL CARE,ABILITY HEALTHCARE CANNOCK LTD,14/12/2023,452.48,6541-Domiciliary Care,THIRD PARTY PAYMENTS,PRIVATE CONTRACTOR,REVENUE
Walsall Council,http://opendatacommunities.org/id/metropolitan-district-council/walsall ,WC157-249,31.12.2023,ADULT SOCIAL CARE,ABILITY HEALTHCARE CANNOCK LTD,14/12/2023,"2,016.00",6541-Domiciliary Care,THIRD PARTY PAYMENTS,PRIVATE CONTRACTOR,REVENUE
Walsall Council,http://opendatacommunities.org/id/metropolitan-district-council/walsall ,WC157-250,31.12.2023,ADULT SOCIAL CARE,ABILITY HEALTHCARE CANNOCK LTD,14/12/2023,"1,512.00",6541-Domiciliary Care,THIRD PARTY PAYMENTS,PRIVATE CONTRACTOR,REVENUE
Walsall Council,http://opendatacommunities.org/id/metropolitan-district-council/walsall ,WC157-251,31.12.2023,ADULT SOCIAL CARE,ABILITY HEALTHCARE CANNOCK LTD,14/12/2023,"2,025.00",6541-Domiciliary Care,THIRD PARTY PAYMENTS,PRIVATE CONTRACTOR,REVENUE
Walsall Council,http://opendatacommunities.org/id/metropolitan-district-council/walsall ,WC157-252,31.12.2023,ADULT SOCIAL CARE,ABILITY HEALTHCARE CANNOCK LTD,14/12/2023,"2,016.00",6541-Domiciliary Care,THIRD PARTY PAYMENTS,PRIVATE CONTRACTOR,REVENUE
Walsall Council,http://opendatacommunities.org/id/metropolitan-district-council/walsall ,WC157-253,31.12.2023,ADULT SOCIAL CARE,ABILITY HEALTHCARE CANNOCK LTD,14/12/2023,"1,134.00",6541-Domiciliary Care,THIRD PARTY PAYMENTS,PRIVATE CONTRACTOR,REVENUE
Walsall Council,http://opendatacommunities.org/id/metropolitan-district-council/walsall ,WC157-254,31.12.2023,ADULT SOCIAL CARE,ABILITY HEALTHCARE CANNOCK LTD,14/12/2023,"2,496.00",6541-Domiciliary Care,THIRD PARTY PAYMENTS,PRIVATE CONTRACTOR,REVENUE
Walsall Council,http://opendatacommunities.org/id/metropolitan-district-council/walsall ,WC157-255,31.12.2023,ADULT SOCIAL CARE,ABILITY HEALTHCARE CANNOCK LTD,14/12/2023,"1,404.00",6541-Domiciliary Care,THIRD PARTY PAYMENTS,PRIVATE CONTRACTOR,REVENUE
Walsall Council,http://opendatacommunities.org/id/metropolitan-district-council/walsall ,WC157-256,31.12.2023,ADULT SOCIAL CARE,ABILITY HEALTHCARE CANNOCK LTD,14/12/2023,"3,528.00",6541-Domiciliary Care,THIRD PARTY PAYMENTS,PRIVATE CONTRACTOR,REVENUE
Walsall Council,http://opendatacommunities.org/id/metropolitan-district-council/walsall ,WC157-257,31.12.2023,ADULT SOCIAL CARE,ABILITY HEALTHCARE CANNOCK LTD,14/12/2023,"2,268.00",6541-Domiciliary Care,THIRD PARTY PAYMENTS,PRIVATE CONTRACTOR,REVENUE
Walsall Council,http://opendatacommunities.org/id/metropolitan-district-council/walsall ,WC157-258,31.12.2023,ADULT SOCIAL CARE,ABILITY HEALTHCARE CANNOCK LTD,14/12/2023,"1,980.00",6541-Domiciliary Care,THIRD PARTY PAYMENTS,PRIVATE CONTRACTOR,REVENUE
Walsall Council,http://opendatacommunities.org/id/metropolitan-district-council/walsall ,WC157-259,31.12.2023,ADULT SOCIAL CARE,ABILITY HEALTHCARE CANNOCK LTD,14/12/2023,"1,008.00",6541-Domiciliary Care,THIRD PARTY PAYMENTS,PRIVATE CONTRACTOR,REVENUE
Walsall Council,http://opendatacommunities.org/id/metropolitan-district-council/walsall ,WC157-260,31.12.2023,ADULT SOCIAL CARE,ABILITY HEALTHCARE CANNOCK LTD,14/12/2023,"2,268.00",6541-Domiciliary Care,THIRD PARTY PAYMENTS,PRIVATE CONTRACTOR,REVENUE
Walsall Council,http://opendatacommunities.org/id/metropolitan-district-council/walsall ,WC157-261,31.12.2023,ADULT SOCIAL CARE,ABILITY HEALTHCARE CANNOCK LTD,14/12/2023,"2,772.00",6541-Domiciliary Care,THIRD PARTY PAYMENTS,PRIVATE CONTRACTOR,REVENUE
Walsall Council,http://opendatacommunities.org/id/metropolitan-district-council/walsall ,WC157-262,31.12.2023,ADULT SOCIAL CARE,ABILITY HEALTHCARE CANNOCK LTD,14/12/2023,"2,304.00",6541-Domiciliary Care,THIRD PARTY PAYMENTS,PRIVATE CONTRACTOR,REVENUE
Walsall Council,http://opendatacommunities.org/id/metropolitan-district-council/walsall ,WC157-263,31.12.2023,ADULT SOCIAL CARE,ABILITY HEALTHCARE CANNOCK LTD,14/12/2023,"2,016.00",6541-Domiciliary Care,THIRD PARTY PAYMENTS,PRIVATE CONTRACTOR,REVENUE
Walsall Council,http://opendatacommunities.org/id/metropolitan-district-council/walsall ,WC157-264,31.12.2023,ADULT SOCIAL CARE,ABILITY HEALTHCARE CANNOCK LTD,14/12/2023,"2,016.00",6541-Domiciliary Care,THIRD PARTY PAYMENTS,PRIVATE CONTRACTOR,REVENUE
Walsall Council,http://opendatacommunities.org/id/metropolitan-district-council/walsall ,WC157-265,31.12.2023,ADULT SOCIAL CARE,ABILITY HEALTHCARE CANNOCK LTD,14/12/2023,"1,662.00",6541-Domiciliary Care,THIRD PARTY PAYMENTS,PRIVATE CONTRACTOR,REVENUE
Walsall Council,http://opendatacommunities.org/id/metropolitan-district-council/walsall ,WC157-266,31.12.2023,ADULT SOCIAL CARE,ABILITY HEALTHCARE CANNOCK LTD,14/12/2023,"2,268.00",6541-Domiciliary Care,THIRD PARTY PAYMENTS,PRIVATE CONTRACTOR,REVENUE
Walsall Council,http://opendatacommunities.org/id/metropolitan-district-council/walsall ,WC157-267,31.12.2023,ADULT SOCIAL CARE,ABILITY HEALTHCARE CANNOCK LTD,14/12/2023,"2,268.00",6541-Domiciliary Care,THIRD PARTY PAYMENTS,PRIVATE CONTRACTOR,REVENUE
Walsall Council,http://opendatacommunities.org/id/metropolitan-district-council/walsall ,WC157-268,31.12.2023,ADULT SOCIAL CARE,ABILITY HEALTHCARE CANNOCK LTD,14/12/2023,330.00,6541-Domiciliary Care,THIRD PARTY PAYMENTS,PRIVATE CONTRACTOR,REVENUE
Walsall Council,http://opendatacommunities.org/id/metropolitan-district-council/walsall ,WC157-269,31.12.2023,ADULT SOCIAL CARE,ABILITY HEALTHCARE CANNOCK LTD,14/12/2023,"1,764.00",6541-Domiciliary Care,THIRD PARTY PAYMENTS,PRIVATE CONTRACTOR,REVENUE
Walsall Council,http://opendatacommunities.org/id/metropolitan-district-council/walsall ,WC157-270,31.12.2023,ADULT SOCIAL CARE,ABILITY HEALTHCARE CANNOCK LTD,14/12/2023,"1,344.00",6541-Domiciliary Care,THIRD PARTY PAYMENTS,PRIVATE CONTRACTOR,REVENUE
Walsall Council,http://opendatacommunities.org/id/metropolitan-district-council/walsall ,WC157-271,31.12.2023,ADULT SOCIAL CARE,ABILITY HEALTHCARE CANNOCK LTD,14/12/2023,"2,538.00",6541-Domiciliary Care,THIRD PARTY PAYMENTS,PRIVATE CONTRACTOR,REVENUE
Walsall Council,http://opendatacommunities.org/id/metropolitan-district-council/walsall ,WC157-272,31.12.2023,ADULT SOCIAL CARE,ABILITY HEALTHCARE CANNOCK LTD,14/12/2023,"1,773.00",6541-Domiciliary Care,THIRD PARTY PAYMENTS,PRIVATE CONTRACTOR,REVENUE
Walsall Council,http://opendatacommunities.org/id/metropolitan-district-council/walsall ,WC157-273,31.12.2023,ADULT SOCIAL CARE,ABILITY HEALTHCARE CANNOCK LTD,14/12/2023,360.00,6541-Domiciliary Care,THIRD PARTY PAYMENTS,PRIVATE CONTRACTOR,REVENUE
Walsall Council,http://opendatacommunities.org/id/metropolitan-district-council/walsall ,WC157-274,31.12.2023,ADULT SOCIAL CARE,ABILITY HEALTHCARE CANNOCK LTD,14/12/2023,567.00,6541-Domiciliary Care,THIRD PARTY PAYMENTS,PRIVATE CONTRACTOR,REVENUE
Walsall Council,http://opendatacommunities.org/id/metropolitan-district-council/walsall ,WC157-275,31.12.2023,ADULT SOCIAL CARE,ABILITY HEALTHCARE CANNOCK LTD,14/12/2023,"1,701.00",6541-Domiciliary Care,THIRD PARTY PAYMENTS,PRIVATE CONTRACTOR,REVENUE
Walsall Council,http://opendatacommunities.org/id/metropolitan-district-council/walsall ,WC157-276,31.12.2023,ADULT SOCIAL CARE,ABILITY HEALTHCARE CANNOCK LTD,14/12/2023,"1,680.00",6541-Domiciliary Care,THIRD PARTY PAYMENTS,PRIVATE CONTRACTOR,REVENUE
Walsall Council,http://opendatacommunities.org/id/metropolitan-district-council/walsall ,WC157-277,31.12.2023,ADULT SOCIAL CARE,ABILITY HEALTHCARE CANNOCK LTD,14/12/2023,"2,376.00",6541-Domiciliary Care,THIRD PARTY PAYMENTS,PRIVATE CONTRACTOR,REVENUE
Walsall Council,http://opendatacommunities.org/id/metropolitan-district-council/walsall ,WC157-278,31.12.2023,ADULT SOCIAL CARE,ABILITY HEALTHCARE CANNOCK LTD,14/12/2023,"1,800.00",6541-Domiciliary Care,THIRD PARTY PAYMENTS,PRIVATE CONTRACTOR,REVENUE
Walsall Council,http://opendatacommunities.org/id/metropolitan-district-council/walsall ,WC157-279,31.12.2023,ADULT SOCIAL CARE,ABILITY HEALTHCARE CANNOCK LTD,14/12/2023,"1,680.00",6541-Domiciliary Care,THIRD PARTY PAYMENTS,PRIVATE CONTRACTOR,REVENUE
Walsall Council,http://opendatacommunities.org/id/metropolitan-district-council/walsall ,WC157-280,31.12.2023,ADULT SOCIAL CARE,ABILITY HEALTHCARE CANNOCK LTD,14/12/2023,945.00,6541-Domiciliary Care,THIRD PARTY PAYMENTS,PRIVATE CONTRACTOR,REVENUE
Walsall Council,http://opendatacommunities.org/id/metropolitan-district-council/walsall ,WC157-281,31.12.2023,ADULT SOCIAL CARE,ABILITY HEALTHCARE CANNOCK LTD,13/12/2023,"2,268.00",6554-Professional Services-Priv Contractor & Other Agencies,THIRD PARTY PAYMENTS,PRIVATE CONTRACTOR,REVENUE
Walsall Council,http://opendatacommunities.org/id/metropolitan-district-council/walsall ,WC157-282,31.12.2023,ADULT SOCIAL CARE,ABILITY HEALTHCARE CANNOCK LTD,13/12/2023,"1,377.00",6554-Professional Services-Priv Contractor & Other Agencies,THIRD PARTY PAYMENTS,PRIVATE CONTRACTOR,REVENUE
Walsall Council,http://opendatacommunities.org/id/metropolitan-district-council/walsall ,WC157-283,31.12.2023,ADULT SOCIAL CARE,ABILITY HEALTHCARE CANNOCK LTD,13/12/2023,567.00,6554-Professional Services-Priv Contractor & Other Agencies,THIRD PARTY PAYMENTS,PRIVATE CONTRACTOR,REVENUE
Walsall Council,http://opendatacommunities.org/id/metropolitan-district-council/walsall ,WC157-284,31.12.2023,ADULT SOCIAL CARE,ABILITY HEALTHCARE CANNOCK LTD,13/12/2023,"1,377.00",6554-Professional Services-Priv Contractor & Other Agencies,THIRD PARTY PAYMENTS,PRIVATE CONTRACTOR,REVENUE
Walsall Council,http://opendatacommunities.org/id/metropolitan-district-council/walsall ,WC157-285,31.12.2023,CHILDRENS,ABILITY SMART LTD,12/12/2023,"1,156.66",6211-Purchase of Furniture & Equipment,SUPPLIES & SERVICES,EQUIPMENT FURNITURE & MATERIALS,REVENUE
Walsall Council,http://opendatacommunities.org/id/metropolitan-district-council/walsall ,WC157-286,31.12.2023,CHILDRENS,ABLEWELL CARS,04/12/2023,"1,110.00",6241-Hire of Vehicle with Driver,TRANSPORT,DIRECT TRANSPORT COSTS,REVENUE
Walsall Council,http://opendatacommunities.org/id/metropolitan-district-council/walsall ,WC157-287,31.12.2023,CHILDRENS,ABLEWELL CARS,04/12/2023,948.00,6241-Hire of Vehicle with Driver,TRANSPORT,DIRECT TRANSPORT COSTS,REVENUE
Walsall Council,http://opendatacommunities.org/id/metropolitan-district-council/walsall ,WC157-288,31.12.2023,CHILDRENS,ABLEWELL CARS,04/12/2023,"1,262.40",6241-Hire of Vehicle with Driver,TRANSPORT,DIRECT TRANSPORT COSTS,REVENUE
Walsall Council,http://opendatacommunities.org/id/metropolitan-district-council/walsall ,WC157-289,31.12.2023,CHILDRENS,ABLEWELL CARS,04/12/2023,"2,137.50",6241-Hire of Vehicle with Driver,TRANSPORT,DIRECT TRANSPORT COSTS,REVENUE
Walsall Council,http://opendatacommunities.org/id/metropolitan-district-council/walsall ,WC157-290,31.12.2023,CHILDRENS,ABS TAXIS (ALDRIDGE),04/12/2023,"2,271.00",6241-Hire of Vehicle with Driver,TRANSPORT,DIRECT TRANSPORT COSTS,REVENUE
Walsall Council,http://opendatacommunities.org/id/metropolitan-district-council/walsall ,WC157-291,31.12.2023,CHILDRENS,ABS TAXIS (ALDRIDGE),04/12/2023,"1,207.50",6241-Hire of Vehicle with Driver,TRANSPORT,DIRECT TRANSPORT COSTS,REVENUE
Walsall Council,http://opendatacommunities.org/id/metropolitan-district-council/walsall ,WC157-292,31.12.2023,CHILDRENS,ABS TAXIS (ALDRIDGE),04/12/2023,"1,381.80",6241-Hire of Vehicle with Driver,TRANSPORT,DIRECT TRANSPORT COSTS,REVENUE
Walsall Council,http://opendatacommunities.org/id/metropolitan-district-council/walsall ,WC157-293,31.12.2023,ADULT SOCIAL CARE,ABSOLUTE CARE HOMES (CENTRAL) LTD,19/12/2023,"31,214.28",6541-Nursing EMI,THIRD PARTY PAYMENTS,PRIVATE CONTRACTOR,REVENUE
Walsall Council,http://opendatacommunities.org/id/metropolitan-district-council/walsall ,WC157-294,31.12.2023,ADULT SOCIAL CARE,ABSOLUTE HEALTHCARE SWAN HOUSE LTD,19/12/2023,"2,413.36",6541-Residential EMI,THIRD PARTY PAYMENTS,PRIVATE CONTRACTOR,REVENUE
Walsall Council,http://opendatacommunities.org/id/metropolitan-district-council/walsall ,WC157-295,31.12.2023,ADULT SOCIAL CARE,ABSOLUTE HEALTHCARE SWAN HOUSE LTD,19/12/2023,"2,277.32",6541-Residential,THIRD PARTY PAYMENTS,PRIVATE CONTRACTOR,REVENUE
Walsall Council,http://opendatacommunities.org/id/metropolitan-district-council/walsall ,WC157-296,31.12.2023,ADULT SOCIAL CARE,ABSOLUTE HEALTHCARE SWAN HOUSE LTD,19/12/2023,"2,137.32",6541-Residential,THIRD PARTY PAYMENTS,PRIVATE CONTRACTOR,REVENUE
Walsall Council,http://opendatacommunities.org/id/metropolitan-district-council/walsall ,WC157-297,31.12.2023,ADULT SOCIAL CARE,ABSOLUTE HEALTHCARE SWAN HOUSE LTD,19/12/2023,"2,137.32",6541-Residential,THIRD PARTY PAYMENTS,PRIVATE CONTRACTOR,REVENUE
Walsall Council,http://opendatacommunities.org/id/metropolitan-district-council/walsall ,WC157-298,31.12.2023,ADULT SOCIAL CARE,ABSOLUTE HEALTHCARE SWAN HOUSE LTD,19/12/2023,"3,048.96",6541-Nursing,THIRD PARTY PAYMENTS,PRIVATE CONTRACTOR,REVENUE
Walsall Council,http://opendatacommunities.org/id/metropolitan-district-council/walsall ,WC157-299,31.12.2023,ADULT SOCIAL CARE,ABSOLUTE HEALTHCARE SWAN HOUSE LTD,19/12/2023,"3,336.92",6541-Nursing EMI,THIRD PARTY PAYMENTS,PRIVATE CONTRACTOR,REVENUE
Walsall Council,http://opendatacommunities.org/id/metropolitan-district-council/walsall ,WC157-300,31.12.2023,ADULT SOCIAL CARE,ABSOLUTE HEALTHCARE SWAN HOUSE LTD,19/12/2023,"3,600.00",6541-Residential,THIRD PARTY PAYMENTS,PRIVATE CONTRACTOR,REVENUE
Walsall Council,http://opendatacommunities.org/id/metropolitan-district-council/walsall ,WC157-301,31.12.2023,ADULT SOCIAL CARE,ABSOLUTE HEALTHCARE SWAN HOUSE LTD,19/12/2023,"2,413.36",6541-Residential EMI,THIRD PARTY PAYMENTS,PRIVATE CONTRACTOR,REVENUE
Walsall Council,http://opendatacommunities.org/id/metropolitan-district-council/walsall ,WC157-302,31.12.2023,ADULT SOCIAL CARE,ABSOLUTE HEALTHCARE SWAN HOUSE LTD,19/12/2023,"2,413.36",6541-Residential EMI,THIRD PARTY PAYMENTS,PRIVATE CONTRACTOR,REVENUE
Walsall Council,http://opendatacommunities.org/id/metropolitan-district-council/walsall ,WC157-303,31.12.2023,ADULT SOCIAL CARE,ABSOLUTE HEALTHCARE SWAN HOUSE LTD,19/12/2023,"4,000.00",6541-Nursing EMI,THIRD PARTY PAYMENTS,PRIVATE CONTRACTOR,REVENUE
Walsall Council,http://opendatacommunities.org/id/metropolitan-district-council/walsall ,WC157-304,31.12.2023,ADULT SOCIAL CARE,ABSOLUTE HEALTHCARE SWAN HOUSE LTD,19/12/2023,"4,800.00",6541-Residential,THIRD PARTY PAYMENTS,PRIVATE CONTRACTOR,REVENUE
Walsall Council,http://opendatacommunities.org/id/metropolitan-district-council/walsall ,WC157-305,31.12.2023,ADULT SOCIAL CARE,ABSOLUTE HEALTHCARE SWAN HOUSE LTD,19/12/2023,"1,100.00",6554-Professional Services-Priv Contractor & Other Agencies,THIRD PARTY PAYMENTS,PRIVATE CONTRACTOR,REVENUE
Walsall Council,http://opendatacommunities.org/id/metropolitan-district-council/walsall ,WC157-306,31.12.2023,ADULT SOCIAL CARE,ABSOLUTE HEALTHCARE SWAN HOUSE LTD,19/12/2023,942.86,6554-Professional Services-Priv Contractor & Other Agencies,THIRD PARTY PAYMENTS,PRIVATE CONTRACTOR,REVENUE
Walsall Council,http://opendatacommunities.org/id/metropolitan-district-council/walsall ,WC157-307,31.12.2023,ADULT SOCIAL CARE,ABSOLUTE HEALTHCARE SWAN HOUSE LTD,19/12/2023,"2,137.32",6541-Residential,THIRD PARTY PAYMENTS,PRIVATE CONTRACTOR,REVENUE
Walsall Council,http://opendatacommunities.org/id/metropolitan-district-council/walsall ,WC157-308,31.12.2023,ADULT SOCIAL CARE,ABSOLUTE HEALTHCARE SWAN HOUSE LTD,19/12/2023,"2,137.32",6541-Residential,THIRD PARTY PAYMENTS,PRIVATE CONTRACTOR,REVENUE
Walsall Council,http://opendatacommunities.org/id/metropolitan-district-council/walsall ,WC157-309,31.12.2023,ADULT SOCIAL CARE,ABSOLUTE HEALTHCARE SWAN HOUSE LTD,19/12/2023,"5,240.48",6541-Nursing EMI,THIRD PARTY PAYMENTS,PRIVATE CONTRACTOR,REVENUE
Walsall Council,http://opendatacommunities.org/id/metropolitan-district-council/walsall ,WC157-310,31.12.2023,ADULT SOCIAL CARE,ABSOLUTE HEALTHCARE SWAN HOUSE LTD,19/12/2023,"3,411.43",6554-Professional Services-Priv Contractor & Other Agencies,THIRD PARTY PAYMENTS,PRIVATE CONTRACTOR,REVENUE
Walsall Council,http://opendatacommunities.org/id/metropolitan-district-council/walsall ,WC157-311,31.12.2023,ADULT SOCIAL CARE,ABSOLUTE HEALTHCARE SWAN HOUSE LTD,19/12/2023,"1,421.43",6554-Professional Services-Priv Contractor & Other Agencies,THIRD PARTY PAYMENTS,PRIVATE CONTRACTOR,REVENUE
Walsall Council,http://opendatacommunities.org/id/metropolitan-district-council/walsall ,WC157-312,31.12.2023,ADULT SOCIAL CARE,ABSOLUTE HEALTHCARE SWAN HOUSE LTD,19/12/2023,"2,413.36",6541-Residential EMI,THIRD PARTY PAYMENTS,PRIVATE CONTRACTOR,REVENUE
Walsall Council,http://opendatacommunities.org/id/metropolitan-district-council/walsall ,WC157-313,31.12.2023,ADULT SOCIAL CARE,ABSOLUTE HEALTHCARE SWAN HOUSE LTD,19/12/2023,"2,413.36",6541-Residential EMI,THIRD PARTY PAYMENTS,PRIVATE CONTRACTOR,REVENUE
Walsall Council,http://opendatacommunities.org/id/metropolitan-district-council/walsall ,WC157-314,31.12.2023,ADULT SOCIAL CARE,ABSOLUTE HEALTHCARE SWAN HOUSE LTD,19/12/2023,"3,400.00",6541-Residential EMI,THIRD PARTY PAYMENTS,PRIVATE CONTRACTOR,REVENUE
Walsall Council,http://opendatacommunities.org/id/metropolitan-district-council/walsall ,WC157-315,31.12.2023,ADULT SOCIAL CARE,ABSOLUTE HEALTHCARE SWAN HOUSE LTD,19/12/2023,"3,571.43",6554-Professional Services-Priv Contractor & Other Agencies,THIRD PARTY PAYMENTS,PRIVATE CONTRACTOR,REVENUE
Walsall Council,http://opendatacommunities.org/id/metropolitan-district-council/walsall ,WC157-316,31.12.2023,ADULT SOCIAL CARE,ABSOLUTE HEALTHCARE SWAN HOUSE LTD,19/12/2023,"2,857.14",6554-Professional Services-Priv Contractor & Other Agencies,THIRD PARTY PAYMENTS,PRIVATE CONTRACTOR,REVENUE
Walsall Council,http://opendatacommunities.org/id/metropolitan-district-council/walsall ,WC157-317,31.12.2023,ADULT SOCIAL CARE,ABSOLUTE HEALTHCARE SWAN HOUSE LTD,19/12/2023,"2,000.00",6554-Professional Services-Priv Contractor & Other Agencies,THIRD PARTY PAYMENTS,PRIVATE CONTRACTOR,REVENUE
Walsall Council,http://opendatacommunities.org/id/metropolitan-district-council/walsall ,WC157-318,31.12.2023,ADULT SOCIAL CARE,ABSOLUTE HEALTHCARE SWAN HOUSE LTD,19/12/2023,"4,056.00",6541-Residential,THIRD PARTY PAYMENTS,PRIVATE CONTRACTOR,REVENUE
Walsall Council,http://opendatacommunities.org/id/metropolitan-district-council/walsall ,WC157-319,31.12.2023,ADULT SOCIAL CARE,ABSOLUTE HEALTHCARE SWAN HOUSE LTD,19/12/2023,285.71,6554-Professional Services-Priv Contractor & Other Agencies,THIRD PARTY PAYMENTS,PRIVATE CONTRACTOR,REVENUE
Walsall Council,http://opendatacommunities.org/id/metropolitan-district-council/walsall ,WC157-320,31.12.2023,CHILDRENS,ABU BAKR NURSERY,14/12/2023,495.90,1184-Other-Grants to Other Orgs,SUPPLIES & SERVICES,GRANTS (EXP) & SUBSCRIPTIONS,REVENUE
Walsall Council,http://opendatacommunities.org/id/metropolitan-district-council/walsall ,WC157-321,31.12.2023,CHILDRENS,ABU BAKR NURSERY,01/12/2023,"6,938.80",1265-Early Years Supplementary Grant Expenditure,TRANSFER PAYMENTS,SCHOOLCHILDREN/STUDENTS,REVENUE
Walsall Council,http://opendatacommunities.org/id/metropolitan-district-council/walsall ,WC157-322,31.12.2023,CHILDRENS,ABU BAKR NURSERY,01/12/2023,"2,931.08",1265-Early Years Supplementary Grant Expenditure,TRANSFER PAYMENTS,SCHOOLCHILDREN/STUDENTS,REVENUE
Walsall Council,http://opendatacommunities.org/id/metropolitan-district-council/walsall ,WC157-323,31.12.2023,CHILDRENS,ABU BAKR TRUST,20/12/2023,"5,817.46",1220-Top Up Funding -Grants to Schools,SUPPLIES & SERVICES,GRANTS (EXP) & SUBSCRIPTIONS,REVENUE
Walsall Council,http://opendatacommunities.org/id/metropolitan-district-council/walsall ,WC157-324,31.12.2023,CHILDRENS,ACCALIA CARE SERVICES LTD,22/12/2023,"21,160.00",6223-External Residential Care-Oth Agency Provision,THIRD PARTY PAYMENTS,PRIVATE CONTRACTOR,REVENUE
Walsall Council,http://opendatacommunities.org/id/metropolitan-district-council/walsall ,WC157-325,31.12.2023,CHILDRENS,ACCEPTING BEHAVIOUR LTD,15/12/2023,"1,040.00",1220-Professional Fees & Services,SUPPLIES & SERVICES,SERVICES,REVENUE
Walsall Council,http://opendatacommunities.org/id/metropolitan-district-council/walsall ,WC157-326,31.12.2023,ADULT SOCIAL CARE,ACCESS UK LTD ,15/12/2023,"7,023.00",6551-Professional Fees & Services,SUPPLIES & SERVICES,SERVICES,REVENUE
Walsall Council,http://opendatacommunities.org/id/metropolitan-district-council/walsall ,WC157-327,31.12.2023,ADULT SOCIAL CARE,ACCESS UK LTD ,08/12/2023,"18,315.00",6551-Professional Fees & Services,SUPPLIES & SERVICES,SERVICES,REVENUE
Walsall Council,http://opendatacommunities.org/id/metropolitan-district-council/walsall ,WC157-328,31.12.2023,ADULT SOCIAL CARE,ACCORD HOUSING ASSOCIATION LIMITED - HOBS MEADOW,19/12/2023,"4,776.84",6541-Residential,THIRD PARTY PAYMENTS,PRIVATE CONTRACTOR,REVENUE
Walsall Council,http://opendatacommunities.org/id/metropolitan-district-council/walsall ,WC157-329,31.12.2023,ADULT SOCIAL CARE,ACCORD HOUSING ASSOCIATION LIMITED - HOBS MEADOW,19/12/2023,"4,776.84",6541-Residential,THIRD PARTY PAYMENTS,PRIVATE CONTRACTOR,REVENUE
Walsall Council,http://opendatacommunities.org/id/metropolitan-district-council/walsall ,WC157-330,31.12.2023,ADULT SOCIAL CARE,ACCORD HOUSING ASSOCIATION LIMITED - HOBS MEADOW,19/12/2023,"4,776.84",6541-Residential,THIRD PARTY PAYMENTS,PRIVATE CONTRACTOR,REVENUE
Walsall Council,http://opendatacommunities.org/id/metropolitan-district-council/walsall ,WC157-331,31.12.2023,ADULT SOCIAL CARE,ACCORD HOUSING ASSOCIATION LIMITED - HOBS MEADOW,19/12/2023,"4,776.84",6541-Residential,THIRD PARTY PAYMENTS,PRIVATE CONTRACTOR,REVENUE
Walsall Council,http://opendatacommunities.org/id/metropolitan-district-council/walsall ,WC157-332,31.12.2023,CHILDRENS,ACE CARS & MINIBUSES LTD,04/12/2023,"1,498.00",6241-Hire of Vehicle with Driver,TRANSPORT,DIRECT TRANSPORT COSTS,REVENUE
Walsall Council,http://opendatacommunities.org/id/metropolitan-district-council/walsall ,WC157-333,31.12.2023,CHILDRENS,ACE CARS & MINIBUSES LTD,04/12/2023,"1,498.00",6241-Hire of Vehicle with Driver,TRANSPORT,DIRECT TRANSPORT COSTS,REVENUE
Walsall Council,http://opendatacommunities.org/id/metropolitan-district-council/walsall ,WC157-334,31.12.2023,CHILDRENS,ACE CARS & MINIBUSES LTD,04/12/2023,"1,498.00",6241-Hire of Vehicle with Driver,TRANSPORT,DIRECT TRANSPORT COSTS,REVENUE
Walsall Council,http://opendatacommunities.org/id/metropolitan-district-council/walsall ,WC157-335,31.12.2023,CHILDRENS,ACE CARS & MINIBUSES LTD,04/12/2023,"1,498.00",6241-Hire of Vehicle with Driver,TRANSPORT,DIRECT TRANSPORT COSTS,REVENUE
Walsall Council,http://opendatacommunities.org/id/metropolitan-district-council/walsall ,WC157-336,31.12.2023,CHILDRENS,ACE CARS & MINIBUSES LTD,04/12/2023,"1,652.00",6241-Hire of Vehicle with Driver,TRANSPORT,DIRECT TRANSPORT COSTS,REVENUE
Walsall Council,http://opendatacommunities.org/id/metropolitan-district-council/walsall ,WC157-337,31.12.2023,CHILDRENS,ACE CARS & MINIBUSES LTD,04/12/2023,"2,219.00",6241-Hire of Vehicle with Driver,TRANSPORT,DIRECT TRANSPORT COSTS,REVENUE
Walsall Council,http://opendatacommunities.org/id/metropolitan-district-council/walsall ,WC157-338,31.12.2023,CHILDRENS,ACE CARS & MINIBUSES LTD,04/12/2023,"2,373.00",6241-Hire of Vehicle with Driver,TRANSPORT,DIRECT TRANSPORT COSTS,REVENUE
Walsall Council,http://opendatacommunities.org/id/metropolitan-district-council/walsall ,WC157-339,31.12.2023,CHILDRENS,ACE CARS & MINIBUSES LTD,04/12/2023,"1,673.00",6241-Hire of Vehicle with Driver,TRANSPORT,DIRECT TRANSPORT COSTS,REVENUE
Walsall Council,http://opendatacommunities.org/id/metropolitan-district-council/walsall ,WC157-340,31.12.2023,CHILDRENS,ACE CARS & MINIBUSES LTD,04/12/2023,"1,840.30",6241-Hire of Vehicle with Driver,TRANSPORT,DIRECT TRANSPORT COSTS,REVENUE
Walsall Council,http://opendatacommunities.org/id/metropolitan-district-council/walsall ,WC157-341,31.12.2023,CHILDRENS,ACE CARS & MINIBUSES LTD,04/12/2023,"2,041.50",6241-Hire of Vehicle with Driver,TRANSPORT,DIRECT TRANSPORT COSTS,REVENUE
Walsall Council,http://opendatacommunities.org/id/metropolitan-district-council/walsall ,WC157-342,31.12.2023,CHILDRENS,ACE CARS & MINIBUSES LTD,04/12/2023,"2,041.50",6241-Hire of Vehicle with Driver,TRANSPORT,DIRECT TRANSPORT COSTS,REVENUE
Walsall Council,http://opendatacommunities.org/id/metropolitan-district-council/walsall ,WC157-343,31.12.2023,CHILDRENS,ACE CARS & MINIBUSES LTD,04/12/2023,"1,605.00",6241-Hire of Vehicle with Driver,TRANSPORT,DIRECT TRANSPORT COSTS,REVENUE
Walsall Council,http://opendatacommunities.org/id/metropolitan-district-council/walsall ,WC157-344,31.12.2023,CHILDRENS,ACE CARS & MINIBUSES LTD,04/12/2023,"1,498.00",6241-Hire of Vehicle with Driver,TRANSPORT,DIRECT TRANSPORT COSTS,REVENUE
Walsall Council,http://opendatacommunities.org/id/metropolitan-district-council/walsall ,WC157-345,31.12.2023,CHILDRENS,ACE CARS & MINIBUSES LTD,04/12/2023,"1,652.00",6241-Hire of Vehicle with Driver,TRANSPORT,DIRECT TRANSPORT COSTS,REVENUE
Walsall Council,http://opendatacommunities.org/id/metropolitan-district-council/walsall ,WC157-346,31.12.2023,CHILDRENS,ACE CARS & MINIBUSES LTD,04/12/2023,"2,375.66",6241-Hire of Vehicle with Driver,TRANSPORT,DIRECT TRANSPORT COSTS,REVENUE
Walsall Council,http://opendatacommunities.org/id/metropolitan-district-council/walsall ,WC157-347,31.12.2023,CHILDRENS,ACE CARS & MINIBUSES LTD,04/12/2023,"1,673.00",6241-Hire of Vehicle with Driver,TRANSPORT,DIRECT TRANSPORT COSTS,REVENUE
Walsall Council,http://opendatacommunities.org/id/metropolitan-district-council/walsall ,WC157-348,31.12.2023,CHILDRENS,ACE CARS & MINIBUSES LTD,04/12/2023,"1,596.00",6241-Hire of Vehicle with Driver,TRANSPORT,DIRECT TRANSPORT COSTS,REVENUE
Walsall Council,http://opendatacommunities.org/id/metropolitan-district-council/walsall ,WC157-349,31.12.2023,CHILDRENS,ACE CARS & MINIBUSES LTD,04/12/2023,"1,498.00",6241-Hire of Vehicle with Driver,TRANSPORT,DIRECT TRANSPORT COSTS,REVENUE
Walsall Council,http://opendatacommunities.org/id/metropolitan-district-council/walsall ,WC157-350,31.12.2023,CHILDRENS,ACE CARS & MINIBUSES LTD,04/12/2023,"2,973.60",6241-Hire of Vehicle with Driver,TRANSPORT,DIRECT TRANSPORT COSTS,REVENUE
Walsall Council,http://opendatacommunities.org/id/metropolitan-district-council/walsall ,WC157-351,31.12.2023,CHILDRENS,ACE CARS & MINIBUSES LTD,04/12/2023,"1,498.00",6241-Hire of Vehicle with Driver,TRANSPORT,DIRECT TRANSPORT COSTS,REVENUE
Walsall Council,http://opendatacommunities.org/id/metropolitan-district-council/walsall ,WC157-352,31.12.2023,CHILDRENS,ACE CARS & MINIBUSES LTD,04/12/2023,"1,498.00",6241-Hire of Vehicle with Driver,TRANSPORT,DIRECT TRANSPORT COSTS,REVENUE
Walsall Council,http://opendatacommunities.org/id/metropolitan-district-council/walsall ,WC157-353,31.12.2023,CHILDRENS,ACE CARS & MINIBUSES LTD,04/12/2023,"1,498.00",6241-Hire of Vehicle with Driver,TRANSPORT,DIRECT TRANSPORT COSTS,REVENUE
Walsall Council,http://opendatacommunities.org/id/metropolitan-district-council/walsall ,WC157-354,31.12.2023,CHILDRENS,ACE CARS & MINIBUSES LTD,04/12/2023,"1,652.00",6241-Hire of Vehicle with Driver,TRANSPORT,DIRECT TRANSPORT COSTS,REVENUE
Walsall Council,http://opendatacommunities.org/id/metropolitan-district-council/walsall ,WC157-355,31.12.2023,CHILDRENS,ACE CARS & MINIBUSES LTD,04/12/2023,"2,041.50",6241-Hire of Vehicle with Driver,TRANSPORT,DIRECT TRANSPORT COSTS,REVENUE
Walsall Council,http://opendatacommunities.org/id/metropolitan-district-council/walsall ,WC157-356,31.12.2023,CHILDRENS,ACE CARS & MINIBUSES LTD,04/12/2023,"2,041.50",6241-Hire of Vehicle with Driver,TRANSPORT,DIRECT TRANSPORT COSTS,REVENUE
Walsall Council,http://opendatacommunities.org/id/metropolitan-district-council/walsall ,WC157-357,31.12.2023,CHILDRENS,ACE CARS & MINIBUSES LTD,04/12/2023,"2,041.50",6241-Hire of Vehicle with Driver,TRANSPORT,DIRECT TRANSPORT COSTS,REVENUE
Walsall Council,http://opendatacommunities.org/id/metropolitan-district-council/walsall ,WC157-358,31.12.2023,CHILDRENS,ACE CARS & MINIBUSES LTD,04/12/2023,"2,693.60",6241-Hire of Vehicle with Driver,TRANSPORT,DIRECT TRANSPORT COSTS,REVENUE
Walsall Council,http://opendatacommunities.org/id/metropolitan-district-council/walsall ,WC157-359,31.12.2023,CHILDRENS,ACE CARS & MINIBUSES LTD,04/12/2023,"1,498.00",6241-Hire of Vehicle with Driver,TRANSPORT,DIRECT TRANSPORT COSTS,REVENUE
Walsall Council,http://opendatacommunities.org/id/metropolitan-district-council/walsall ,WC157-360,31.12.2023,CHILDRENS,ACE CARS & MINIBUSES LTD,04/12/2023,"1,652.00",6241-Hire of Vehicle with Driver,TRANSPORT,DIRECT TRANSPORT COSTS,REVENUE
Walsall Council,http://opendatacommunities.org/id/metropolitan-district-council/walsall ,WC157-361,31.12.2023,CHILDRENS,ACE CARS & MINIBUSES LTD,04/12/2023,"1,883.28",6241-Hire of Vehicle with Driver,TRANSPORT,DIRECT TRANSPORT COSTS,REVENUE
Walsall Council,http://opendatacommunities.org/id/metropolitan-district-council/walsall ,WC157-362,31.12.2023,CHILDRENS,ACE CARS & MINIBUSES LTD,04/12/2023,"1,751.12",6241-Hire of Vehicle with Driver,TRANSPORT,DIRECT TRANSPORT COSTS,REVENUE
Walsall Council,http://opendatacommunities.org/id/metropolitan-district-council/walsall ,WC157-363,31.12.2023,CHILDRENS,ACE CARS & MINIBUSES LTD,04/12/2023,"1,596.00",6241-Hire of Vehicle with Driver,TRANSPORT,DIRECT TRANSPORT COSTS,REVENUE
Walsall Council,http://opendatacommunities.org/id/metropolitan-district-council/walsall ,WC157-364,31.12.2023,CHILDRENS,ACE CARS & MINIBUSES LTD,04/12/2023,"1,652.00",6241-Hire of Vehicle with Driver,TRANSPORT,DIRECT TRANSPORT COSTS,REVENUE
Walsall Council,http://opendatacommunities.org/id/metropolitan-district-council/walsall ,WC157-365,31.12.2023,CHILDRENS,ACE CARS & MINIBUSES LTD,04/12/2023,"2,837.85",6241-Hire of Vehicle with Driver,TRANSPORT,DIRECT TRANSPORT COSTS,REVENUE
Walsall Council,http://opendatacommunities.org/id/metropolitan-district-council/walsall ,WC157-366,31.12.2023,CHILDRENS,ACE CARS & MINIBUSES LTD,04/12/2023,"2,041.50",6241-Hire of Vehicle with Driver,TRANSPORT,DIRECT TRANSPORT COSTS,REVENUE
Walsall Council,http://opendatacommunities.org/id/metropolitan-district-council/walsall ,WC157-367,31.12.2023,CHILDRENS,ACE CARS & MINIBUSES LTD,04/12/2023,"2,306.85",6241-Hire of Vehicle with Driver,TRANSPORT,DIRECT TRANSPORT COSTS,REVENUE
Walsall Council,http://opendatacommunities.org/id/metropolitan-district-council/walsall ,WC157-368,31.12.2023,CHILDRENS,ACE CARS & MINIBUSES LTD,04/12/2023,"2,180.64",6241-Hire of Vehicle with Driver,TRANSPORT,DIRECT TRANSPORT COSTS,REVENUE
Walsall Council,http://opendatacommunities.org/id/metropolitan-district-council/walsall ,WC157-369,31.12.2023,CHILDRENS,ACE CARS & MINIBUSES LTD,04/12/2023,"1,596.00",6241-Hire of Vehicle with Driver,TRANSPORT,DIRECT TRANSPORT COSTS,REVENUE
Walsall Council,http://opendatacommunities.org/id/metropolitan-district-council/walsall ,WC157-370,31.12.2023,CHILDRENS,ACE CARS & MINIBUSES LTD,04/12/2023,"1,596.00",6241-Hire of Vehicle with Driver,TRANSPORT,DIRECT TRANSPORT COSTS,REVENUE
Walsall Council,http://opendatacommunities.org/id/metropolitan-district-council/walsall ,WC157-371,31.12.2023,CHILDRENS,ACE CARS & MINIBUSES LTD,04/12/2023,"1,673.00",6241-Hire of Vehicle with Driver,TRANSPORT,DIRECT TRANSPORT COSTS,REVENUE
Walsall Council,http://opendatacommunities.org/id/metropolitan-district-council/walsall ,WC157-372,31.12.2023,CHILDRENS,ACE COACHING LIMITED,18/12/2023,"3,648.00",6211-Professional Fees & Services,SUPPLIES & SERVICES,SERVICES,REVENUE
Walsall Council,http://opendatacommunities.org/id/metropolitan-district-council/walsall ,WC157-373,31.12.2023,ADULT SOCIAL CARE,ACEPAY LTD (COTTAGE NUR HOME),19/12/2023,"2,505.36",6541-Nursing,THIRD PARTY PAYMENTS,PRIVATE CONTRACTOR,REVENUE
Walsall Council,http://opendatacommunities.org/id/metropolitan-district-council/walsall ,WC157-374,31.12.2023,ADULT SOCIAL CARE,ACEPAY LTD (COTTAGE NUR HOME),19/12/2023,"2,505.36",6541-Nursing,THIRD PARTY PAYMENTS,PRIVATE CONTRACTOR,REVENUE
Walsall Council,http://opendatacommunities.org/id/metropolitan-district-council/walsall ,WC157-375,31.12.2023,ADULT SOCIAL CARE,ACEPAY LTD (COTTAGE NUR HOME),19/12/2023,"2,819.08",6541-Nursing EMI,THIRD PARTY PAYMENTS,PRIVATE CONTRACTOR,REVENUE
Walsall Council,http://opendatacommunities.org/id/metropolitan-district-council/walsall ,WC157-376,31.12.2023,ADULT SOCIAL CARE,ACEPAY LTD (COTTAGE NUR HOME),19/12/2023,"2,413.36",6541-Residential EMI,THIRD PARTY PAYMENTS,PRIVATE CONTRACTOR,REVENUE
Walsall Council,http://opendatacommunities.org/id/metropolitan-district-council/walsall ,WC157-377,31.12.2023,ADULT SOCIAL CARE,ACEPAY LTD (COTTAGE NUR HOME),19/12/2023,"2,505.36",6541-Nursing,THIRD PARTY PAYMENTS,PRIVATE CONTRACTOR,REVENUE
Walsall Council,http://opendatacommunities.org/id/metropolitan-district-council/walsall ,WC157-378,31.12.2023,ADULT SOCIAL CARE,ACEPAY LTD (COTTAGE NUR HOME),19/12/2023,"2,505.36",6541-Nursing,THIRD PARTY PAYMENTS,PRIVATE CONTRACTOR,REVENUE
Walsall Council,http://opendatacommunities.org/id/metropolitan-district-council/walsall ,WC157-379,31.12.2023,ADULT SOCIAL CARE,ACEPAY LTD (COTTAGE NUR HOME),19/12/2023,"2,505.36",6541-Nursing,THIRD PARTY PAYMENTS,PRIVATE CONTRACTOR,REVENUE
Walsall Council,http://opendatacommunities.org/id/metropolitan-district-council/walsall ,WC157-380,31.12.2023,ADULT SOCIAL CARE,ACEPAY LTD (COTTAGE NUR HOME),19/12/2023,"2,505.36",6541-Nursing,THIRD PARTY PAYMENTS,PRIVATE CONTRACTOR,REVENUE
Walsall Council,http://opendatacommunities.org/id/metropolitan-district-council/walsall ,WC157-381,31.12.2023,ADULT SOCIAL CARE,ACEPAY LTD (COTTAGE NUR HOME),19/12/2023,"2,505.36",6541-Nursing,THIRD PARTY PAYMENTS,PRIVATE CONTRACTOR,REVENUE
Walsall Council,http://opendatacommunities.org/id/metropolitan-district-council/walsall ,WC157-382,31.12.2023,ADULT SOCIAL CARE,ACEPAY LTD (COTTAGE NUR HOME),19/12/2023,"2,819.08",6541-Nursing EMI,THIRD PARTY PAYMENTS,PRIVATE CONTRACTOR,REVENUE
Walsall Council,http://opendatacommunities.org/id/metropolitan-district-council/walsall ,WC157-383,31.12.2023,ADULT SOCIAL CARE,ACEPAY LTD (COTTAGE NUR HOME),19/12/2023,"2,413.36",6541-Residential EMI,THIRD PARTY PAYMENTS,PRIVATE CONTRACTOR,REVENUE
Walsall Council,http://opendatacommunities.org/id/metropolitan-district-council/walsall ,WC157-384,31.12.2023,ADULT SOCIAL CARE,ACEPAY LTD (COTTAGE NUR HOME),19/12/2023,"2,413.36",6541-Residential EMI,THIRD PARTY PAYMENTS,PRIVATE CONTRACTOR,REVENUE
Walsall Council,http://opendatacommunities.org/id/metropolitan-district-council/walsall ,WC157-385,31.12.2023,ADULT SOCIAL CARE,ACEPAY LTD (COTTAGE NUR HOME),19/12/2023,"2,819.08",6541-Nursing EMI,THIRD PARTY PAYMENTS,PRIVATE CONTRACTOR,REVENUE
Walsall Council,http://opendatacommunities.org/id/metropolitan-district-council/walsall ,WC157-386,31.12.2023,ADULT SOCIAL CARE,ACEPAY LTD (COTTAGE NUR HOME),19/12/2023,"2,505.36",6541-Nursing,THIRD PARTY PAYMENTS,PRIVATE CONTRACTOR,REVENUE
Walsall Council,http://opendatacommunities.org/id/metropolitan-district-council/walsall ,WC157-387,31.12.2023,ADULT SOCIAL CARE,ACEPAY LTD (COTTAGE NUR HOME),19/12/2023,"2,505.36",6541-Nursing,THIRD PARTY PAYMENTS,PRIVATE CONTRACTOR,REVENUE
Walsall Council,http://opendatacommunities.org/id/metropolitan-district-council/walsall ,WC157-388,31.12.2023,ADULT SOCIAL CARE,ACEPAY LTD (COTTAGE NUR HOME),19/12/2023,"3,059.08",6541-Nursing EMI,THIRD PARTY PAYMENTS,PRIVATE CONTRACTOR,REVENUE
Walsall Council,http://opendatacommunities.org/id/metropolitan-district-council/walsall ,WC157-389,31.12.2023,ADULT SOCIAL CARE,ACEPAY LTD (COTTAGE NUR HOME),19/12/2023,447.39,6541-Nursing,THIRD PARTY PAYMENTS,PRIVATE CONTRACTOR,REVENUE
Walsall Council,http://opendatacommunities.org/id/metropolitan-district-council/walsall ,WC157-390,31.12.2023,ADULT SOCIAL CARE,ACEPAY LTD (COTTAGE NUR HOME),19/12/2023,"2,413.36",6541-Residential EMI,THIRD PARTY PAYMENTS,PRIVATE CONTRACTOR,REVENUE
Walsall Council,http://opendatacommunities.org/id/metropolitan-district-council/walsall ,WC157-391,31.12.2023,ADULT SOCIAL CARE,ACEPAY LTD (COTTAGE NUR HOME),19/12/2023,"2,505.36",6541-Nursing,THIRD PARTY PAYMENTS,PRIVATE CONTRACTOR,REVENUE
Walsall Council,http://opendatacommunities.org/id/metropolitan-district-council/walsall ,WC157-392,31.12.2023,ADULT SOCIAL CARE,ACEPAY LTD (COTTAGE NUR HOME),19/12/2023,"2,819.08",6541-Nursing EMI,THIRD PARTY PAYMENTS,PRIVATE CONTRACTOR,REVENUE
Walsall Council,http://opendatacommunities.org/id/metropolitan-district-council/walsall ,WC157-393,31.12.2023,ADULT SOCIAL CARE,ACEPAY LTD (COTTAGE NUR HOME),19/12/2023,"2,819.08",6541-Nursing EMI,THIRD PARTY PAYMENTS,PRIVATE CONTRACTOR,REVENUE
Walsall Council,http://opendatacommunities.org/id/metropolitan-district-council/walsall ,WC157-394,31.12.2023,ADULT SOCIAL CARE,ACEPAY LTD (COTTAGE NUR HOME),19/12/2023,"2,505.36",6541-Nursing,THIRD PARTY PAYMENTS,PRIVATE CONTRACTOR,REVENUE
Walsall Council,http://opendatacommunities.org/id/metropolitan-district-council/walsall ,WC157-395,31.12.2023,ADULT SOCIAL CARE,ACHIEVE TOGETHER LIMITED,19/12/2023,"5,506.08",6541-Residential,THIRD PARTY PAYMENTS,PRIVATE CONTRACTOR,REVENUE
Walsall Council,http://opendatacommunities.org/id/metropolitan-district-council/walsall ,WC157-396,31.12.2023,ADULT SOCIAL CARE,ACHIEVE TOGETHER LIMITED,19/12/2023,"9,178.80",6541-Residential,THIRD PARTY PAYMENTS,PRIVATE CONTRACTOR,REVENUE
Walsall Council,http://opendatacommunities.org/id/metropolitan-district-council/walsall ,WC157-397,31.12.2023,ADULT SOCIAL CARE,ACHIEVE TOGETHER LIMITED,19/12/2023,"3,852.80",6541-Residential,THIRD PARTY PAYMENTS,PRIVATE CONTRACTOR,REVENUE
Walsall Council,http://opendatacommunities.org/id/metropolitan-district-council/walsall ,WC157-398,31.12.2023,ADULT SOCIAL CARE,ACHIEVE TOGETHER LIMITED,19/12/2023,"4,920.72",6541-Residential,THIRD PARTY PAYMENTS,PRIVATE CONTRACTOR,REVENUE
Walsall Council,http://opendatacommunities.org/id/metropolitan-district-council/walsall ,WC157-399,31.12.2023,ADULT SOCIAL CARE,ACHIEVE TOGETHER LIMITED,19/12/2023,"6,572.72",6541-Residential,THIRD PARTY PAYMENTS,PRIVATE CONTRACTOR,REVENUE
Walsall Council,http://opendatacommunities.org/id/metropolitan-district-council/walsall ,WC157-400,31.12.2023,CHILDRENS,ACORN CARE & EDUCATION LTD (SALES),07/12/2023,"16,166.67",1220-Professional Fees & Services,SUPPLIES & SERVICES,SERVICES,REVENUE
Walsall Council,http://opendatacommunities.org/id/metropolitan-district-council/walsall ,WC157-401,31.12.2023,CHILDRENS,ACORN CARE & EDUCATION LTD (SALES),07/12/2023,"6,333.33",1220-Professional Fees & Services,SUPPLIES & SERVICES,SERVICES,REVENUE
Walsall Council,http://opendatacommunities.org/id/metropolitan-district-council/walsall ,WC157-402,31.12.2023,CHILDRENS,ACORN CARE & EDUCATION LTD (SALES),07/12/2023,"19,599.69",1220-Top Up Funding -Grants to Schools,SUPPLIES & SERVICES,GRANTS (EXP) & SUBSCRIPTIONS,REVENUE
Walsall Council,http://opendatacommunities.org/id/metropolitan-district-council/walsall ,WC157-403,31.12.2023,CHILDRENS,ACORN CARE & EDUCATION LTD (SALES),07/12/2023,"17,657.40",1220-Top Up Funding -Grants to Schools,SUPPLIES & SERVICES,GRANTS (EXP) & SUBSCRIPTIONS,REVENUE
Walsall Council,http://opendatacommunities.org/id/metropolitan-district-council/walsall ,WC157-404,31.12.2023,CHILDRENS,ACORN CARE & EDUCATION LTD (SALES),07/12/2023,"17,657.40",1220-Top Up Funding -Grants to Schools,SUPPLIES & SERVICES,GRANTS (EXP) & SUBSCRIPTIONS,REVENUE
Walsall Council,http://opendatacommunities.org/id/metropolitan-district-council/walsall ,WC157-405,31.12.2023,CHILDRENS,ACORN CARE & EDUCATION LTD (SALES),07/12/2023,"18,183.06",1220-Professional Fees & Services,SUPPLIES & SERVICES,SERVICES,REVENUE
Walsall Council,http://opendatacommunities.org/id/metropolitan-district-council/walsall ,WC157-406,31.12.2023,CHILDRENS,ACORN CARE & EDUCATION LTD (SALES),07/12/2023,"24,502.50",1220-Top Up Funding -Grants to Schools,SUPPLIES & SERVICES,GRANTS (EXP) & SUBSCRIPTIONS,REVENUE
Walsall Council,http://opendatacommunities.org/id/metropolitan-district-council/walsall ,WC157-407,31.12.2023,CHILDRENS,ACORN CARE & EDUCATION LTD (SALES),07/12/2023,"29,408.62",1220-Top Up Funding -Grants to Schools,SUPPLIES & SERVICES,GRANTS (EXP) & SUBSCRIPTIONS,REVENUE
Walsall Council,http://opendatacommunities.org/id/metropolitan-district-council/walsall ,WC157-408,31.12.2023,CHILDRENS,ACORN CARE & EDUCATION LTD (SALES),07/12/2023,"26,494.37",1220-Top Up Funding -Grants to Schools,SUPPLIES & SERVICES,GRANTS (EXP) & SUBSCRIPTIONS,REVENUE
Walsall Council,http://opendatacommunities.org/id/metropolitan-district-council/walsall ,WC157-409,31.12.2023,CHILDRENS,ACORN CARE & EDUCATION LTD (SALES),07/12/2023,"17,657.40",1220-Top Up Funding -Grants to Schools,SUPPLIES & SERVICES,GRANTS (EXP) & SUBSCRIPTIONS,REVENUE
Walsall Council,http://opendatacommunities.org/id/metropolitan-district-council/walsall ,WC157-410,31.12.2023,CHILDRENS,ACORN CARE & EDUCATION LTD (SALES),07/12/2023,"19,599.69",1220-Top Up Funding -Grants to Schools,SUPPLIES & SERVICES,GRANTS (EXP) & SUBSCRIPTIONS,REVENUE
Walsall Council,http://opendatacommunities.org/id/metropolitan-district-council/walsall ,WC157-411,31.12.2023,CHILDRENS,ACORN CARE & EDUCATION LTD (SALES),07/12/2023,"19,761.67",1220-Top Up Funding -Grants to Schools,SUPPLIES & SERVICES,GRANTS (EXP) & SUBSCRIPTIONS,REVENUE
Walsall Council,http://opendatacommunities.org/id/metropolitan-district-council/walsall ,WC157-412,31.12.2023,CHILDRENS,ACORN CARE & EDUCATION LTD (SALES),07/12/2023,"17,803.33",1220-Top Up Funding -Grants to Schools,SUPPLIES & SERVICES,GRANTS (EXP) & SUBSCRIPTIONS,REVENUE
Walsall Council,http://opendatacommunities.org/id/metropolitan-district-council/walsall ,WC157-413,31.12.2023,CHILDRENS,ACORN CARE & EDUCATION LTD (SALES),07/12/2023,"24,705.00",1220-Professional Fees & Services,SUPPLIES & SERVICES,SERVICES,REVENUE
Walsall Council,http://opendatacommunities.org/id/metropolitan-district-council/walsall ,WC157-414,31.12.2023,CHILDRENS,ACORN CARE & EDUCATION LTD (SALES),07/12/2023,"19,761.67",1220-Professional Fees & Services,SUPPLIES & SERVICES,SERVICES,REVENUE
Walsall Council,http://opendatacommunities.org/id/metropolitan-district-council/walsall ,WC157-415,31.12.2023,CHILDRENS,ACORN CARE & EDUCATION LTD (SALES),07/12/2023,"17,302.00",1220-Professional Fees & Services,SUPPLIES & SERVICES,SERVICES,REVENUE
Walsall Council,http://opendatacommunities.org/id/metropolitan-district-council/walsall ,WC157-416,31.12.2023,CHILDRENS,ACORN CARE & EDUCATION LTD (SALES),07/12/2023,"22,256.67",1220-Professional Fees & Services,SUPPLIES & SERVICES,SERVICES,REVENUE
Walsall Council,http://opendatacommunities.org/id/metropolitan-district-council/walsall ,WC157-417,31.12.2023,CHILDRENS,ACORN CARE & EDUCATION LTD (SALES),07/12/2023,"15,554.33",1220-Top Up Funding -Grants to Schools,SUPPLIES & SERVICES,GRANTS (EXP) & SUBSCRIPTIONS,REVENUE
Walsall Council,http://opendatacommunities.org/id/metropolitan-district-council/walsall ,WC157-418,31.12.2023,CHILDRENS,ACORN CARE & EDUCATION LTD (SALES),07/12/2023,"25,960.00",1220-Top Up Funding -Grants to Schools,SUPPLIES & SERVICES,GRANTS (EXP) & SUBSCRIPTIONS,REVENUE
Walsall Council,http://opendatacommunities.org/id/metropolitan-district-council/walsall ,WC157-419,31.12.2023,CHILDRENS,ACORN CARE & EDUCATION LTD (SALES),07/12/2023,"17,302.00",1220-Top Up Funding -Grants to Schools,SUPPLIES & SERVICES,GRANTS (EXP) & SUBSCRIPTIONS,REVENUE
Walsall Council,http://opendatacommunities.org/id/metropolitan-district-council/walsall ,WC157-420,31.12.2023,CHILDRENS,ACORN CARE & EDUCATION LTD (SALES),07/12/2023,"26,713.33",1220-Top Up Funding -Grants to Schools,SUPPLIES & SERVICES,GRANTS (EXP) & SUBSCRIPTIONS,REVENUE
Walsall Council,http://opendatacommunities.org/id/metropolitan-district-council/walsall ,WC157-421,31.12.2023,CHILDRENS,ACORN CARE & EDUCATION LTD (SALES),07/12/2023,"25,960.00",1220-Professional Fees & Services,SUPPLIES & SERVICES,SERVICES,REVENUE
Walsall Council,http://opendatacommunities.org/id/metropolitan-district-council/walsall ,WC157-422,31.12.2023,CHILDRENS,ACORN CARE & EDUCATION LTD (SALES),07/12/2023,"26,666.67",1220-Professional Fees & Services,SUPPLIES & SERVICES,SERVICES,REVENUE
Walsall Council,http://opendatacommunities.org/id/metropolitan-district-council/walsall ,WC157-423,31.12.2023,CHILDRENS,ACORN CARE & EDUCATION LTD (SALES),19/12/2023,"21,196.49",1220-Top Up Funding -Grants to Schools,SUPPLIES & SERVICES,GRANTS (EXP) & SUBSCRIPTIONS,REVENUE
Walsall Council,http://opendatacommunities.org/id/metropolitan-district-council/walsall ,WC157-424,31.12.2023,CHILDRENS,ACORN CARE & EDUCATION LTD (SALES),07/12/2023,"21,196.49",1220-Top Up Funding -Grants to Schools,SUPPLIES & SERVICES,GRANTS (EXP) & SUBSCRIPTIONS,REVENUE
Walsall Council,http://opendatacommunities.org/id/metropolitan-district-council/walsall ,WC157-425,31.12.2023,CHILDRENS,ACORN CARE & EDUCATION LTD (SALES),07/12/2023,"27,363.85",1220-Professional Fees & Services,SUPPLIES & SERVICES,SERVICES,REVENUE
Walsall Council,http://opendatacommunities.org/id/metropolitan-district-council/walsall ,WC157-426,31.12.2023,CHILDRENS,ACORN CARE & EDUCATION LTD (SALES),07/12/2023,"21,209.71",1220-Top Up Funding -Grants to Schools,SUPPLIES & SERVICES,GRANTS (EXP) & SUBSCRIPTIONS,REVENUE
Walsall Council,http://opendatacommunities.org/id/metropolitan-district-council/walsall ,WC157-427,31.12.2023,CHILDRENS,ACORN CARE & EDUCATION LTD (SALES),07/12/2023,"27,653.67",1220-Professional Fees & Services,SUPPLIES & SERVICES,SERVICES,REVENUE
Walsall Council,http://opendatacommunities.org/id/metropolitan-district-council/walsall ,WC157-428,31.12.2023,CHILDRENS,ACORN CARE & EDUCATION LTD (SALES),07/12/2023,"24,705.00",1220-Professional Fees & Services,SUPPLIES & SERVICES,SERVICES,REVENUE
Walsall Council,http://opendatacommunities.org/id/metropolitan-district-council/walsall ,WC157-429,31.12.2023,CHILDRENS,ACORN CARE & EDUCATION LTD (SALES),07/12/2023,"22,710.67",1220-Professional Fees & Services,SUPPLIES & SERVICES,SERVICES,REVENUE
Walsall Council,http://opendatacommunities.org/id/metropolitan-district-council/walsall ,WC157-430,31.12.2023,CHILDRENS,ACORN CARE & EDUCATION LTD (SALES),07/12/2023,"25,566.67",1220-Professional Fees & Services,SUPPLIES & SERVICES,SERVICES,REVENUE
Walsall Council,http://opendatacommunities.org/id/metropolitan-district-council/walsall ,WC157-431,31.12.2023,CHILDRENS,ACORN CARE & EDUCATION LTD (SALES),07/12/2023,"19,226.67",1220-Top Up Funding -Grants to Schools,SUPPLIES & SERVICES,GRANTS (EXP) & SUBSCRIPTIONS,REVENUE
Walsall Council,http://opendatacommunities.org/id/metropolitan-district-council/walsall ,WC157-432,31.12.2023,CHILDRENS,ACORN CARE & EDUCATION LTD (SALES),20/12/2023,"21,209.71",1220-Top Up Funding -Grants to Schools,SUPPLIES & SERVICES,GRANTS (EXP) & SUBSCRIPTIONS,REVENUE
Walsall Council,http://opendatacommunities.org/id/metropolitan-district-council/walsall ,WC157-433,31.12.2023,CHILDRENS,ACORN CARE & EDUCATION LTD (SALES),07/12/2023,"22,710.67",1220-Professional Fees & Services,SUPPLIES & SERVICES,SERVICES,REVENUE
Walsall Council,http://opendatacommunities.org/id/metropolitan-district-council/walsall ,WC157-434,31.12.2023,CHILDRENS,ACORN CARE & EDUCATION LTD (SALES),20/12/2023,"6,135.04",1220-Top Up Funding -Grants to Schools,SUPPLIES & SERVICES,GRANTS (EXP) & SUBSCRIPTIONS,REVENUE
Walsall Council,http://opendatacommunities.org/id/metropolitan-district-council/walsall ,WC157-435,31.12.2023,CHILDRENS,ACORN CARE & EDUCATION LTD (SALES),22/12/2023,"40,297.31",6223-External Residential Care-Oth Agency Provision,THIRD PARTY PAYMENTS,PRIVATE CONTRACTOR,REVENUE
Walsall Council,http://opendatacommunities.org/id/metropolitan-district-council/walsall ,WC157-436,31.12.2023,CHILDRENS,ACORN FOSTERING SERVICES LTD,22/12/2023,"3,340.00",6223-Independent Foster Care-Oth Agency Provision,THIRD PARTY PAYMENTS,PRIVATE CONTRACTOR,REVENUE
Walsall Council,http://opendatacommunities.org/id/metropolitan-district-council/walsall ,WC157-437,31.12.2023,CHILDRENS,ACPAS LIMITED,07/12/2023,374.40,6222-Consultant Fees,SUPPLIES & SERVICES,SERVICES,REVENUE
Walsall Council,http://opendatacommunities.org/id/metropolitan-district-council/walsall ,WC157-438,31.12.2023,CHILDRENS,ACPAS LIMITED,21/12/2023,889.20,6222-Consultant Fees,SUPPLIES & SERVICES,SERVICES,REVENUE
Walsall Council,http://opendatacommunities.org/id/metropolitan-district-council/walsall ,WC157-439,31.12.2023,"ECONOMY, ENVIRONMENT & COMMUNITIES",ACTION GRAPHICS & DISPLAY LTD,28/12/2023,300.00,6414-Outwork Print & Design,SUPPLIES & SERVICES,PRINTING STATIONERY & GENERAL OFFICE,REVENUE
Walsall Council,http://opendatacommunities.org/id/metropolitan-district-council/walsall ,WC157-440,31.12.2023,CHILDRENS,ACTIVE CARE SOLUTIONS LTD,22/12/2023,"3,506.60",6223-Independent Foster Care-Oth Agency Provision,THIRD PARTY PAYMENTS,PRIVATE CONTRACTOR,REVENUE
Walsall Council,http://opendatacommunities.org/id/metropolitan-district-council/walsall ,WC157-441,31.12.2023,CHILDRENS,ACTIVE CARE SOLUTIONS LTD,22/12/2023,"3,514.80",6223-Independent Foster Care-Oth Agency Provision,THIRD PARTY PAYMENTS,PRIVATE CONTRACTOR,REVENUE
Walsall Council,http://opendatacommunities.org/id/metropolitan-district-council/walsall ,WC157-442,31.12.2023,CHILDRENS,ACTIVE CARE SOLUTIONS LTD,22/12/2023,"1,329.58",6223-Independent Foster Care-Oth Agency Provision,THIRD PARTY PAYMENTS,PRIVATE CONTRACTOR,REVENUE
Walsall Council,http://opendatacommunities.org/id/metropolitan-district-council/walsall ,WC157-443,31.12.2023,CHILDRENS,ACTIVE YOUNG PEOPLE LTD/IVETSEY BANK HOSPITAL - FORMERLY HUNTERCOMBE YOUNG PEOPLE LTD,13/12/2023,"1,662.50",1220-Top Up Funding -Grants to Schools,SUPPLIES & SERVICES,GRANTS (EXP) & SUBSCRIPTIONS,REVENUE
Walsall Council,http://opendatacommunities.org/id/metropolitan-district-council/walsall ,WC157-444,31.12.2023,CHILDRENS,ACTIVITY GYM LTD,18/12/2023,"1,428.80",6211-Professional Fees & Services,SUPPLIES & SERVICES,SERVICES,REVENUE
Walsall Council,http://opendatacommunities.org/id/metropolitan-district-council/walsall ,WC157-445,31.12.2023,ADULT SOCIAL CARE,REDACTED,07/12/2023,934.90,6541-Direct Payment,THIRD PARTY PAYMENTS,PRIVATE CONTRACTOR,REVENUE
Walsall Council,http://opendatacommunities.org/id/metropolitan-district-council/walsall ,WC157-446,31.12.2023,CHILDRENS,REDACTED,14/12/2023,363.84,6223-Special Guardianship Orders,TRANSFER PAYMENTS,CHILDREN SOCIAL SERVICES CLIENT,REVENUE
Walsall Council,http://opendatacommunities.org/id/metropolitan-district-council/walsall ,WC157-447,31.12.2023,CHILDRENS,REDACTED,14/12/2023,350.96,6223-Residents Orders,TRANSFER PAYMENTS,CHILDREN SOCIAL SERVICES CLIENT,REVENUE
Walsall Council,http://opendatacommunities.org/id/metropolitan-district-council/walsall ,WC157-448,31.12.2023,ADULT SOCIAL CARE,REDACTED,07/12/2023,"2,722.25",6541-Direct Payment,THIRD PARTY PAYMENTS,PRIVATE CONTRACTOR,REVENUE
Walsall Council,http://opendatacommunities.org/id/metropolitan-district-council/walsall ,WC157-449,31.12.2023,ADULT SOCIAL CARE,ADVANCE HEALTH CARE (UK) LTD,14/12/2023,744.00,6541-Domiciliary Care,THIRD PARTY PAYMENTS,PRIVATE CONTRACTOR,REVENUE
Walsall Council,http://opendatacommunities.org/id/metropolitan-district-council/walsall ,WC157-450,31.12.2023,ADULT SOCIAL CARE,ADVANCE HEALTH CARE (UK) LTD,14/12/2023,"1,134.00",6541-Domiciliary Care,THIRD PARTY PAYMENTS,PRIVATE CONTRACTOR,REVENUE
Walsall Council,http://opendatacommunities.org/id/metropolitan-district-council/walsall ,WC157-451,31.12.2023,ADULT SOCIAL CARE,ADVANCE HEALTH CARE (UK) LTD,14/12/2023,"1,152.00",6541-Domiciliary Care,THIRD PARTY PAYMENTS,PRIVATE CONTRACTOR,REVENUE
Walsall Council,http://opendatacommunities.org/id/metropolitan-district-council/walsall ,WC157-452,31.12.2023,ADULT SOCIAL CARE,ADVANCE HEALTH CARE (UK) LTD,14/12/2023,"1,050.00",6541-Domiciliary Care,THIRD PARTY PAYMENTS,PRIVATE CONTRACTOR,REVENUE
Walsall Council,http://opendatacommunities.org/id/metropolitan-district-council/walsall ,WC157-453,31.12.2023,ADULT SOCIAL CARE,ADVANCE HEALTH CARE (UK) LTD,14/12/2023,"1,242.00",6541-Domiciliary Care,THIRD PARTY PAYMENTS,PRIVATE CONTRACTOR,REVENUE
Walsall Council,http://opendatacommunities.org/id/metropolitan-district-council/walsall ,WC157-454,31.12.2023,ADULT SOCIAL CARE,ADVANCE HEALTH CARE (UK) LTD,14/12/2023,"1,134.00",6541-Domiciliary Care,THIRD PARTY PAYMENTS,PRIVATE CONTRACTOR,REVENUE
Walsall Council,http://opendatacommunities.org/id/metropolitan-district-council/walsall ,WC157-455,31.12.2023,ADULT SOCIAL CARE,ADVANCE HEALTH CARE (UK) LTD,14/12/2023,840.00,6541-Domiciliary Care,THIRD PARTY PAYMENTS,PRIVATE CONTRACTOR,REVENUE
Walsall Council,http://opendatacommunities.org/id/metropolitan-district-council/walsall ,WC157-456,31.12.2023,ADULT SOCIAL CARE,ADVANCE HEALTH CARE (UK) LTD,14/12/2023,270.00,6541-Domiciliary Care,THIRD PARTY PAYMENTS,PRIVATE CONTRACTOR,REVENUE
Walsall Council,http://opendatacommunities.org/id/metropolitan-district-council/walsall ,WC157-457,31.12.2023,ADULT SOCIAL CARE,ADVANCE HEALTH CARE (UK) LTD,14/12/2023,588.00,6541-Domiciliary Care,THIRD PARTY PAYMENTS,PRIVATE CONTRACTOR,REVENUE
Walsall Council,http://opendatacommunities.org/id/metropolitan-district-council/walsall ,WC157-458,31.12.2023,ADULT SOCIAL CARE,ADVANCE HEALTH CARE (UK) LTD,14/12/2023,828.00,6541-Domiciliary Care,THIRD PARTY PAYMENTS,PRIVATE CONTRACTOR,REVENUE
Walsall Council,http://opendatacommunities.org/id/metropolitan-district-council/walsall ,WC157-459,31.12.2023,ADULT SOCIAL CARE,ADVANCE HEALTH CARE (UK) LTD,14/12/2023,"1,050.00",6541-Domiciliary Care,THIRD PARTY PAYMENTS,PRIVATE CONTRACTOR,REVENUE
Walsall Council,http://opendatacommunities.org/id/metropolitan-district-council/walsall ,WC157-460,31.12.2023,ADULT SOCIAL CARE,ADVANCE HEALTH CARE (UK) LTD,14/12/2023,630.00,6541-Domiciliary Care,THIRD PARTY PAYMENTS,PRIVATE CONTRACTOR,REVENUE
Walsall Council,http://opendatacommunities.org/id/metropolitan-district-council/walsall ,WC157-461,31.12.2023,ADULT SOCIAL CARE,ADVANCE HEALTH CARE (UK) LTD,14/12/2023,909.00,6541-Domiciliary Care,THIRD PARTY PAYMENTS,PRIVATE CONTRACTOR,REVENUE
Walsall Council,http://opendatacommunities.org/id/metropolitan-district-council/walsall ,WC157-462,31.12.2023,ADULT SOCIAL CARE,ADVANCE HEALTH CARE (UK) LTD,14/12/2023,355.50,6541-Domiciliary Care,THIRD PARTY PAYMENTS,PRIVATE CONTRACTOR,REVENUE
Walsall Council,http://opendatacommunities.org/id/metropolitan-district-council/walsall ,WC157-463,31.12.2023,ADULT SOCIAL CARE,ADVANCE HEALTH CARE (UK) LTD,14/12/2023,546.00,6541-Domiciliary Care,THIRD PARTY PAYMENTS,PRIVATE CONTRACTOR,REVENUE
Walsall Council,http://opendatacommunities.org/id/metropolitan-district-council/walsall ,WC157-464,31.12.2023,ADULT SOCIAL CARE,ADVANCE HEALTH CARE (UK) LTD,14/12/2023,786.00,6541-Domiciliary Care,THIRD PARTY PAYMENTS,PRIVATE CONTRACTOR,REVENUE
Walsall Council,http://opendatacommunities.org/id/metropolitan-district-council/walsall ,WC157-465,31.12.2023,ADULT SOCIAL CARE,ADVANCE HEALTH CARE (UK) LTD,14/12/2023,"1,278.00",6541-Domiciliary Care,THIRD PARTY PAYMENTS,PRIVATE CONTRACTOR,REVENUE
Walsall Council,http://opendatacommunities.org/id/metropolitan-district-council/walsall ,WC157-466,31.12.2023,ADULT SOCIAL CARE,ADVANCE HEALTH CARE (UK) LTD,05/12/2023,963.00,6541-Domiciliary Care,THIRD PARTY PAYMENTS,PRIVATE CONTRACTOR,REVENUE
Walsall Council,http://opendatacommunities.org/id/metropolitan-district-council/walsall ,WC157-467,31.12.2023,ADULT SOCIAL CARE,ADVANCE HEALTH CARE (UK) LTD,05/12/2023,441.00,6541-Domiciliary Care,THIRD PARTY PAYMENTS,PRIVATE CONTRACTOR,REVENUE
Walsall Council,http://opendatacommunities.org/id/metropolitan-district-council/walsall ,WC157-468,31.12.2023,ADULT SOCIAL CARE,ADVANCE HEALTH CARE (UK) LTD,05/12/2023,567.00,6541-Domiciliary Care,THIRD PARTY PAYMENTS,PRIVATE CONTRACTOR,REVENUE
Walsall Council,http://opendatacommunities.org/id/metropolitan-district-council/walsall ,WC157-469,31.12.2023,ADULT SOCIAL CARE,ADVANCE HEALTH CARE (UK) LTD,05/12/2023,567.00,6541-Domiciliary Care,THIRD PARTY PAYMENTS,PRIVATE CONTRACTOR,REVENUE
Walsall Council,http://opendatacommunities.org/id/metropolitan-district-council/walsall ,WC157-470,31.12.2023,ADULT SOCIAL CARE,ADVANCE HEALTH CARE (UK) LTD,05/12/2023,301.50,6541-Domiciliary Care,THIRD PARTY PAYMENTS,PRIVATE CONTRACTOR,REVENUE
Walsall Council,http://opendatacommunities.org/id/metropolitan-district-council/walsall ,WC157-471,31.12.2023,ADULT SOCIAL CARE,ADVANCE HEALTH CARE (UK) LTD,05/12/2023,630.00,6541-Domiciliary Care,THIRD PARTY PAYMENTS,PRIVATE CONTRACTOR,REVENUE
Walsall Council,http://opendatacommunities.org/id/metropolitan-district-council/walsall ,WC157-472,31.12.2023,ADULT SOCIAL CARE,ADVANCE HEALTH CARE (UK) LTD,05/12/2023,252.00,6541-Domiciliary Care,THIRD PARTY PAYMENTS,PRIVATE CONTRACTOR,REVENUE
Walsall Council,http://opendatacommunities.org/id/metropolitan-district-council/walsall ,WC157-473,31.12.2023,ADULT SOCIAL CARE,ADVANCE HEALTH CARE (UK) LTD,05/12/2023,567.00,6541-Domiciliary Care,THIRD PARTY PAYMENTS,PRIVATE CONTRACTOR,REVENUE
Walsall Council,http://opendatacommunities.org/id/metropolitan-district-council/walsall ,WC157-474,31.12.2023,ADULT SOCIAL CARE,ADVANCE HEALTH CARE (UK) LTD,05/12/2023,630.00,6541-Domiciliary Care,THIRD PARTY PAYMENTS,PRIVATE CONTRACTOR,REVENUE
Walsall Council,http://opendatacommunities.org/id/metropolitan-district-council/walsall ,WC157-475,31.12.2023,ADULT SOCIAL CARE,ADVANCE HEALTH CARE (UK) LTD,05/12/2023,666.00,6541-Domiciliary Care,THIRD PARTY PAYMENTS,PRIVATE CONTRACTOR,REVENUE
Walsall Council,http://opendatacommunities.org/id/metropolitan-district-council/walsall ,WC157-476,31.12.2023,ADULT SOCIAL CARE,ADVANCE HEALTH CARE (UK) LTD,05/12/2023,504.00,6541-Domiciliary Care,THIRD PARTY PAYMENTS,PRIVATE CONTRACTOR,REVENUE
Walsall Council,http://opendatacommunities.org/id/metropolitan-district-council/walsall ,WC157-477,31.12.2023,ADULT SOCIAL CARE,ADVANCE HEALTH CARE (UK) LTD,05/12/2023,283.50,6541-Domiciliary Care,THIRD PARTY PAYMENTS,PRIVATE CONTRACTOR,REVENUE
Walsall Council,http://opendatacommunities.org/id/metropolitan-district-council/walsall ,WC157-478,31.12.2023,ADULT SOCIAL CARE,ADVANCE HEALTH CARE (UK) LTD,05/12/2023,639.00,6541-Domiciliary Care,THIRD PARTY PAYMENTS,PRIVATE CONTRACTOR,REVENUE
Walsall Council,http://opendatacommunities.org/id/metropolitan-district-council/walsall ,WC157-479,31.12.2023,ADULT SOCIAL CARE,ADVANCE HEALTH CARE (UK) LTD,05/12/2023,567.00,6541-Domiciliary Care,THIRD PARTY PAYMENTS,PRIVATE CONTRACTOR,REVENUE
Walsall Council,http://opendatacommunities.org/id/metropolitan-district-council/walsall ,WC157-480,31.12.2023,ADULT SOCIAL CARE,ADVANCE HEALTH CARE (UK) LTD,05/12/2023,283.50,6541-Domiciliary Care,THIRD PARTY PAYMENTS,PRIVATE CONTRACTOR,REVENUE
Walsall Council,http://opendatacommunities.org/id/metropolitan-district-council/walsall ,WC157-481,31.12.2023,ADULT SOCIAL CARE,ADVANCE HEALTH CARE (UK) LTD,05/12/2023,420.00,6541-Domiciliary Care,THIRD PARTY PAYMENTS,PRIVATE CONTRACTOR,REVENUE
Walsall Council,http://opendatacommunities.org/id/metropolitan-district-council/walsall ,WC157-482,31.12.2023,ADULT SOCIAL CARE,ADVANCE HEALTH CARE (UK) LTD,05/12/2023,378.00,6541-Domiciliary Care,THIRD PARTY PAYMENTS,PRIVATE CONTRACTOR,REVENUE
Walsall Council,http://opendatacommunities.org/id/metropolitan-district-council/walsall ,WC157-483,31.12.2023,ADULT SOCIAL CARE,ADVANCE HEALTH CARE (UK) LTD,05/12/2023,567.00,6541-Domiciliary Care,THIRD PARTY PAYMENTS,PRIVATE CONTRACTOR,REVENUE
Walsall Council,http://opendatacommunities.org/id/metropolitan-district-council/walsall ,WC157-484,31.12.2023,ADULT SOCIAL CARE,ADVANCE HEALTH CARE (UK) LTD,05/12/2023,441.00,6541-Domiciliary Care,THIRD PARTY PAYMENTS,PRIVATE CONTRACTOR,REVENUE
Walsall Council,http://opendatacommunities.org/id/metropolitan-district-council/walsall ,WC157-485,31.12.2023,ADULT SOCIAL CARE,ADVANCE HEALTH CARE (UK) LTD,05/12/2023,283.50,6541-Domiciliary Care,THIRD PARTY PAYMENTS,PRIVATE CONTRACTOR,REVENUE
Walsall Council,http://opendatacommunities.org/id/metropolitan-district-council/walsall ,WC157-486,31.12.2023,ADULT SOCIAL CARE,ADVANCE HEALTH CARE (UK) LTD,05/12/2023,891.00,6541-Domiciliary Care,THIRD PARTY PAYMENTS,PRIVATE CONTRACTOR,REVENUE
Walsall Council,http://opendatacommunities.org/id/metropolitan-district-council/walsall ,WC157-487,31.12.2023,ADULT SOCIAL CARE,ADVANCE HEALTH CARE (UK) LTD,05/12/2023,265.50,6541-Domiciliary Care,THIRD PARTY PAYMENTS,PRIVATE CONTRACTOR,REVENUE
Walsall Council,http://opendatacommunities.org/id/metropolitan-district-council/walsall ,WC157-488,31.12.2023,ADULT SOCIAL CARE,ADVANCE HEALTH CARE (UK) LTD,05/12/2023,756.00,6541-Domiciliary Care,THIRD PARTY PAYMENTS,PRIVATE CONTRACTOR,REVENUE
Walsall Council,http://opendatacommunities.org/id/metropolitan-district-council/walsall ,WC157-489,31.12.2023,ADULT SOCIAL CARE,ADVANCE HEALTH CARE (UK) LTD,05/12/2023,342.00,6541-Domiciliary Care,THIRD PARTY PAYMENTS,PRIVATE CONTRACTOR,REVENUE
Walsall Council,http://opendatacommunities.org/id/metropolitan-district-council/walsall ,WC157-490,31.12.2023,ADULT SOCIAL CARE,ADVANCE HEALTH CARE (UK) LTD,05/12/2023,441.00,6541-Domiciliary Care,THIRD PARTY PAYMENTS,PRIVATE CONTRACTOR,REVENUE
Walsall Council,http://opendatacommunities.org/id/metropolitan-district-council/walsall ,WC157-491,31.12.2023,ADULT SOCIAL CARE,ADVANCE HEALTH CARE (UK) LTD,05/12/2023,441.00,6541-Domiciliary Care,THIRD PARTY PAYMENTS,PRIVATE CONTRACTOR,REVENUE
Walsall Council,http://opendatacommunities.org/id/metropolitan-district-council/walsall ,WC157-492,31.12.2023,ADULT SOCIAL CARE,ADVANCE HEALTH CARE (UK) LTD,05/12/2023,283.50,6541-Domiciliary Care,THIRD PARTY PAYMENTS,PRIVATE CONTRACTOR,REVENUE
Walsall Council,http://opendatacommunities.org/id/metropolitan-district-council/walsall ,WC157-493,31.12.2023,ADULT SOCIAL CARE,ADVANCE HEALTH CARE (UK) LTD,05/12/2023,420.00,6541-Domiciliary Care,THIRD PARTY PAYMENTS,PRIVATE CONTRACTOR,REVENUE
Walsall Council,http://opendatacommunities.org/id/metropolitan-district-council/walsall ,WC157-494,31.12.2023,ADULT SOCIAL CARE,ADVANCE HEALTH CARE (UK) LTD,05/12/2023,378.00,6541-Domiciliary Care,THIRD PARTY PAYMENTS,PRIVATE CONTRACTOR,REVENUE
Walsall Council,http://opendatacommunities.org/id/metropolitan-district-council/walsall ,WC157-495,31.12.2023,ADULT SOCIAL CARE,ADVANCE HEALTH CARE (UK) LTD,05/12/2023,567.00,6541-Domiciliary Care,THIRD PARTY PAYMENTS,PRIVATE CONTRACTOR,REVENUE
Walsall Council,http://opendatacommunities.org/id/metropolitan-district-council/walsall ,WC157-496,31.12.2023,ADULT SOCIAL CARE,ADVANCE HEALTH CARE (UK) LTD,05/12/2023,567.00,6541-Domiciliary Care,THIRD PARTY PAYMENTS,PRIVATE CONTRACTOR,REVENUE
Walsall Council,http://opendatacommunities.org/id/metropolitan-district-council/walsall ,WC157-497,31.12.2023,ADULT SOCIAL CARE,ADVANCE HEALTH CARE (UK) LTD,05/12/2023,252.00,6541-Domiciliary Care,THIRD PARTY PAYMENTS,PRIVATE CONTRACTOR,REVENUE
Walsall Council,http://opendatacommunities.org/id/metropolitan-district-council/walsall ,WC157-498,31.12.2023,ADULT SOCIAL CARE,ADVANCE HEALTH CARE (UK) LTD,05/12/2023,567.00,6541-Domiciliary Care,THIRD PARTY PAYMENTS,PRIVATE CONTRACTOR,REVENUE
Walsall Council,http://opendatacommunities.org/id/metropolitan-district-council/walsall ,WC157-499,31.12.2023,ADULT SOCIAL CARE,ADVANCE HEALTH CARE (UK) LTD,05/12/2023,630.00,6541-Domiciliary Care,THIRD PARTY PAYMENTS,PRIVATE CONTRACTOR,REVENUE
Walsall Council,http://opendatacommunities.org/id/metropolitan-district-council/walsall ,WC157-500,31.12.2023,ADULT SOCIAL CARE,ADVANCE HEALTH CARE (UK) LTD,05/12/2023,567.00,6541-Domiciliary Care,THIRD PARTY PAYMENTS,PRIVATE CONTRACTOR,REVENUE
Walsall Council,http://opendatacommunities.org/id/metropolitan-district-council/walsall ,WC157-501,31.12.2023,ADULT SOCIAL CARE,ADVANCE HEALTH CARE (UK) LTD,05/12/2023,666.00,6541-Domiciliary Care,THIRD PARTY PAYMENTS,PRIVATE CONTRACTOR,REVENUE
Walsall Council,http://opendatacommunities.org/id/metropolitan-district-council/walsall ,WC157-502,31.12.2023,ADULT SOCIAL CARE,ADVANCE HEALTH CARE (UK) LTD,05/12/2023,301.50,6541-Domiciliary Care,THIRD PARTY PAYMENTS,PRIVATE CONTRACTOR,REVENUE
Walsall Council,http://opendatacommunities.org/id/metropolitan-district-council/walsall ,WC157-503,31.12.2023,ADULT SOCIAL CARE,ADVANCE HEALTH CARE (UK) LTD,05/12/2023,756.00,6541-Domiciliary Care,THIRD PARTY PAYMENTS,PRIVATE CONTRACTOR,REVENUE
Walsall Council,http://opendatacommunities.org/id/metropolitan-district-council/walsall ,WC157-504,31.12.2023,ADULT SOCIAL CARE,ADVANCE HEALTH CARE (UK) LTD,05/12/2023,441.00,6541-Domiciliary Care,THIRD PARTY PAYMENTS,PRIVATE CONTRACTOR,REVENUE
Walsall Council,http://opendatacommunities.org/id/metropolitan-district-council/walsall ,WC157-505,31.12.2023,ADULT SOCIAL CARE,ADVANCE HEALTH CARE (UK) LTD,05/12/2023,283.50,6541-Domiciliary Care,THIRD PARTY PAYMENTS,PRIVATE CONTRACTOR,REVENUE
Walsall Council,http://opendatacommunities.org/id/metropolitan-district-council/walsall ,WC157-506,31.12.2023,ADULT SOCIAL CARE,ADVANCE HEALTH CARE (UK) LTD,05/12/2023,963.00,6541-Domiciliary Care,THIRD PARTY PAYMENTS,PRIVATE CONTRACTOR,REVENUE
Walsall Council,http://opendatacommunities.org/id/metropolitan-district-council/walsall ,WC157-507,31.12.2023,ADULT SOCIAL CARE,ADVANCE HEALTH CARE (UK) LTD,05/12/2023,441.00,6541-Domiciliary Care,THIRD PARTY PAYMENTS,PRIVATE CONTRACTOR,REVENUE
Walsall Council,http://opendatacommunities.org/id/metropolitan-district-council/walsall ,WC157-508,31.12.2023,ADULT SOCIAL CARE,ADVANCE HEALTH CARE (UK) LTD,05/12/2023,441.00,6541-Domiciliary Care,THIRD PARTY PAYMENTS,PRIVATE CONTRACTOR,REVENUE
Walsall Council,http://opendatacommunities.org/id/metropolitan-district-council/walsall ,WC157-509,31.12.2023,ADULT SOCIAL CARE,ADVANCE HEALTH CARE (UK) LTD,05/12/2023,441.00,6541-Domiciliary Care,THIRD PARTY PAYMENTS,PRIVATE CONTRACTOR,REVENUE
Walsall Council,http://opendatacommunities.org/id/metropolitan-district-council/walsall ,WC157-510,31.12.2023,ADULT SOCIAL CARE,ADVANCE HEALTH CARE (UK) LTD,05/12/2023,594.00,6541-Domiciliary Care,THIRD PARTY PAYMENTS,PRIVATE CONTRACTOR,REVENUE
Walsall Council,http://opendatacommunities.org/id/metropolitan-district-council/walsall ,WC157-511,31.12.2023,ADULT SOCIAL CARE,ADVANCE HEALTH CARE (UK) LTD,05/12/2023,891.00,6541-Domiciliary Care,THIRD PARTY PAYMENTS,PRIVATE CONTRACTOR,REVENUE
Walsall Council,http://opendatacommunities.org/id/metropolitan-district-council/walsall ,WC157-512,31.12.2023,ADULT SOCIAL CARE,ADVANCE HEALTH CARE (UK) LTD,05/12/2023,301.50,6541-Domiciliary Care,THIRD PARTY PAYMENTS,PRIVATE CONTRACTOR,REVENUE
Walsall Council,http://opendatacommunities.org/id/metropolitan-district-council/walsall ,WC157-513,31.12.2023,ADULT SOCIAL CARE,ADVANCE HEALTH CARE (UK) LTD,05/12/2023,504.00,6541-Domiciliary Care,THIRD PARTY PAYMENTS,PRIVATE CONTRACTOR,REVENUE
Walsall Council,http://opendatacommunities.org/id/metropolitan-district-council/walsall ,WC157-514,31.12.2023,ADULT SOCIAL CARE,ADVANCE HEALTH CARE (UK) LTD,05/12/2023,283.50,6541-Domiciliary Care,THIRD PARTY PAYMENTS,PRIVATE CONTRACTOR,REVENUE
Walsall Council,http://opendatacommunities.org/id/metropolitan-district-council/walsall ,WC157-515,31.12.2023,ADULT SOCIAL CARE,ADVANCE HEALTH CARE (UK) LTD,05/12/2023,639.00,6541-Domiciliary Care,THIRD PARTY PAYMENTS,PRIVATE CONTRACTOR,REVENUE
Walsall Council,http://opendatacommunities.org/id/metropolitan-district-council/walsall ,WC157-516,31.12.2023,ADULT SOCIAL CARE,ADVANCE HEALTH CARE (UK) LTD,05/12/2023,567.00,6541-Domiciliary Care,THIRD PARTY PAYMENTS,PRIVATE CONTRACTOR,REVENUE
Walsall Council,http://opendatacommunities.org/id/metropolitan-district-council/walsall ,WC157-517,31.12.2023,ADULT SOCIAL CARE,ADVANCE HEALTH CARE (UK) LTD,13/12/2023,283.50,6554-Professional Services-Priv Contractor & Other Agencies,THIRD PARTY PAYMENTS,PRIVATE CONTRACTOR,REVENUE
Walsall Council,http://opendatacommunities.org/id/metropolitan-district-council/walsall ,WC157-518,31.12.2023,ADULT SOCIAL CARE,ADVANCE HEALTH CARE (UK) LTD,13/12/2023,742.50,6554-Professional Services-Priv Contractor & Other Agencies,THIRD PARTY PAYMENTS,PRIVATE CONTRACTOR,REVENUE
Walsall Council,http://opendatacommunities.org/id/metropolitan-district-council/walsall ,WC157-519,31.12.2023,ADULT SOCIAL CARE,ADVANCE HEALTH CARE (UK) LTD,19/12/2023,283.50,6541-Domiciliary Care,THIRD PARTY PAYMENTS,PRIVATE CONTRACTOR,REVENUE
Walsall Council,http://opendatacommunities.org/id/metropolitan-district-council/walsall ,WC157-520,31.12.2023,ADULT SOCIAL CARE,ADVANCE HEALTH CARE (UK) LTD,19/12/2023,420.00,6541-Domiciliary Care,THIRD PARTY PAYMENTS,PRIVATE CONTRACTOR,REVENUE
Walsall Council,http://opendatacommunities.org/id/metropolitan-district-council/walsall ,WC157-521,31.12.2023,ADULT SOCIAL CARE,ADVANCE HEALTH CARE (UK) LTD,19/12/2023,378.00,6541-Domiciliary Care,THIRD PARTY PAYMENTS,PRIVATE CONTRACTOR,REVENUE
Walsall Council,http://opendatacommunities.org/id/metropolitan-district-council/walsall ,WC157-522,31.12.2023,ADULT SOCIAL CARE,ADVANCE HEALTH CARE (UK) LTD,19/12/2023,405.00,6541-Domiciliary Care,THIRD PARTY PAYMENTS,PRIVATE CONTRACTOR,REVENUE
Walsall Council,http://opendatacommunities.org/id/metropolitan-district-council/walsall ,WC157-523,31.12.2023,ADULT SOCIAL CARE,ADVANCE HEALTH CARE (UK) LTD,19/12/2023,567.00,6541-Domiciliary Care,THIRD PARTY PAYMENTS,PRIVATE CONTRACTOR,REVENUE
Walsall Council,http://opendatacommunities.org/id/metropolitan-district-council/walsall ,WC157-524,31.12.2023,ADULT SOCIAL CARE,ADVANCE HEALTH CARE (UK) LTD,19/12/2023,252.00,6541-Domiciliary Care,THIRD PARTY PAYMENTS,PRIVATE CONTRACTOR,REVENUE
Walsall Council,http://opendatacommunities.org/id/metropolitan-district-council/walsall ,WC157-525,31.12.2023,ADULT SOCIAL CARE,ADVANCE HEALTH CARE (UK) LTD,19/12/2023,567.00,6541-Domiciliary Care,THIRD PARTY PAYMENTS,PRIVATE CONTRACTOR,REVENUE
Walsall Council,http://opendatacommunities.org/id/metropolitan-district-council/walsall ,WC157-526,31.12.2023,ADULT SOCIAL CARE,ADVANCE HEALTH CARE (UK) LTD,19/12/2023,630.00,6541-Domiciliary Care,THIRD PARTY PAYMENTS,PRIVATE CONTRACTOR,REVENUE
Walsall Council,http://opendatacommunities.org/id/metropolitan-district-council/walsall ,WC157-527,31.12.2023,ADULT SOCIAL CARE,ADVANCE HEALTH CARE (UK) LTD,19/12/2023,666.00,6541-Domiciliary Care,THIRD PARTY PAYMENTS,PRIVATE CONTRACTOR,REVENUE
Walsall Council,http://opendatacommunities.org/id/metropolitan-district-council/walsall ,WC157-528,31.12.2023,ADULT SOCIAL CARE,ADVANCE HEALTH CARE (UK) LTD,19/12/2023,301.50,6541-Domiciliary Care,THIRD PARTY PAYMENTS,PRIVATE CONTRACTOR,REVENUE
Walsall Council,http://opendatacommunities.org/id/metropolitan-district-council/walsall ,WC157-529,31.12.2023,ADULT SOCIAL CARE,ADVANCE HEALTH CARE (UK) LTD,19/12/2023,756.00,6541-Domiciliary Care,THIRD PARTY PAYMENTS,PRIVATE CONTRACTOR,REVENUE
Walsall Council,http://opendatacommunities.org/id/metropolitan-district-council/walsall ,WC157-530,31.12.2023,ADULT SOCIAL CARE,ADVANCE HEALTH CARE (UK) LTD,19/12/2023,567.00,6541-Domiciliary Care,THIRD PARTY PAYMENTS,PRIVATE CONTRACTOR,REVENUE
Walsall Council,http://opendatacommunities.org/id/metropolitan-district-council/walsall ,WC157-531,31.12.2023,ADULT SOCIAL CARE,ADVANCE HEALTH CARE (UK) LTD,19/12/2023,441.00,6541-Domiciliary Care,THIRD PARTY PAYMENTS,PRIVATE CONTRACTOR,REVENUE
Walsall Council,http://opendatacommunities.org/id/metropolitan-district-council/walsall ,WC157-532,31.12.2023,ADULT SOCIAL CARE,ADVANCE HEALTH CARE (UK) LTD,19/12/2023,963.00,6541-Domiciliary Care,THIRD PARTY PAYMENTS,PRIVATE CONTRACTOR,REVENUE
Walsall Council,http://opendatacommunities.org/id/metropolitan-district-council/walsall ,WC157-533,31.12.2023,ADULT SOCIAL CARE,ADVANCE HEALTH CARE (UK) LTD,19/12/2023,441.00,6541-Domiciliary Care,THIRD PARTY PAYMENTS,PRIVATE CONTRACTOR,REVENUE
Walsall Council,http://opendatacommunities.org/id/metropolitan-district-council/walsall ,WC157-534,31.12.2023,ADULT SOCIAL CARE,ADVANCE HEALTH CARE (UK) LTD,19/12/2023,283.50,6541-Domiciliary Care,THIRD PARTY PAYMENTS,PRIVATE CONTRACTOR,REVENUE
Walsall Council,http://opendatacommunities.org/id/metropolitan-district-council/walsall ,WC157-535,31.12.2023,ADULT SOCIAL CARE,ADVANCE HEALTH CARE (UK) LTD,19/12/2023,891.00,6541-Domiciliary Care,THIRD PARTY PAYMENTS,PRIVATE CONTRACTOR,REVENUE
Walsall Council,http://opendatacommunities.org/id/metropolitan-district-council/walsall ,WC157-536,31.12.2023,ADULT SOCIAL CARE,ADVANCE HEALTH CARE (UK) LTD,19/12/2023,441.00,6541-Domiciliary Care,THIRD PARTY PAYMENTS,PRIVATE CONTRACTOR,REVENUE
Walsall Council,http://opendatacommunities.org/id/metropolitan-district-council/walsall ,WC157-537,31.12.2023,ADULT SOCIAL CARE,ADVANCE HEALTH CARE (UK) LTD,19/12/2023,441.00,6541-Domiciliary Care,THIRD PARTY PAYMENTS,PRIVATE CONTRACTOR,REVENUE
Walsall Council,http://opendatacommunities.org/id/metropolitan-district-council/walsall ,WC157-538,31.12.2023,ADULT SOCIAL CARE,ADVANCE HEALTH CARE (UK) LTD,19/12/2023,594.00,6541-Domiciliary Care,THIRD PARTY PAYMENTS,PRIVATE CONTRACTOR,REVENUE
Walsall Council,http://opendatacommunities.org/id/metropolitan-district-council/walsall ,WC157-539,31.12.2023,ADULT SOCIAL CARE,ADVANCE HEALTH CARE (UK) LTD,19/12/2023,301.50,6541-Domiciliary Care,THIRD PARTY PAYMENTS,PRIVATE CONTRACTOR,REVENUE
Walsall Council,http://opendatacommunities.org/id/metropolitan-district-council/walsall ,WC157-540,31.12.2023,ADULT SOCIAL CARE,ADVANCE HEALTH CARE (UK) LTD,19/12/2023,504.00,6541-Domiciliary Care,THIRD PARTY PAYMENTS,PRIVATE CONTRACTOR,REVENUE
Walsall Council,http://opendatacommunities.org/id/metropolitan-district-council/walsall ,WC157-541,31.12.2023,ADULT SOCIAL CARE,ADVANCE HEALTH CARE (UK) LTD,19/12/2023,283.50,6541-Domiciliary Care,THIRD PARTY PAYMENTS,PRIVATE CONTRACTOR,REVENUE
Walsall Council,http://opendatacommunities.org/id/metropolitan-district-council/walsall ,WC157-542,31.12.2023,ADULT SOCIAL CARE,ADVANCE HEALTH CARE (UK) LTD,19/12/2023,639.00,6541-Domiciliary Care,THIRD PARTY PAYMENTS,PRIVATE CONTRACTOR,REVENUE
Walsall Council,http://opendatacommunities.org/id/metropolitan-district-council/walsall ,WC157-543,31.12.2023,ADULT SOCIAL CARE,ADVANCE HEALTH CARE (UK) LTD,19/12/2023,567.00,6541-Domiciliary Care,THIRD PARTY PAYMENTS,PRIVATE CONTRACTOR,REVENUE
Walsall Council,http://opendatacommunities.org/id/metropolitan-district-council/walsall ,WC157-544,31.12.2023,ADULT SOCIAL CARE,ADVANCE HEALTH CARE (UK) LTD,19/12/2023,567.00,6541-Domiciliary Care,THIRD PARTY PAYMENTS,PRIVATE CONTRACTOR,REVENUE
Walsall Council,http://opendatacommunities.org/id/metropolitan-district-council/walsall ,WC157-545,31.12.2023,ADULT SOCIAL CARE,ADVANCE HEALTH CARE (UK) LTD,19/12/2023,666.00,6541-Domiciliary Care,THIRD PARTY PAYMENTS,PRIVATE CONTRACTOR,REVENUE
Walsall Council,http://opendatacommunities.org/id/metropolitan-district-council/walsall ,WC157-546,31.12.2023,ADULT SOCIAL CARE,ADVANCE HEALTH CARE (UK) LTD,19/12/2023,252.00,6541-Domiciliary Care,THIRD PARTY PAYMENTS,PRIVATE CONTRACTOR,REVENUE
Walsall Council,http://opendatacommunities.org/id/metropolitan-district-council/walsall ,WC157-547,31.12.2023,ADULT SOCIAL CARE,ADVANCE HEALTH CARE (UK) LTD,19/12/2023,567.00,6541-Domiciliary Care,THIRD PARTY PAYMENTS,PRIVATE CONTRACTOR,REVENUE
Walsall Council,http://opendatacommunities.org/id/metropolitan-district-council/walsall ,WC157-548,31.12.2023,ADULT SOCIAL CARE,ADVANCE HEALTH CARE (UK) LTD,19/12/2023,630.00,6541-Domiciliary Care,THIRD PARTY PAYMENTS,PRIVATE CONTRACTOR,REVENUE
Walsall Council,http://opendatacommunities.org/id/metropolitan-district-council/walsall ,WC157-549,31.12.2023,ADULT SOCIAL CARE,ADVANCE HEALTH CARE (UK) LTD,19/12/2023,567.00,6541-Domiciliary Care,THIRD PARTY PAYMENTS,PRIVATE CONTRACTOR,REVENUE
Walsall Council,http://opendatacommunities.org/id/metropolitan-district-council/walsall ,WC157-550,31.12.2023,ADULT SOCIAL CARE,ADVANCE HEALTH CARE (UK) LTD,19/12/2023,441.00,6541-Domiciliary Care,THIRD PARTY PAYMENTS,PRIVATE CONTRACTOR,REVENUE
Walsall Council,http://opendatacommunities.org/id/metropolitan-district-council/walsall ,WC157-551,31.12.2023,ADULT SOCIAL CARE,ADVANCE HEALTH CARE (UK) LTD,19/12/2023,283.50,6541-Domiciliary Care,THIRD PARTY PAYMENTS,PRIVATE CONTRACTOR,REVENUE
Walsall Council,http://opendatacommunities.org/id/metropolitan-district-council/walsall ,WC157-552,31.12.2023,ADULT SOCIAL CARE,ADVANCE HEALTH CARE (UK) LTD,19/12/2023,891.00,6541-Domiciliary Care,THIRD PARTY PAYMENTS,PRIVATE CONTRACTOR,REVENUE
Walsall Council,http://opendatacommunities.org/id/metropolitan-district-council/walsall ,WC157-553,31.12.2023,ADULT SOCIAL CARE,ADVANCE HEALTH CARE (UK) LTD,19/12/2023,283.50,6541-Domiciliary Care,THIRD PARTY PAYMENTS,PRIVATE CONTRACTOR,REVENUE
Walsall Council,http://opendatacommunities.org/id/metropolitan-district-council/walsall ,WC157-554,31.12.2023,ADULT SOCIAL CARE,ADVANCE HEALTH CARE (UK) LTD,19/12/2023,420.00,6541-Domiciliary Care,THIRD PARTY PAYMENTS,PRIVATE CONTRACTOR,REVENUE
Walsall Council,http://opendatacommunities.org/id/metropolitan-district-council/walsall ,WC157-555,31.12.2023,ADULT SOCIAL CARE,ADVANCE HEALTH CARE (UK) LTD,19/12/2023,378.00,6541-Domiciliary Care,THIRD PARTY PAYMENTS,PRIVATE CONTRACTOR,REVENUE
Walsall Council,http://opendatacommunities.org/id/metropolitan-district-council/walsall ,WC157-556,31.12.2023,ADULT SOCIAL CARE,ADVANCE HEALTH CARE (UK) LTD,19/12/2023,963.00,6541-Domiciliary Care,THIRD PARTY PAYMENTS,PRIVATE CONTRACTOR,REVENUE
Walsall Council,http://opendatacommunities.org/id/metropolitan-district-council/walsall ,WC157-557,31.12.2023,ADULT SOCIAL CARE,ADVANCE HEALTH CARE (UK) LTD,19/12/2023,441.00,6541-Domiciliary Care,THIRD PARTY PAYMENTS,PRIVATE CONTRACTOR,REVENUE
Walsall Council,http://opendatacommunities.org/id/metropolitan-district-council/walsall ,WC157-558,31.12.2023,ADULT SOCIAL CARE,ADVANCE HEALTH CARE (UK) LTD,19/12/2023,301.50,6541-Domiciliary Care,THIRD PARTY PAYMENTS,PRIVATE CONTRACTOR,REVENUE
Walsall Council,http://opendatacommunities.org/id/metropolitan-district-council/walsall ,WC157-559,31.12.2023,ADULT SOCIAL CARE,ADVANCE HEALTH CARE (UK) LTD,19/12/2023,756.00,6541-Domiciliary Care,THIRD PARTY PAYMENTS,PRIVATE CONTRACTOR,REVENUE
Walsall Council,http://opendatacommunities.org/id/metropolitan-district-council/walsall ,WC157-560,31.12.2023,ADULT SOCIAL CARE,ADVANCE HEALTH CARE (UK) LTD,19/12/2023,342.00,6541-Domiciliary Care,THIRD PARTY PAYMENTS,PRIVATE CONTRACTOR,REVENUE
Walsall Council,http://opendatacommunities.org/id/metropolitan-district-council/walsall ,WC157-561,31.12.2023,ADULT SOCIAL CARE,ADVANCE HEALTH CARE (UK) LTD,19/12/2023,441.00,6541-Domiciliary Care,THIRD PARTY PAYMENTS,PRIVATE CONTRACTOR,REVENUE
Walsall Council,http://opendatacommunities.org/id/metropolitan-district-council/walsall ,WC157-562,31.12.2023,ADULT SOCIAL CARE,ADVANCE HEALTH CARE (UK) LTD,19/12/2023,441.00,6541-Domiciliary Care,THIRD PARTY PAYMENTS,PRIVATE CONTRACTOR,REVENUE
Walsall Council,http://opendatacommunities.org/id/metropolitan-district-council/walsall ,WC157-563,31.12.2023,ADULT SOCIAL CARE,ADVANCE HEALTH CARE (UK) LTD,19/12/2023,594.00,6541-Domiciliary Care,THIRD PARTY PAYMENTS,PRIVATE CONTRACTOR,REVENUE
Walsall Council,http://opendatacommunities.org/id/metropolitan-district-council/walsall ,WC157-564,31.12.2023,ADULT SOCIAL CARE,ADVANCE HEALTH CARE (UK) LTD,19/12/2023,301.50,6541-Domiciliary Care,THIRD PARTY PAYMENTS,PRIVATE CONTRACTOR,REVENUE
Walsall Council,http://opendatacommunities.org/id/metropolitan-district-council/walsall ,WC157-565,31.12.2023,ADULT SOCIAL CARE,ADVANCE HEALTH CARE (UK) LTD,19/12/2023,504.00,6541-Domiciliary Care,THIRD PARTY PAYMENTS,PRIVATE CONTRACTOR,REVENUE
Walsall Council,http://opendatacommunities.org/id/metropolitan-district-council/walsall ,WC157-566,31.12.2023,ADULT SOCIAL CARE,ADVANCE HEALTH CARE (UK) LTD,19/12/2023,283.50,6541-Domiciliary Care,THIRD PARTY PAYMENTS,PRIVATE CONTRACTOR,REVENUE
Walsall Council,http://opendatacommunities.org/id/metropolitan-district-council/walsall ,WC157-567,31.12.2023,ADULT SOCIAL CARE,ADVANCE HEALTH CARE (UK) LTD,19/12/2023,639.00,6541-Domiciliary Care,THIRD PARTY PAYMENTS,PRIVATE CONTRACTOR,REVENUE
Walsall Council,http://opendatacommunities.org/id/metropolitan-district-council/walsall ,WC157-568,31.12.2023,ADULT SOCIAL CARE,ADVANCE HEALTH CARE (UK) LTD,19/12/2023,567.00,6541-Domiciliary Care,THIRD PARTY PAYMENTS,PRIVATE CONTRACTOR,REVENUE
Walsall Council,http://opendatacommunities.org/id/metropolitan-district-council/walsall ,WC157-569,31.12.2023,CHILDRENS,ADVANCED CHILD CARE ASSESSMENTS LTD,22/12/2023,"2,721.80",6222-Professional Fees & Services,SUPPLIES & SERVICES,SERVICES,REVENUE
Walsall Council,http://opendatacommunities.org/id/metropolitan-district-council/walsall ,WC157-570,31.12.2023,CHILDRENS,ADVENTURELAND DAY NURSERY,01/12/2023,"2,207.80",1265-Early Years Supplementary Grant Expenditure,TRANSFER PAYMENTS,SCHOOLCHILDREN/STUDENTS,REVENUE
Walsall Council,http://opendatacommunities.org/id/metropolitan-district-council/walsall ,WC157-571,31.12.2023,CHILDRENS,ADVENTURELAND DAY NURSERY,01/12/2023,"2,886.10",1265-Early Years Supplementary Grant Expenditure,TRANSFER PAYMENTS,SCHOOLCHILDREN/STUDENTS,REVENUE
Walsall Council,http://opendatacommunities.org/id/metropolitan-district-council/walsall ,WC157-572,31.12.2023,ADULT SOCIAL CARE,ADVINIA CARE HOMES LTD - HAMMERWICH HALL CARE HOME,19/12/2023,"2,137.32",6541-Residential,THIRD PARTY PAYMENTS,PRIVATE CONTRACTOR,REVENUE
Walsall Council,http://opendatacommunities.org/id/metropolitan-district-council/walsall ,WC157-573,31.12.2023,ADULT SOCIAL CARE,ADVINIA CARE HOMES LTD - HAMMERWICH HALL CARE HOME,19/12/2023,280.00,6541-Residential EMI,THIRD PARTY PAYMENTS,PRIVATE CONTRACTOR,REVENUE
Walsall Council,http://opendatacommunities.org/id/metropolitan-district-council/walsall ,WC157-574,31.12.2023,ADULT SOCIAL CARE,ADVINIA CARE HOMES LTD - HAMMERWICH HALL CARE HOME,19/12/2023,"2,413.36",6541-Residential EMI,THIRD PARTY PAYMENTS,PRIVATE CONTRACTOR,REVENUE
Walsall Council,http://opendatacommunities.org/id/metropolitan-district-council/walsall ,WC157-575,31.12.2023,ADULT SOCIAL CARE,ADVINIA CARE HOMES LTD - HAMMERWICH HALL CARE HOME,19/12/2023,280.00,6541-Residential,THIRD PARTY PAYMENTS,PRIVATE CONTRACTOR,REVENUE
Walsall Council,http://opendatacommunities.org/id/metropolitan-district-council/walsall ,WC157-576,31.12.2023,ECONOMY & ENVIRONMENT CAPITAL,AECOM INFRASTRUCTURE & ENVIRONMENT UK LIMITED,12/12/2023,"7,600.00",7200-Project Fees,CAPITAL,"NEW CONSTRUCTION,CONVERSION & RENOVATION",CAPITAL
Walsall Council,http://opendatacommunities.org/id/metropolitan-district-council/walsall ,WC157-577,31.12.2023,ECONOMY & ENVIRONMENT CAPITAL,AECOM INFRASTRUCTURE & ENVIRONMENT UK LIMITED,21/12/2023,"12,944.96",7200-Consultants Fees,CAPITAL,"NEW CONSTRUCTION,CONVERSION & RENOVATION",CAPITAL
Walsall Council,http://opendatacommunities.org/id/metropolitan-district-council/walsall ,WC157-578,31.12.2023,ECONOMY & ENVIRONMENT CAPITAL,AECOM INFRASTRUCTURE & ENVIRONMENT UK LIMITED,20/12/2023,"62,688.26",7200-Consultants Fees,CAPITAL,"NEW CONSTRUCTION,CONVERSION & RENOVATION",CAPITAL
Walsall Council,http://opendatacommunities.org/id/metropolitan-district-council/walsall ,WC157-579,31.12.2023,ECONOMY & ENVIRONMENT CAPITAL,AECOM INFRASTRUCTURE & ENVIRONMENT UK LIMITED,20/12/2023,"20,896.09",7200-Consultants Fees,CAPITAL,"NEW CONSTRUCTION,CONVERSION & RENOVATION",CAPITAL
Walsall Council,http://opendatacommunities.org/id/metropolitan-district-council/walsall ,WC157-580,31.12.2023,ECONOMY & ENVIRONMENT CAPITAL,AECOM INFRASTRUCTURE & ENVIRONMENT UK LIMITED,21/12/2023,"-7,600.00",7200-Project Fees,CAPITAL,"NEW CONSTRUCTION,CONVERSION & RENOVATION",CAPITAL
Walsall Council,http://opendatacommunities.org/id/metropolitan-district-council/walsall ,WC157-581,31.12.2023,HOLDING ACCOUNTS,AEGIS LEGAL LIMITED,19/12/2023,"4,337.20",2877-Insurance Payment Claims,SUPPLIES & SERVICES,INSURANCE,REVENUE
Walsall Council,http://opendatacommunities.org/id/metropolitan-district-council/walsall ,WC157-582,31.12.2023,ADULT SOCIAL CARE,REDACTED,07/12/2023,746.40,6541-Direct Payment,THIRD PARTY PAYMENTS,PRIVATE CONTRACTOR,REVENUE
Walsall Council,http://opendatacommunities.org/id/metropolitan-district-council/walsall ,WC157-583,31.12.2023,ADULT SOCIAL CARE,REDACTED,07/12/2023,"1,575.00",6541-Direct Payment,THIRD PARTY PAYMENTS,PRIVATE CONTRACTOR,REVENUE
Walsall Council,http://opendatacommunities.org/id/metropolitan-district-council/walsall ,WC157-584,31.12.2023,CHILDRENS,REDACTED,14/12/2023,535.08,6223-Special Guardianship Orders,TRANSFER PAYMENTS,CHILDREN SOCIAL SERVICES CLIENT,REVENUE
Walsall Council,http://opendatacommunities.org/id/metropolitan-district-council/walsall ,WC157-585,31.12.2023,CHILDRENS,REDACTED,07/12/2023,299.00,6223-Setting Up Home Grant,TRANSFER PAYMENTS,CHILDREN SOCIAL SERVICES CLIENT,REVENUE
Walsall Council,http://opendatacommunities.org/id/metropolitan-district-council/walsall ,WC157-586,31.12.2023,ADULT SOCIAL CARE,REDACTED,07/12/2023,"3,545.40",6541-Direct Payment,THIRD PARTY PAYMENTS,PRIVATE CONTRACTOR,REVENUE
Walsall Council,http://opendatacommunities.org/id/metropolitan-district-council/walsall ,WC157-587,31.12.2023,"ECONOMY, ENVIRONMENT & COMMUNITIES",AIRE VALLEY GAS LTD T/A RECOVERCYL,21/12/2023,"2,495.00",6410-Purchase of Furniture & Equipment,SUPPLIES & SERVICES,EQUIPMENT FURNITURE & MATERIALS,REVENUE
Walsall Council,http://opendatacommunities.org/id/metropolitan-district-council/walsall ,WC157-588,31.12.2023,ADULT SOCIAL CARE,REDACTED,07/12/2023,"1,406.80",6541-Direct Payment,THIRD PARTY PAYMENTS,PRIVATE CONTRACTOR,REVENUE
Walsall Council,http://opendatacommunities.org/id/metropolitan-district-council/walsall ,WC157-589,31.12.2023,ADULT SOCIAL CARE,REDACTED,07/12/2023,642.35,6541-Direct Payment,THIRD PARTY PAYMENTS,PRIVATE CONTRACTOR,REVENUE
Walsall Council,http://opendatacommunities.org/id/metropolitan-district-council/walsall ,WC157-590,31.12.2023,ADULT SOCIAL CARE,REDACTED,07/12/2023,334.30,6541-Direct Payment,THIRD PARTY PAYMENTS,PRIVATE CONTRACTOR,REVENUE
Walsall Council,http://opendatacommunities.org/id/metropolitan-district-council/walsall ,WC157-591,31.12.2023,ADULT SOCIAL CARE,REDACTED,07/12/2023,"1,745.00",6541-Direct Payment,THIRD PARTY PAYMENTS,PRIVATE CONTRACTOR,REVENUE
Walsall Council,http://opendatacommunities.org/id/metropolitan-district-council/walsall ,WC157-592,31.12.2023,ADULT SOCIAL CARE,REDACTED,07/12/2023,"1,741.60",6541-Direct Payment,THIRD PARTY PAYMENTS,PRIVATE CONTRACTOR,REVENUE
Walsall Council,http://opendatacommunities.org/id/metropolitan-district-council/walsall ,WC157-593,31.12.2023,CHILDRENS,ALASDAIR CANT & ASSOCIATES LIMITED,04/12/2023,"3,895.39",6220-Professional Fees & Services,SUPPLIES & SERVICES,SERVICES,REVENUE
Walsall Council,http://opendatacommunities.org/id/metropolitan-district-council/walsall ,WC157-594,31.12.2023,ADULT SOCIAL CARE,ALDBOURNE NURSING HOME LTD,19/12/2023,"5,920.00",6541-Nursing EMI,THIRD PARTY PAYMENTS,PRIVATE CONTRACTOR,REVENUE
Walsall Council,http://opendatacommunities.org/id/metropolitan-district-council/walsall ,WC157-595,31.12.2023,CHILDRENS,ALDRIDGE & BARONS LIMITED,04/12/2023,"1,703.80",6241-Hire of Vehicle with Driver,TRANSPORT,DIRECT TRANSPORT COSTS,REVENUE
Walsall Council,http://opendatacommunities.org/id/metropolitan-district-council/walsall ,WC157-596,31.12.2023,CHILDRENS,ALDRIDGE & BARONS LIMITED,04/12/2023,"2,203.95",6241-Hire of Vehicle with Driver,TRANSPORT,DIRECT TRANSPORT COSTS,REVENUE
Walsall Council,http://opendatacommunities.org/id/metropolitan-district-council/walsall ,WC157-597,31.12.2023,CHILDRENS,ALDRIDGE & BARONS LIMITED,04/12/2023,"2,002.00",6241-Hire of Vehicle with Driver,TRANSPORT,DIRECT TRANSPORT COSTS,REVENUE
Walsall Council,http://opendatacommunities.org/id/metropolitan-district-council/walsall ,WC157-598,31.12.2023,CHILDRENS,ALDRIDGE & BARONS LIMITED,04/12/2023,"1,950.00",6241-Hire of Vehicle with Driver,TRANSPORT,DIRECT TRANSPORT COSTS,REVENUE
Walsall Council,http://opendatacommunities.org/id/metropolitan-district-council/walsall ,WC157-599,31.12.2023,CHILDRENS,ALDRIDGE & BARONS LIMITED,04/12/2023,"2,108.70",6241-Hire of Vehicle with Driver,TRANSPORT,DIRECT TRANSPORT COSTS,REVENUE
Walsall Council,http://opendatacommunities.org/id/metropolitan-district-council/walsall ,WC157-600,31.12.2023,CHILDRENS,ALDRIDGE & BARONS LIMITED,04/12/2023,"2,512.50",6241-Hire of Vehicle with Driver,TRANSPORT,DIRECT TRANSPORT COSTS,REVENUE
Walsall Council,http://opendatacommunities.org/id/metropolitan-district-council/walsall ,WC157-601,31.12.2023,CHILDRENS,ALDRIDGE & BARONS LIMITED,04/12/2023,"1,593.00",6241-Hire of Vehicle with Driver,TRANSPORT,DIRECT TRANSPORT COSTS,REVENUE
Walsall Council,http://opendatacommunities.org/id/metropolitan-district-council/walsall ,WC157-602,31.12.2023,CHILDRENS,ALDRIDGE & BARONS LIMITED,04/12/2023,"1,435.50",6241-Hire of Vehicle with Driver,TRANSPORT,DIRECT TRANSPORT COSTS,REVENUE
Walsall Council,http://opendatacommunities.org/id/metropolitan-district-council/walsall ,WC157-603,31.12.2023,CHILDRENS,ALDRIDGE & BARONS LIMITED,04/12/2023,"2,703.60",6241-Hire of Vehicle with Driver,TRANSPORT,DIRECT TRANSPORT COSTS,REVENUE
Walsall Council,http://opendatacommunities.org/id/metropolitan-district-council/walsall ,WC157-604,31.12.2023,CHILDRENS,ALDRIDGE & BARONS LIMITED,04/12/2023,"1,674.00",6241-Hire of Vehicle with Driver,TRANSPORT,DIRECT TRANSPORT COSTS,REVENUE
Walsall Council,http://opendatacommunities.org/id/metropolitan-district-council/walsall ,WC157-605,31.12.2023,CHILDRENS,ALDRIDGE & BARONS LIMITED,04/12/2023,"2,250.00",6241-Hire of Vehicle with Driver,TRANSPORT,DIRECT TRANSPORT COSTS,REVENUE
Walsall Council,http://opendatacommunities.org/id/metropolitan-district-council/walsall ,WC157-606,31.12.2023,CHILDRENS,ALDRIDGE & BARONS LIMITED,04/12/2023,"2,520.00",6241-Hire of Vehicle with Driver,TRANSPORT,DIRECT TRANSPORT COSTS,REVENUE
Walsall Council,http://opendatacommunities.org/id/metropolitan-district-council/walsall ,WC157-607,31.12.2023,CHILDRENS,ALDRIDGE & BARONS LIMITED,04/12/2023,"1,485.00",6241-Hire of Vehicle with Driver,TRANSPORT,DIRECT TRANSPORT COSTS,REVENUE
Walsall Council,http://opendatacommunities.org/id/metropolitan-district-council/walsall ,WC157-608,31.12.2023,CHILDRENS,ALDRIDGE & BARONS LIMITED,04/12/2023,"2,145.00",6241-Hire of Vehicle with Driver,TRANSPORT,DIRECT TRANSPORT COSTS,REVENUE
Walsall Council,http://opendatacommunities.org/id/metropolitan-district-council/walsall ,WC157-609,31.12.2023,CHILDRENS,ALDRIDGE & BARONS LIMITED,04/12/2023,"2,102.80",6241-Hire of Vehicle with Driver,TRANSPORT,DIRECT TRANSPORT COSTS,REVENUE
Walsall Council,http://opendatacommunities.org/id/metropolitan-district-council/walsall ,WC157-610,31.12.2023,CHILDRENS,ALDRIDGE & BARONS LIMITED,04/12/2023,"1,440.00",6241-Hire of Vehicle with Driver,TRANSPORT,DIRECT TRANSPORT COSTS,REVENUE
Walsall Council,http://opendatacommunities.org/id/metropolitan-district-council/walsall ,WC157-611,31.12.2023,CHILDRENS,ALDRIDGE & BARONS LIMITED,04/12/2023,"2,145.00",6241-Hire of Vehicle with Driver,TRANSPORT,DIRECT TRANSPORT COSTS,REVENUE
Walsall Council,http://opendatacommunities.org/id/metropolitan-district-council/walsall ,WC157-612,31.12.2023,CHILDRENS,ALDRIDGE & BARONS LIMITED,04/12/2023,"2,250.00",6241-Hire of Vehicle with Driver,TRANSPORT,DIRECT TRANSPORT COSTS,REVENUE
Walsall Council,http://opendatacommunities.org/id/metropolitan-district-council/walsall ,WC157-613,31.12.2023,CHILDRENS,ALDRIDGE & BARONS LIMITED,04/12/2023,"1,350.00",6241-Hire of Vehicle with Driver,TRANSPORT,DIRECT TRANSPORT COSTS,REVENUE
Walsall Council,http://opendatacommunities.org/id/metropolitan-district-council/walsall ,WC157-614,31.12.2023,CHILDRENS,ALDRIDGE & BARONS LIMITED,04/12/2023,"2,380.35",6241-Hire of Vehicle with Driver,TRANSPORT,DIRECT TRANSPORT COSTS,REVENUE
Walsall Council,http://opendatacommunities.org/id/metropolitan-district-council/walsall ,WC157-615,31.12.2023,CHILDRENS,ALDRIDGE & BARONS LIMITED,04/12/2023,"1,875.00",6241-Hire of Vehicle with Driver,TRANSPORT,DIRECT TRANSPORT COSTS,REVENUE
Walsall Council,http://opendatacommunities.org/id/metropolitan-district-council/walsall ,WC157-616,31.12.2023,CHILDRENS,ALDRIDGE & BARONS LIMITED,04/12/2023,"1,540.00",6241-Hire of Vehicle with Driver,TRANSPORT,DIRECT TRANSPORT COSTS,REVENUE
Walsall Council,http://opendatacommunities.org/id/metropolitan-district-council/walsall ,WC157-617,31.12.2023,CHILDRENS,ALDRIDGE & BARONS LIMITED,04/12/2023,"1,800.00",6241-Hire of Vehicle with Driver,TRANSPORT,DIRECT TRANSPORT COSTS,REVENUE
Walsall Council,http://opendatacommunities.org/id/metropolitan-district-council/walsall ,WC157-618,31.12.2023,CHILDRENS,ALDRIDGE & BARONS LIMITED,04/12/2023,"2,175.00",6241-Hire of Vehicle with Driver,TRANSPORT,DIRECT TRANSPORT COSTS,REVENUE
Walsall Council,http://opendatacommunities.org/id/metropolitan-district-council/walsall ,WC157-619,31.12.2023,CHILDRENS,ALDRIDGE & BARONS LIMITED,04/12/2023,"2,165.70",6241-Hire of Vehicle with Driver,TRANSPORT,DIRECT TRANSPORT COSTS,REVENUE
Walsall Council,http://opendatacommunities.org/id/metropolitan-district-council/walsall ,WC157-620,31.12.2023,CHILDRENS,ALDRIDGE & BARONS LIMITED,04/12/2023,"1,755.00",6241-Hire of Vehicle with Driver,TRANSPORT,DIRECT TRANSPORT COSTS,REVENUE
Walsall Council,http://opendatacommunities.org/id/metropolitan-district-council/walsall ,WC157-621,31.12.2023,CHILDRENS,ALDRIDGE & BARONS LIMITED,04/12/2023,"1,687.50",6241-Hire of Vehicle with Driver,TRANSPORT,DIRECT TRANSPORT COSTS,REVENUE
Walsall Council,http://opendatacommunities.org/id/metropolitan-district-council/walsall ,WC157-622,31.12.2023,CHILDRENS,ALDRIDGE & BARONS LIMITED,04/12/2023,"3,266.00",6241-Hire of Vehicle with Driver,TRANSPORT,DIRECT TRANSPORT COSTS,REVENUE
Walsall Council,http://opendatacommunities.org/id/metropolitan-district-council/walsall ,WC157-623,31.12.2023,CHILDRENS,ALDRIDGE & BARONS LIMITED,04/12/2023,"2,200.00",6241-Hire of Vehicle with Driver,TRANSPORT,DIRECT TRANSPORT COSTS,REVENUE
Walsall Council,http://opendatacommunities.org/id/metropolitan-district-council/walsall ,WC157-624,31.12.2023,CHILDRENS,ALDRIDGE & BARONS LIMITED,04/12/2023,"2,664.00",6241-Hire of Vehicle with Driver,TRANSPORT,DIRECT TRANSPORT COSTS,REVENUE
Walsall Council,http://opendatacommunities.org/id/metropolitan-district-council/walsall ,WC157-625,31.12.2023,CHILDRENS,ALDRIDGE & BARONS LIMITED,04/12/2023,"2,177.28",6241-Hire of Vehicle with Driver,TRANSPORT,DIRECT TRANSPORT COSTS,REVENUE
Walsall Council,http://opendatacommunities.org/id/metropolitan-district-council/walsall ,WC157-626,31.12.2023,CHILDRENS,ALDRIDGE & BARONS LIMITED,04/12/2023,"2,367.00",6241-Hire of Vehicle with Driver,TRANSPORT,DIRECT TRANSPORT COSTS,REVENUE
Walsall Council,http://opendatacommunities.org/id/metropolitan-district-council/walsall ,WC157-627,31.12.2023,ADULT SOCIAL CARE,REDACTED,07/12/2023,"2,160.00",6541-Direct Payment,THIRD PARTY PAYMENTS,PRIVATE CONTRACTOR,REVENUE
Walsall Council,http://opendatacommunities.org/id/metropolitan-district-council/walsall ,WC157-628,31.12.2023,ADULT SOCIAL CARE,REDACTED,07/12/2023,632.40,6541-Direct Payment,THIRD PARTY PAYMENTS,PRIVATE CONTRACTOR,REVENUE
Walsall Council,http://opendatacommunities.org/id/metropolitan-district-council/walsall ,WC157-629,31.12.2023,ADULT SOCIAL CARE,ALEXANDRA HOUSE CARE SERVICES LTD T/A STONEBRIDGE NURSING HOME,19/12/2023,"7,546.24",6541-Residential,THIRD PARTY PAYMENTS,PRIVATE CONTRACTOR,REVENUE
Walsall Council,http://opendatacommunities.org/id/metropolitan-district-council/walsall ,WC157-630,31.12.2023,ADULT SOCIAL CARE,ALEXANDRA HOUSE SUPPORT SERVICES LTD,19/12/2023,"5,936.00",6541-Residential,THIRD PARTY PAYMENTS,PRIVATE CONTRACTOR,REVENUE
Walsall Council,http://opendatacommunities.org/id/metropolitan-district-council/walsall ,WC157-631,31.12.2023,ADULT SOCIAL CARE,REDACTED,07/12/2023,"1,368.40",6541-Direct Payment,THIRD PARTY PAYMENTS,PRIVATE CONTRACTOR,REVENUE
Walsall Council,http://opendatacommunities.org/id/metropolitan-district-council/walsall ,WC157-632,31.12.2023,CHILDRENS,REDACTED,14/12/2023,355.56,6223-Special Guardianship Orders,TRANSFER PAYMENTS,CHILDREN SOCIAL SERVICES CLIENT,REVENUE
Walsall Council,http://opendatacommunities.org/id/metropolitan-district-council/walsall ,WC157-633,31.12.2023,ADULT SOCIAL CARE,REDACTED,06/12/2023,"1,335.00",6420-Other Expenses,SUPPLIES & SERVICES,EXPENSES,REVENUE
Walsall Council,http://opendatacommunities.org/id/metropolitan-district-council/walsall ,WC157-634,31.12.2023,CHILDRENS,ALL SAINTS C OF E PRIMARY SCHOOL,29/12/2023,"3,131.33",1220-Top Up Funding -Grants to Schools,SUPPLIES & SERVICES,GRANTS (EXP) & SUBSCRIPTIONS,REVENUE
Walsall Council,http://opendatacommunities.org/id/metropolitan-district-council/walsall ,WC157-635,31.12.2023,CHILDRENS,ALL SAINTS NATIONAL ACADEMY #1,21/12/2023,"6,016.17",1220-Top Up Funding -Grants to Schools,SUPPLIES & SERVICES,GRANTS (EXP) & SUBSCRIPTIONS,REVENUE
Walsall Council,http://opendatacommunities.org/id/metropolitan-district-council/walsall ,WC157-636,31.12.2023,CHILDRENS,ALL STARS WALSALL CIC,18/12/2023,"2,400.00",6211-Professional Fees & Services,SUPPLIES & SERVICES,SERVICES,REVENUE
Walsall Council,http://opendatacommunities.org/id/metropolitan-district-council/walsall ,WC157-637,31.12.2023,CHILDRENS,ALLIANCE CARE LTD,18/12/2023,"4,500.00",6220-Professional Fees & Services,SUPPLIES & SERVICES,SERVICES,REVENUE
Walsall Council,http://opendatacommunities.org/id/metropolitan-district-council/walsall ,WC157-638,31.12.2023,ECONOMY & ENVIRONMENT CAPITAL,ALLIANCE LEISURE SERVICES LTD,22/12/2023,"-181,620.65",7200-Site Works Contractors,CAPITAL,"NEW CONSTRUCTION,CONVERSION & RENOVATION",CAPITAL
Walsall Council,http://opendatacommunities.org/id/metropolitan-district-council/walsall ,WC157-639,31.12.2023,ECONOMY & ENVIRONMENT CAPITAL,ALLIANCE LEISURE SERVICES LTD,22/12/2023,"181,620.65",7200-Site Works Contractors,CAPITAL,"NEW CONSTRUCTION,CONVERSION & RENOVATION",CAPITAL
Walsall Council,http://opendatacommunities.org/id/metropolitan-district-council/walsall ,WC157-640,31.12.2023,ECONOMY & ENVIRONMENT CAPITAL,ALLIANCE LEISURE SERVICES LTD,22/12/2023,"101,762.19",7200-Site Works Contractors,CAPITAL,"NEW CONSTRUCTION,CONVERSION & RENOVATION",CAPITAL
Walsall Council,http://opendatacommunities.org/id/metropolitan-district-council/walsall ,WC157-641,31.12.2023,RESOURCES AND TRANSFORMATION,ALLIED PUBLICITY SERVICES (MANCHESTER) LIMITED T/A APS GROUP,12/12/2023,"1,835.22",6312-External Printing Services,SUPPLIES & SERVICES,PRINTING STATIONERY & GENERAL OFFICE,REVENUE
Walsall Council,http://opendatacommunities.org/id/metropolitan-district-council/walsall ,WC157-642,31.12.2023,RESOURCES AND TRANSFORMATION CAPITAL,ALLSORTS OFFICE SUPPLIES LTD,29/12/2023,"-7,920.00",7300-Purchase of Furniture & Equipment,CAPITAL,"VEHICLES,PLANT,EQUIPMENT & MACHINERY",CAPITAL
Walsall Council,http://opendatacommunities.org/id/metropolitan-district-council/walsall ,WC157-643,31.12.2023,RESOURCES AND TRANSFORMATION CAPITAL,ALLSORTS OFFICE SUPPLIES LTD,29/12/2023,-480.00,7300-Purchase of Furniture & Equipment,CAPITAL,"VEHICLES,PLANT,EQUIPMENT & MACHINERY",CAPITAL
Walsall Council,http://opendatacommunities.org/id/metropolitan-district-council/walsall ,WC157-644,31.12.2023,RESOURCES AND TRANSFORMATION CAPITAL,ALLSORTS OFFICE SUPPLIES LTD,29/12/2023,-320.00,7300-Purchase of Furniture & Equipment,CAPITAL,"VEHICLES,PLANT,EQUIPMENT & MACHINERY",CAPITAL
Walsall Council,http://opendatacommunities.org/id/metropolitan-district-council/walsall ,WC157-645,31.12.2023,RESOURCES AND TRANSFORMATION CAPITAL,ALLSORTS OFFICE SUPPLIES LTD,29/12/2023,320.00,7300-Purchase of Furniture & Equipment,CAPITAL,"VEHICLES,PLANT,EQUIPMENT & MACHINERY",CAPITAL
Walsall Council,http://opendatacommunities.org/id/metropolitan-district-council/walsall ,WC157-646,31.12.2023,RESOURCES AND TRANSFORMATION CAPITAL,ALLSORTS OFFICE SUPPLIES LTD,29/12/2023,480.00,7300-Purchase of Furniture & Equipment,CAPITAL,"VEHICLES,PLANT,EQUIPMENT & MACHINERY",CAPITAL
Walsall Council,http://opendatacommunities.org/id/metropolitan-district-council/walsall ,WC157-647,31.12.2023,RESOURCES AND TRANSFORMATION CAPITAL,ALLSORTS OFFICE SUPPLIES LTD,29/12/2023,"7,920.00",7300-Purchase of Furniture & Equipment,CAPITAL,"VEHICLES,PLANT,EQUIPMENT & MACHINERY",CAPITAL
Walsall Council,http://opendatacommunities.org/id/metropolitan-district-council/walsall ,WC157-648,31.12.2023,RESOURCES AND TRANSFORMATION CAPITAL,ALLSORTS OFFICE SUPPLIES LTD,29/12/2023,681.00,7300-Purchase of Furniture & Equipment,CAPITAL,"VEHICLES,PLANT,EQUIPMENT & MACHINERY",CAPITAL
Walsall Council,http://opendatacommunities.org/id/metropolitan-district-council/walsall ,WC157-649,31.12.2023,RESOURCES AND TRANSFORMATION CAPITAL,ALLSORTS OFFICE SUPPLIES LTD,29/12/2023,"1,356.40",7300-Purchase of Furniture & Equipment,CAPITAL,"VEHICLES,PLANT,EQUIPMENT & MACHINERY",CAPITAL
Walsall Council,http://opendatacommunities.org/id/metropolitan-district-council/walsall ,WC157-650,31.12.2023,RESOURCES AND TRANSFORMATION CAPITAL,ALLSORTS OFFICE SUPPLIES LTD,29/12/2023,"1,400.00",7300-Purchase of Furniture & Equipment,CAPITAL,"VEHICLES,PLANT,EQUIPMENT & MACHINERY",CAPITAL
Walsall Council,http://opendatacommunities.org/id/metropolitan-district-council/walsall ,WC157-651,31.12.2023,RESOURCES AND TRANSFORMATION CAPITAL,ALLSORTS OFFICE SUPPLIES LTD,29/12/2023,"1,896.00",7300-Purchase of Furniture & Equipment,CAPITAL,"VEHICLES,PLANT,EQUIPMENT & MACHINERY",CAPITAL
Walsall Council,http://opendatacommunities.org/id/metropolitan-district-council/walsall ,WC157-652,31.12.2023,RESOURCES AND TRANSFORMATION CAPITAL,ALLSORTS OFFICE SUPPLIES LTD,29/12/2023,"2,412.00",7300-Purchase of Furniture & Equipment,CAPITAL,"VEHICLES,PLANT,EQUIPMENT & MACHINERY",CAPITAL
Walsall Council,http://opendatacommunities.org/id/metropolitan-district-council/walsall ,WC157-653,31.12.2023,RESOURCES AND TRANSFORMATION CAPITAL,ALLSORTS OFFICE SUPPLIES LTD,29/12/2023,"2,419.20",7300-Purchase of Furniture & Equipment,CAPITAL,"VEHICLES,PLANT,EQUIPMENT & MACHINERY",CAPITAL
Walsall Council,http://opendatacommunities.org/id/metropolitan-district-council/walsall ,WC157-654,31.12.2023,RESOURCES AND TRANSFORMATION CAPITAL,ALLSORTS OFFICE SUPPLIES LTD,29/12/2023,"2,784.00",7300-Purchase of Furniture & Equipment,CAPITAL,"VEHICLES,PLANT,EQUIPMENT & MACHINERY",CAPITAL
Walsall Council,http://opendatacommunities.org/id/metropolitan-district-council/walsall ,WC157-655,31.12.2023,RESOURCES AND TRANSFORMATION CAPITAL,ALLSORTS OFFICE SUPPLIES LTD,29/12/2023,"3,326.40",7300-Purchase of Furniture & Equipment,CAPITAL,"VEHICLES,PLANT,EQUIPMENT & MACHINERY",CAPITAL
Walsall Council,http://opendatacommunities.org/id/metropolitan-district-council/walsall ,WC157-656,31.12.2023,RESOURCES AND TRANSFORMATION CAPITAL,ALLSORTS OFFICE SUPPLIES LTD,29/12/2023,"5,402.40",7300-Purchase of Furniture & Equipment,CAPITAL,"VEHICLES,PLANT,EQUIPMENT & MACHINERY",CAPITAL
Walsall Council,http://opendatacommunities.org/id/metropolitan-district-council/walsall ,WC157-657,31.12.2023,RESOURCES AND TRANSFORMATION CAPITAL,ALLSORTS OFFICE SUPPLIES LTD,29/12/2023,"8,089.20",7300-Purchase of Furniture & Equipment,CAPITAL,"VEHICLES,PLANT,EQUIPMENT & MACHINERY",CAPITAL
Walsall Council,http://opendatacommunities.org/id/metropolitan-district-council/walsall ,WC157-658,31.12.2023,ADULT SOCIAL CARE,ALMA COURT,19/12/2023,"4,861.00",6541-Nursing EMI,THIRD PARTY PAYMENTS,PRIVATE CONTRACTOR,REVENUE
Walsall Council,http://opendatacommunities.org/id/metropolitan-district-council/walsall ,WC157-659,31.12.2023,ADULT SOCIAL CARE,ALMA COURT,19/12/2023,"4,263.00",6541-Residential,THIRD PARTY PAYMENTS,PRIVATE CONTRACTOR,REVENUE
Walsall Council,http://opendatacommunities.org/id/metropolitan-district-council/walsall ,WC157-660,31.12.2023,ADULT SOCIAL CARE,ALMA COURT,19/12/2023,"4,055.28",6541-Nursing EMI,THIRD PARTY PAYMENTS,PRIVATE CONTRACTOR,REVENUE
Walsall Council,http://opendatacommunities.org/id/metropolitan-district-council/walsall ,WC157-661,31.12.2023,ADULT SOCIAL CARE,ALMA COURT,19/12/2023,"6,718.40",6541-Residential,THIRD PARTY PAYMENTS,PRIVATE CONTRACTOR,REVENUE
Walsall Council,http://opendatacommunities.org/id/metropolitan-district-council/walsall ,WC157-662,31.12.2023,ADULT SOCIAL CARE,ALMA COURT,19/12/2023,"5,200.00",6541-Nursing EMI,THIRD PARTY PAYMENTS,PRIVATE CONTRACTOR,REVENUE
Walsall Council,http://opendatacommunities.org/id/metropolitan-district-council/walsall ,WC157-663,31.12.2023,RESOURCES AND TRANSFORMATION,ALMADEN UK LTD,04/12/2023,"1,000.00",6623-Computer Equipment,SUPPLIES & SERVICES,COMMUNICATIONS & COMPUTING,REVENUE
Walsall Council,http://opendatacommunities.org/id/metropolitan-district-council/walsall ,WC157-664,31.12.2023,RESOURCES AND TRANSFORMATION CAPITAL,ALMADEN UK LTD,13/12/2023,"5,313.00",7300-Consultants Fees,CAPITAL,"NEW CONSTRUCTION,CONVERSION & RENOVATION",CAPITAL
Walsall Council,http://opendatacommunities.org/id/metropolitan-district-council/walsall ,WC157-665,31.12.2023,CHILDRENS,ALMOZENE NURSERY & CHILDRENS CENTRE,01/12/2023,"3,182.67",1265-Early Years Supplementary Grant Expenditure,TRANSFER PAYMENTS,SCHOOLCHILDREN/STUDENTS,REVENUE
Walsall Council,http://opendatacommunities.org/id/metropolitan-district-council/walsall ,WC157-666,31.12.2023,CHILDRENS,ALMOZENE NURSERY & CHILDRENS CENTRE,01/12/2023,"1,354.70",1265-Early Years Supplementary Grant Expenditure,TRANSFER PAYMENTS,SCHOOLCHILDREN/STUDENTS,REVENUE
Walsall Council,http://opendatacommunities.org/id/metropolitan-district-council/walsall ,WC157-667,31.12.2023,ADULT SOCIAL CARE,ALPHA HEALTH CARE LTD,19/12/2023,"3,047.12",6541-Nursing,THIRD PARTY PAYMENTS,PRIVATE CONTRACTOR,REVENUE
Walsall Council,http://opendatacommunities.org/id/metropolitan-district-council/walsall ,WC157-668,31.12.2023,ADULT SOCIAL CARE,ALPHA HEALTH CARE LTD,19/12/2023,"7,105.00",6541-Residential,THIRD PARTY PAYMENTS,PRIVATE CONTRACTOR,REVENUE
Walsall Council,http://opendatacommunities.org/id/metropolitan-district-council/walsall ,WC157-669,31.12.2023,ADULT SOCIAL CARE,ALPHA HEALTH CARE LTD,19/12/2023,"3,422.28",6541-Residential EMI,THIRD PARTY PAYMENTS,PRIVATE CONTRACTOR,REVENUE
Walsall Council,http://opendatacommunities.org/id/metropolitan-district-council/walsall ,WC157-670,31.12.2023,ADULT SOCIAL CARE,ALPHA HEALTH CARE LTD,19/12/2023,"3,723.08",6541-Nursing EMI,THIRD PARTY PAYMENTS,PRIVATE CONTRACTOR,REVENUE
Walsall Council,http://opendatacommunities.org/id/metropolitan-district-council/walsall ,WC157-671,31.12.2023,ADULT SOCIAL CARE,ALPHA HEALTH CARE LTD,19/12/2023,"4,175.28",6541-Nursing EMI,THIRD PARTY PAYMENTS,PRIVATE CONTRACTOR,REVENUE
Walsall Council,http://opendatacommunities.org/id/metropolitan-district-council/walsall ,WC157-672,31.12.2023,ADULT SOCIAL CARE,ALPHA HEALTH CARE LTD,19/12/2023,"1,289.56",6541-Nursing,THIRD PARTY PAYMENTS,PRIVATE CONTRACTOR,REVENUE
Walsall Council,http://opendatacommunities.org/id/metropolitan-district-council/walsall ,WC157-673,31.12.2023,ADULT SOCIAL CARE,ALPHA HEALTH CARE LTD,19/12/2023,"3,090.44",6541-Residential,THIRD PARTY PAYMENTS,PRIVATE CONTRACTOR,REVENUE
Walsall Council,http://opendatacommunities.org/id/metropolitan-district-council/walsall ,WC157-674,31.12.2023,ADULT SOCIAL CARE,ALPHA HEALTH CARE LTD,19/12/2023,"2,936.84",6541-Residential EMI,THIRD PARTY PAYMENTS,PRIVATE CONTRACTOR,REVENUE
Walsall Council,http://opendatacommunities.org/id/metropolitan-district-council/walsall ,WC157-675,31.12.2023,ADULT SOCIAL CARE,ALPHA HEALTH CARE LTD,19/12/2023,"7,600.00",6541-Residential,THIRD PARTY PAYMENTS,PRIVATE CONTRACTOR,REVENUE
Walsall Council,http://opendatacommunities.org/id/metropolitan-district-council/walsall ,WC157-676,31.12.2023,ADULT SOCIAL CARE,ALPHA HEALTH CARE LTD,19/12/2023,"7,600.00",6541-Residential,THIRD PARTY PAYMENTS,PRIVATE CONTRACTOR,REVENUE
Walsall Council,http://opendatacommunities.org/id/metropolitan-district-council/walsall ,WC157-677,31.12.2023,ADULT SOCIAL CARE,ALPHA HEALTH CARE LTD,19/12/2023,"3,567.32",6541-Residential EMI,THIRD PARTY PAYMENTS,PRIVATE CONTRACTOR,REVENUE
Walsall Council,http://opendatacommunities.org/id/metropolitan-district-council/walsall ,WC157-678,31.12.2023,ADULT SOCIAL CARE,ALPHA HEALTH CARE LTD,19/12/2023,"4,855.28",6541-Nursing EMI,THIRD PARTY PAYMENTS,PRIVATE CONTRACTOR,REVENUE
Walsall Council,http://opendatacommunities.org/id/metropolitan-district-council/walsall ,WC157-679,31.12.2023,ADULT SOCIAL CARE,ALPHA HEALTH CARE LTD,19/12/2023,"5,055.28",6541-Nursing EMI,THIRD PARTY PAYMENTS,PRIVATE CONTRACTOR,REVENUE
Walsall Council,http://opendatacommunities.org/id/metropolitan-district-council/walsall ,WC157-680,31.12.2023,ADULT SOCIAL CARE,ALPHA HEALTH CARE LTD,19/12/2023,"6,343.36",6541-Residential,THIRD PARTY PAYMENTS,PRIVATE CONTRACTOR,REVENUE
Walsall Council,http://opendatacommunities.org/id/metropolitan-district-council/walsall ,WC157-681,31.12.2023,ADULT SOCIAL CARE,ALPHA HEALTH CARE LTD,19/12/2023,"2,386.54",6541-Nursing,THIRD PARTY PAYMENTS,PRIVATE CONTRACTOR,REVENUE
Walsall Council,http://opendatacommunities.org/id/metropolitan-district-council/walsall ,WC157-682,31.12.2023,ADULT SOCIAL CARE,ALPHA HEALTH CARE LTD,19/12/2023,"2,819.08",6541-Nursing EMI,THIRD PARTY PAYMENTS,PRIVATE CONTRACTOR,REVENUE
Walsall Council,http://opendatacommunities.org/id/metropolitan-district-council/walsall ,WC157-683,31.12.2023,ADULT SOCIAL CARE,ALPHA HEALTH CARE LTD,19/12/2023,"3,800.00",6541-Residential,THIRD PARTY PAYMENTS,PRIVATE CONTRACTOR,REVENUE
Walsall Council,http://opendatacommunities.org/id/metropolitan-district-council/walsall ,WC157-684,31.12.2023,ADULT SOCIAL CARE,ALPHA HEALTH CARE LTD,19/12/2023,"4,600.00",6541-Residential,THIRD PARTY PAYMENTS,PRIVATE CONTRACTOR,REVENUE
Walsall Council,http://opendatacommunities.org/id/metropolitan-district-council/walsall ,WC157-685,31.12.2023,ADULT SOCIAL CARE,ALPHA HEALTH CARE LTD,19/12/2023,"7,980.00",6541-Residential,THIRD PARTY PAYMENTS,PRIVATE CONTRACTOR,REVENUE
Walsall Council,http://opendatacommunities.org/id/metropolitan-district-council/walsall ,WC157-686,31.12.2023,ADULT SOCIAL CARE,ALPHA HEALTH CARE LTD,19/12/2023,"48,429.39",6541-Nursing EMI,THIRD PARTY PAYMENTS,PRIVATE CONTRACTOR,REVENUE
Walsall Council,http://opendatacommunities.org/id/metropolitan-district-council/walsall ,WC157-687,31.12.2023,ADULT SOCIAL CARE,ALPHA HEALTH CARE LTD,19/12/2023,"3,445.36",6541-Residential EMI,THIRD PARTY PAYMENTS,PRIVATE CONTRACTOR,REVENUE
Walsall Council,http://opendatacommunities.org/id/metropolitan-district-council/walsall ,WC157-688,31.12.2023,ADULT SOCIAL CARE,ALPHA HEALTH CARE LTD,19/12/2023,"2,813.36",6541-Residential EMI,THIRD PARTY PAYMENTS,PRIVATE CONTRACTOR,REVENUE
Walsall Council,http://opendatacommunities.org/id/metropolitan-district-council/walsall ,WC157-689,31.12.2023,ADULT SOCIAL CARE,ALPHA HEALTH CARE LTD,19/12/2023,"3,829.36",6541-Residential EMI,THIRD PARTY PAYMENTS,PRIVATE CONTRACTOR,REVENUE
Walsall Council,http://opendatacommunities.org/id/metropolitan-district-council/walsall ,WC157-690,31.12.2023,ADULT SOCIAL CARE,ALPHA HEALTH CARE LTD,19/12/2023,"7,600.00",6541-Residential,THIRD PARTY PAYMENTS,PRIVATE CONTRACTOR,REVENUE
Walsall Council,http://opendatacommunities.org/id/metropolitan-district-council/walsall ,WC157-691,31.12.2023,ADULT SOCIAL CARE,ALPHA HEALTH CARE LTD,19/12/2023,"3,721.16",6541-Nursing EMI,THIRD PARTY PAYMENTS,PRIVATE CONTRACTOR,REVENUE
Walsall Council,http://opendatacommunities.org/id/metropolitan-district-council/walsall ,WC157-692,31.12.2023,ADULT SOCIAL CARE,ALPHA HEALTH CARE LTD,19/12/2023,"3,800.00",6541-Residential,THIRD PARTY PAYMENTS,PRIVATE CONTRACTOR,REVENUE
Walsall Council,http://opendatacommunities.org/id/metropolitan-district-council/walsall ,WC157-693,31.12.2023,ADULT SOCIAL CARE,ALPHA HEALTH CARE LTD,19/12/2023,"4,027.32",6541-Residential EMI,THIRD PARTY PAYMENTS,PRIVATE CONTRACTOR,REVENUE
Walsall Council,http://opendatacommunities.org/id/metropolitan-district-council/walsall ,WC157-694,31.12.2023,ADULT SOCIAL CARE,ALPHA HEALTH CARE LTD,19/12/2023,"2,413.36",6541-Residential EMI,THIRD PARTY PAYMENTS,PRIVATE CONTRACTOR,REVENUE
Walsall Council,http://opendatacommunities.org/id/metropolitan-district-council/walsall ,WC157-695,31.12.2023,ADULT SOCIAL CARE,ALPHA HEALTH CARE LTD,19/12/2023,"5,000.00",6541-Nursing EMI,THIRD PARTY PAYMENTS,PRIVATE CONTRACTOR,REVENUE
Walsall Council,http://opendatacommunities.org/id/metropolitan-district-council/walsall ,WC157-696,31.12.2023,ADULT SOCIAL CARE,ALPHA HEALTH CARE LTD,19/12/2023,"4,100.00",6541-Residential,THIRD PARTY PAYMENTS,PRIVATE CONTRACTOR,REVENUE
Walsall Council,http://opendatacommunities.org/id/metropolitan-district-council/walsall ,WC157-697,31.12.2023,ADULT SOCIAL CARE,ALPHA HEALTH CARE LTD,19/12/2023,"4,200.00",6541-Nursing EMI,THIRD PARTY PAYMENTS,PRIVATE CONTRACTOR,REVENUE
Walsall Council,http://opendatacommunities.org/id/metropolitan-district-council/walsall ,WC157-698,31.12.2023,ADULT SOCIAL CARE,ALPHA HEALTH CARE LTD,19/12/2023,"7,123.08",6541-Residential,THIRD PARTY PAYMENTS,PRIVATE CONTRACTOR,REVENUE
Walsall Council,http://opendatacommunities.org/id/metropolitan-district-council/walsall ,WC157-699,31.12.2023,ADULT SOCIAL CARE,ALPHA HEALTH CARE LTD,19/12/2023,"2,520.00",6541-Nursing,THIRD PARTY PAYMENTS,PRIVATE CONTRACTOR,REVENUE
Walsall Council,http://opendatacommunities.org/id/metropolitan-district-council/walsall ,WC157-700,31.12.2023,ADULT SOCIAL CARE,ALPHA HEALTH CARE LTD,19/12/2023,"61,885.71",6541-Residential,THIRD PARTY PAYMENTS,PRIVATE CONTRACTOR,REVENUE
Walsall Council,http://opendatacommunities.org/id/metropolitan-district-council/walsall ,WC157-701,31.12.2023,ADULT SOCIAL CARE,ALPHA HEALTH CARE LTD,19/12/2023,"4,440.00",6541-Nursing EMI,THIRD PARTY PAYMENTS,PRIVATE CONTRACTOR,REVENUE
Walsall Council,http://opendatacommunities.org/id/metropolitan-district-council/walsall ,WC157-702,31.12.2023,ADULT SOCIAL CARE,ALPHA HEALTH CARE LTD,19/12/2023,"-11,377.27",6541-Residential EMI,THIRD PARTY PAYMENTS,PRIVATE CONTRACTOR,REVENUE
Walsall Council,http://opendatacommunities.org/id/metropolitan-district-council/walsall ,WC157-703,31.12.2023,ADULT SOCIAL CARE,ALPHA HEALTH CARE LTD,19/12/2023,"2,850.00",6541-Residential,THIRD PARTY PAYMENTS,PRIVATE CONTRACTOR,REVENUE
Walsall Council,http://opendatacommunities.org/id/metropolitan-district-council/walsall ,WC157-704,31.12.2023,ADULT SOCIAL CARE,ALPHA HEALTH CARE LTD,19/12/2023,"7,980.00",6541-Nursing EMI,THIRD PARTY PAYMENTS,PRIVATE CONTRACTOR,REVENUE
Walsall Council,http://opendatacommunities.org/id/metropolitan-district-council/walsall ,WC157-705,31.12.2023,ADULT SOCIAL CARE,ALPHA HEALTH CARE LTD,19/12/2023,"2,714.29",6541-Residential EMI,THIRD PARTY PAYMENTS,PRIVATE CONTRACTOR,REVENUE
Walsall Council,http://opendatacommunities.org/id/metropolitan-district-council/walsall ,WC157-706,31.12.2023,ADULT SOCIAL CARE,ALPHA HEALTH CARE LTD,19/12/2023,"6,946.43",6541-Nursing EMI,THIRD PARTY PAYMENTS,PRIVATE CONTRACTOR,REVENUE
Walsall Council,http://opendatacommunities.org/id/metropolitan-district-council/walsall ,WC157-707,31.12.2023,ADULT SOCIAL CARE,ALPHA HEALTH CARE LTD,19/12/2023,"1,034.62",6541-Nursing EMI,THIRD PARTY PAYMENTS,PRIVATE CONTRACTOR,REVENUE
Walsall Council,http://opendatacommunities.org/id/metropolitan-district-council/walsall ,WC157-708,31.12.2023,ADULT SOCIAL CARE,ALPHA HEALTH CARE LTD,19/12/2023,"5,130.00",6541-Residential,THIRD PARTY PAYMENTS,PRIVATE CONTRACTOR,REVENUE
Walsall Council,http://opendatacommunities.org/id/metropolitan-district-council/walsall ,WC157-709,31.12.2023,ADULT SOCIAL CARE,ALPHA HEALTH CARE LTD,19/12/2023,"3,826.79",6541-Nursing EMI,THIRD PARTY PAYMENTS,PRIVATE CONTRACTOR,REVENUE
Walsall Council,http://opendatacommunities.org/id/metropolitan-district-council/walsall ,WC157-710,31.12.2023,CHILDRENS,ALPHA TRAINING ACADEMY UK LTD,04/12/2023,"5,255.00",1187-Materials,SUPPLIES & SERVICES,EQUIPMENT FURNITURE & MATERIALS,REVENUE
Walsall Council,http://opendatacommunities.org/id/metropolitan-district-council/walsall ,WC157-711,31.12.2023,CHILDRENS,ALPHA TRAINING ACADEMY UK LTD,06/12/2023,"32,333.33",1220-Top Up Funding -Grants to Schools,SUPPLIES & SERVICES,GRANTS (EXP) & SUBSCRIPTIONS,REVENUE
Walsall Council,http://opendatacommunities.org/id/metropolitan-district-council/walsall ,WC157-712,31.12.2023,CHILDRENS,ALPHABIOLABS,06/12/2023,385.00,6223-Professional Fees & Services,SUPPLIES & SERVICES,SERVICES,REVENUE
Walsall Council,http://opendatacommunities.org/id/metropolitan-district-council/walsall ,WC157-713,31.12.2023,CHILDRENS,ALPHABIOLABS,05/12/2023,365.00,6222-Professional Fees & Services,SUPPLIES & SERVICES,SERVICES,REVENUE
Walsall Council,http://opendatacommunities.org/id/metropolitan-district-council/walsall ,WC157-714,31.12.2023,CHILDRENS,ALPHABIOLABS,15/12/2023,426.95,6220-School Only Payments - Catering,THIRD PARTY PAYMENTS,INDEPENDENT UNIT WITHIN COUNCIL,REVENUE
Walsall Council,http://opendatacommunities.org/id/metropolitan-district-council/walsall ,WC157-715,31.12.2023,ADULT SOCIAL CARE,REDACTED,07/12/2023,885.40,6541-Direct Payment,THIRD PARTY PAYMENTS,PRIVATE CONTRACTOR,REVENUE
Walsall Council,http://opendatacommunities.org/id/metropolitan-district-council/walsall ,WC157-716,31.12.2023,CHILDRENS,AMAH NURSERIES LIMITED T/A BANANA MOON WALSALL,01/12/2023,"4,731.00",1265-Early Years Supplementary Grant Expenditure,TRANSFER PAYMENTS,SCHOOLCHILDREN/STUDENTS,REVENUE
Walsall Council,http://opendatacommunities.org/id/metropolitan-district-council/walsall ,WC157-717,31.12.2023,CHILDRENS,AMAH NURSERIES LIMITED T/A BANANA MOON WALSALL,01/12/2023,"1,793.77",1265-Early Years Supplementary Grant Expenditure,TRANSFER PAYMENTS,SCHOOLCHILDREN/STUDENTS,REVENUE
Walsall Council,http://opendatacommunities.org/id/metropolitan-district-council/walsall ,WC157-718,31.12.2023,ADULT SOCIAL CARE,REDACTED,14/12/2023,"1,438.96",6541-Shared Lives,THIRD PARTY PAYMENTS,PRIVATE CONTRACTOR,REVENUE
Walsall Council,http://opendatacommunities.org/id/metropolitan-district-council/walsall ,WC157-719,31.12.2023,CHILDRENS,LITTLE BLOSSOMS CHILDMINDING,19/12/2023,"1,251.50",6223-Creche Facilities,SUPPLIES & SERVICES,SERVICES,REVENUE
Walsall Council,http://opendatacommunities.org/id/metropolitan-district-council/walsall ,WC157-720,31.12.2023,CHILDRENS,AMANS TRAVEL LTD,04/12/2023,"2,018.25",6241-Hire of Vehicle with Driver,TRANSPORT,DIRECT TRANSPORT COSTS,REVENUE
Walsall Council,http://opendatacommunities.org/id/metropolitan-district-council/walsall ,WC157-721,31.12.2023,CHILDRENS,AMANS TRAVEL LTD,04/12/2023,"4,550.00",6241-Hire of Vehicle with Driver,TRANSPORT,DIRECT TRANSPORT COSTS,REVENUE
Walsall Council,http://opendatacommunities.org/id/metropolitan-district-council/walsall ,WC157-722,31.12.2023,CHILDRENS,AMANS TRAVEL LTD,04/12/2023,"3,220.50",6241-Hire of Vehicle with Driver,TRANSPORT,DIRECT TRANSPORT COSTS,REVENUE
Walsall Council,http://opendatacommunities.org/id/metropolitan-district-council/walsall ,WC157-723,31.12.2023,CHILDRENS,AMANS TRAVEL LTD,04/12/2023,"2,840.50",6241-Hire of Vehicle with Driver,TRANSPORT,DIRECT TRANSPORT COSTS,REVENUE
Walsall Council,http://opendatacommunities.org/id/metropolitan-district-council/walsall ,WC157-724,31.12.2023,CHILDRENS,AMANS TRAVEL LTD,04/12/2023,"2,840.50",6241-Hire of Vehicle with Driver,TRANSPORT,DIRECT TRANSPORT COSTS,REVENUE
Walsall Council,http://opendatacommunities.org/id/metropolitan-district-council/walsall ,WC157-725,31.12.2023,ADULT SOCIAL CARE,REDACTED,07/12/2023,"2,531.05",6541-Direct Payment,THIRD PARTY PAYMENTS,PRIVATE CONTRACTOR,REVENUE
Walsall Council,http://opendatacommunities.org/id/metropolitan-district-council/walsall ,WC157-726,31.12.2023,RESOURCES AND TRANSFORMATION,AMBUR RADIO,11/12/2023,"12,430.31",6312-Grants to Other Orgs,SUPPLIES & SERVICES,GRANTS (EXP) & SUBSCRIPTIONS,REVENUE
Walsall Council,http://opendatacommunities.org/id/metropolitan-district-council/walsall ,WC157-727,31.12.2023,"ECONOMY, ENVIRONMENT & COMMUNITIES",AMEY LG LIMITED,13/12/2023,"6,429.18",6414-Repair & Maintenance of Furniture & Equipment,SUPPLIES & SERVICES,EQUIPMENT FURNITURE & MATERIALS,REVENUE
Walsall Council,http://opendatacommunities.org/id/metropolitan-district-council/walsall ,WC157-728,31.12.2023,"ECONOMY, ENVIRONMENT & COMMUNITIES",AMEY LG LIMITED,13/12/2023,"2,191.77",6411-Professional Services-Priv Contractor & Other Agencies,THIRD PARTY PAYMENTS,PRIVATE CONTRACTOR,REVENUE
Walsall Council,http://opendatacommunities.org/id/metropolitan-district-council/walsall ,WC157-729,31.12.2023,ECONOMY & ENVIRONMENT CAPITAL,AMEY LG LIMITED,15/12/2023,"2,586.13",7200-Site Works Contractors,CAPITAL,"NEW CONSTRUCTION,CONVERSION & RENOVATION",CAPITAL
Walsall Council,http://opendatacommunities.org/id/metropolitan-district-council/walsall ,WC157-730,31.12.2023,"ECONOMY, ENVIRONMENT & COMMUNITIES",AMEY LG LIMITED,21/12/2023,"2,751.25",6414-Repair & Maintenance of Furniture & Equipment,SUPPLIES & SERVICES,EQUIPMENT FURNITURE & MATERIALS,REVENUE
Walsall Council,http://opendatacommunities.org/id/metropolitan-district-council/walsall ,WC157-731,31.12.2023,ECONOMY & ENVIRONMENT CAPITAL,AMEY OW LTD,13/12/2023,"5,592.08",7200-Site Works Contractors,CAPITAL,"NEW CONSTRUCTION,CONVERSION & RENOVATION",CAPITAL
Walsall Council,http://opendatacommunities.org/id/metropolitan-district-council/walsall ,WC157-732,31.12.2023,ECONOMY & ENVIRONMENT CAPITAL,AMEY OW LTD,13/12/2023,"1,805.66",7200-Site Works Contractors,CAPITAL,"NEW CONSTRUCTION,CONVERSION & RENOVATION",CAPITAL
Walsall Council,http://opendatacommunities.org/id/metropolitan-district-council/walsall ,WC157-733,31.12.2023,ECONOMY & ENVIRONMENT CAPITAL,AMEY OW LTD,15/12/2023,737.14,7200-Project Fees,CAPITAL,"NEW CONSTRUCTION,CONVERSION & RENOVATION",CAPITAL
Walsall Council,http://opendatacommunities.org/id/metropolitan-district-council/walsall ,WC157-734,31.12.2023,CHILDRENS,AMG NURSING CARE SERVICES,06/12/2023,535.30,6220-Professional Fees & Services,SUPPLIES & SERVICES,SERVICES,REVENUE
Walsall Council,http://opendatacommunities.org/id/metropolitan-district-council/walsall ,WC157-735,31.12.2023,CHILDRENS,AMG NURSING CARE SERVICES,06/12/2023,"1,346.80",6220-Professional Fees & Services,SUPPLIES & SERVICES,SERVICES,REVENUE
Walsall Council,http://opendatacommunities.org/id/metropolitan-district-council/walsall ,WC157-736,31.12.2023,CHILDRENS,AMG NURSING CARE SERVICES,19/12/2023,428.24,6220-Professional Fees & Services,SUPPLIES & SERVICES,SERVICES,REVENUE
Walsall Council,http://opendatacommunities.org/id/metropolitan-district-council/walsall ,WC157-737,31.12.2023,CHILDRENS,AMG NURSING CARE SERVICES,18/12/2023,"1,163.17",6220-Professional Fees & Services,SUPPLIES & SERVICES,SERVICES,REVENUE
Walsall Council,http://opendatacommunities.org/id/metropolitan-district-council/walsall ,WC157-738,31.12.2023,CHILDRENS,AMG NURSING CARE SERVICES,18/12/2023,469.20,6220-Professional Fees & Services,SUPPLIES & SERVICES,SERVICES,REVENUE
Walsall Council,http://opendatacommunities.org/id/metropolitan-district-council/walsall ,WC157-739,31.12.2023,CHILDRENS,AMG NURSING CARE SERVICES,18/12/2023,"1,359.64",6220-Professional Fees & Services,SUPPLIES & SERVICES,SERVICES,REVENUE
Walsall Council,http://opendatacommunities.org/id/metropolitan-district-council/walsall ,WC157-740,31.12.2023,CHILDRENS,AMG NURSING CARE SERVICES,18/12/2023,507.50,6220-Professional Fees & Services,SUPPLIES & SERVICES,SERVICES,REVENUE
Walsall Council,http://opendatacommunities.org/id/metropolitan-district-council/walsall ,WC157-741,31.12.2023,CHILDRENS,AMG NURSING CARE SERVICES,22/12/2023,535.30,6220-Professional Fees & Services,SUPPLIES & SERVICES,SERVICES,REVENUE
Walsall Council,http://opendatacommunities.org/id/metropolitan-district-council/walsall ,WC157-742,31.12.2023,CHILDRENS,AMG NURSING CARE SERVICES,28/12/2023,"1,477.15",6220-Professional Fees & Services,SUPPLIES & SERVICES,SERVICES,REVENUE
Walsall Council,http://opendatacommunities.org/id/metropolitan-district-council/walsall ,WC157-743,31.12.2023,CHILDRENS,AMG NURSING CARE SERVICES,28/12/2023,545.80,6220-Professional Fees & Services,SUPPLIES & SERVICES,SERVICES,REVENUE
Walsall Council,http://opendatacommunities.org/id/metropolitan-district-council/walsall ,WC157-744,31.12.2023,CHILDRENS,AMMA CHILDCARE SERVICES LTD,22/12/2023,"24,760.00",6223-External Residential Care-Oth Agency Provision,THIRD PARTY PAYMENTS,PRIVATE CONTRACTOR,REVENUE
Walsall Council,http://opendatacommunities.org/id/metropolitan-district-council/walsall ,WC157-745,31.12.2023,CHILDRENS,REDACTED,14/12/2023,648.57,6223-Special Guardianship Orders,TRANSFER PAYMENTS,CHILDREN SOCIAL SERVICES CLIENT,REVENUE
Walsall Council,http://opendatacommunities.org/id/metropolitan-district-council/walsall ,WC157-746,31.12.2023,CHILDRENS,REDACTED,14/12/2023,374.00,6223-Special Guardianship Orders,TRANSFER PAYMENTS,CHILDREN SOCIAL SERVICES CLIENT,REVENUE
Walsall Council,http://opendatacommunities.org/id/metropolitan-district-council/walsall ,WC157-747,31.12.2023,ADULT SOCIAL CARE,ANCHOR HANOVER GROUP - BLOOMFIELD COURT,19/12/2023,"2,413.36",6541-Residential EMI,THIRD PARTY PAYMENTS,PRIVATE CONTRACTOR,REVENUE
Walsall Council,http://opendatacommunities.org/id/metropolitan-district-council/walsall ,WC157-748,31.12.2023,ADULT SOCIAL CARE,ANCHOR HANOVER GROUP - BLOOMFIELD COURT,19/12/2023,"2,413.36",6541-Residential EMI,THIRD PARTY PAYMENTS,PRIVATE CONTRACTOR,REVENUE
Walsall Council,http://opendatacommunities.org/id/metropolitan-district-council/walsall ,WC157-749,31.12.2023,ADULT SOCIAL CARE,ANCHOR HANOVER GROUP - HARDEN HALL CARE HOME,14/12/2023,"2,773.60",6541-Residential EMI,THIRD PARTY PAYMENTS,PRIVATE CONTRACTOR,REVENUE
Walsall Council,http://opendatacommunities.org/id/metropolitan-district-council/walsall ,WC157-750,31.12.2023,ADULT SOCIAL CARE,ANCHOR HANOVER GROUP - HARDEN HALL CARE HOME,19/12/2023,"2,413.36",6541-Residential EMI,THIRD PARTY PAYMENTS,PRIVATE CONTRACTOR,REVENUE
Walsall Council,http://opendatacommunities.org/id/metropolitan-district-council/walsall ,WC157-751,31.12.2023,ADULT SOCIAL CARE,ANCHOR HANOVER GROUP - HARDEN HALL CARE HOME,19/12/2023,"2,413.36",6541-Residential EMI,THIRD PARTY PAYMENTS,PRIVATE CONTRACTOR,REVENUE
Walsall Council,http://opendatacommunities.org/id/metropolitan-district-council/walsall ,WC157-752,31.12.2023,ADULT SOCIAL CARE,ANCHOR HANOVER GROUP - HARDEN HALL CARE HOME,19/12/2023,"2,413.36",6541-Residential EMI,THIRD PARTY PAYMENTS,PRIVATE CONTRACTOR,REVENUE
Walsall Council,http://opendatacommunities.org/id/metropolitan-district-council/walsall ,WC157-753,31.12.2023,ADULT SOCIAL CARE,ANCHOR HANOVER GROUP - HARDEN HALL CARE HOME,19/12/2023,"2,413.36",6541-Residential EMI,THIRD PARTY PAYMENTS,PRIVATE CONTRACTOR,REVENUE
Walsall Council,http://opendatacommunities.org/id/metropolitan-district-council/walsall ,WC157-754,31.12.2023,ADULT SOCIAL CARE,ANCHOR HANOVER GROUP - HARDEN HALL CARE HOME,19/12/2023,"2,413.36",6541-Residential EMI,THIRD PARTY PAYMENTS,PRIVATE CONTRACTOR,REVENUE
Walsall Council,http://opendatacommunities.org/id/metropolitan-district-council/walsall ,WC157-755,31.12.2023,ADULT SOCIAL CARE,ANCHOR HANOVER GROUP - HARDEN HALL CARE HOME,19/12/2023,"2,137.32",6541-Residential,THIRD PARTY PAYMENTS,PRIVATE CONTRACTOR,REVENUE
Walsall Council,http://opendatacommunities.org/id/metropolitan-district-council/walsall ,WC157-756,31.12.2023,ADULT SOCIAL CARE,ANCHOR HANOVER GROUP - HARDEN HALL CARE HOME,19/12/2023,"2,773.36",6541-Residential EMI,THIRD PARTY PAYMENTS,PRIVATE CONTRACTOR,REVENUE
Walsall Council,http://opendatacommunities.org/id/metropolitan-district-council/walsall ,WC157-757,31.12.2023,ADULT SOCIAL CARE,ANCHOR HANOVER GROUP - HARDEN HALL CARE HOME,19/12/2023,"2,693.36",6541-Residential EMI,THIRD PARTY PAYMENTS,PRIVATE CONTRACTOR,REVENUE
Walsall Council,http://opendatacommunities.org/id/metropolitan-district-council/walsall ,WC157-758,31.12.2023,ADULT SOCIAL CARE,ANCHOR HANOVER GROUP - HARDEN HALL CARE HOME,19/12/2023,"2,413.36",6541-Residential EMI,THIRD PARTY PAYMENTS,PRIVATE CONTRACTOR,REVENUE
Walsall Council,http://opendatacommunities.org/id/metropolitan-district-council/walsall ,WC157-759,31.12.2023,ADULT SOCIAL CARE,ANCHOR HANOVER GROUP - HARDEN HALL CARE HOME,19/12/2023,"2,413.36",6541-Residential EMI,THIRD PARTY PAYMENTS,PRIVATE CONTRACTOR,REVENUE
Walsall Council,http://opendatacommunities.org/id/metropolitan-district-council/walsall ,WC157-760,31.12.2023,ADULT SOCIAL CARE,ANCHOR HANOVER GROUP - HARDEN HALL CARE HOME,19/12/2023,"2,773.36",6541-Residential EMI,THIRD PARTY PAYMENTS,PRIVATE CONTRACTOR,REVENUE
Walsall Council,http://opendatacommunities.org/id/metropolitan-district-council/walsall ,WC157-761,31.12.2023,ADULT SOCIAL CARE,ANCHOR HANOVER GROUP - HARDEN HALL CARE HOME,19/12/2023,"2,773.36",6541-Residential EMI,THIRD PARTY PAYMENTS,PRIVATE CONTRACTOR,REVENUE
Walsall Council,http://opendatacommunities.org/id/metropolitan-district-council/walsall ,WC157-762,31.12.2023,ADULT SOCIAL CARE,ANCHOR HANOVER GROUP - HARDEN HALL CARE HOME,19/12/2023,"2,773.36",6541-Residential EMI,THIRD PARTY PAYMENTS,PRIVATE CONTRACTOR,REVENUE
Walsall Council,http://opendatacommunities.org/id/metropolitan-district-council/walsall ,WC157-763,31.12.2023,ADULT SOCIAL CARE,ANCHOR HANOVER GROUP - HARDEN HALL CARE HOME,19/12/2023,"2,773.36",6541-Residential EMI,THIRD PARTY PAYMENTS,PRIVATE CONTRACTOR,REVENUE
Walsall Council,http://opendatacommunities.org/id/metropolitan-district-council/walsall ,WC157-764,31.12.2023,ADULT SOCIAL CARE,ANCHOR HANOVER GROUP - HARDEN HALL CARE HOME,19/12/2023,"2,413.36",6541-Residential EMI,THIRD PARTY PAYMENTS,PRIVATE CONTRACTOR,REVENUE
Walsall Council,http://opendatacommunities.org/id/metropolitan-district-council/walsall ,WC157-765,31.12.2023,ADULT SOCIAL CARE,ANCHOR HANOVER GROUP - HARDEN HALL CARE HOME,19/12/2023,"2,413.36",6541-Residential EMI,THIRD PARTY PAYMENTS,PRIVATE CONTRACTOR,REVENUE
Walsall Council,http://opendatacommunities.org/id/metropolitan-district-council/walsall ,WC157-766,31.12.2023,ADULT SOCIAL CARE,ANCHOR HANOVER GROUP - HARDEN HALL CARE HOME,19/12/2023,"2,773.36",6541-Residential EMI,THIRD PARTY PAYMENTS,PRIVATE CONTRACTOR,REVENUE
Walsall Council,http://opendatacommunities.org/id/metropolitan-district-council/walsall ,WC157-767,31.12.2023,ADULT SOCIAL CARE,ANCHOR HANOVER GROUP - HARDEN HALL CARE HOME,19/12/2023,"2,773.36",6541-Residential EMI,THIRD PARTY PAYMENTS,PRIVATE CONTRACTOR,REVENUE
Walsall Council,http://opendatacommunities.org/id/metropolitan-district-council/walsall ,WC157-768,31.12.2023,ADULT SOCIAL CARE,ANCHOR HANOVER GROUP - HARDEN HALL CARE HOME,19/12/2023,"2,773.36",6541-Residential EMI,THIRD PARTY PAYMENTS,PRIVATE CONTRACTOR,REVENUE
Walsall Council,http://opendatacommunities.org/id/metropolitan-district-council/walsall ,WC157-769,31.12.2023,ADULT SOCIAL CARE,ANCHOR HANOVER GROUP - HARDEN HALL CARE HOME,19/12/2023,"8,661.36",6541-Residential EMI,THIRD PARTY PAYMENTS,PRIVATE CONTRACTOR,REVENUE
Walsall Council,http://opendatacommunities.org/id/metropolitan-district-council/walsall ,WC157-770,31.12.2023,ADULT SOCIAL CARE,ANCHOR HANOVER GROUP - HARDEN HALL CARE HOME,19/12/2023,"2,497.32",6541-Residential,THIRD PARTY PAYMENTS,PRIVATE CONTRACTOR,REVENUE
Walsall Council,http://opendatacommunities.org/id/metropolitan-district-council/walsall ,WC157-771,31.12.2023,ADULT SOCIAL CARE,ANCHOR HANOVER GROUP - HARDEN HALL CARE HOME,19/12/2023,"2,773.36",6541-Residential EMI,THIRD PARTY PAYMENTS,PRIVATE CONTRACTOR,REVENUE
Walsall Council,http://opendatacommunities.org/id/metropolitan-district-council/walsall ,WC157-772,31.12.2023,ADULT SOCIAL CARE,ANCHOR HANOVER GROUP - HARDEN HALL CARE HOME,19/12/2023,"2,773.36",6541-Residential EMI,THIRD PARTY PAYMENTS,PRIVATE CONTRACTOR,REVENUE
Walsall Council,http://opendatacommunities.org/id/metropolitan-district-council/walsall ,WC157-773,31.12.2023,ADULT SOCIAL CARE,ANCHOR HANOVER GROUP - HARDEN HALL CARE HOME,19/12/2023,"2,773.36",6541-Residential EMI,THIRD PARTY PAYMENTS,PRIVATE CONTRACTOR,REVENUE
Walsall Council,http://opendatacommunities.org/id/metropolitan-district-council/walsall ,WC157-774,31.12.2023,ADULT SOCIAL CARE,ANCHOR HANOVER GROUP - HARDEN HALL CARE HOME,19/12/2023,"7,843.85",6541-Residential EMI,THIRD PARTY PAYMENTS,PRIVATE CONTRACTOR,REVENUE
Walsall Council,http://opendatacommunities.org/id/metropolitan-district-council/walsall ,WC157-775,31.12.2023,ADULT SOCIAL CARE,ANCHOR HANOVER GROUP - HARDEN HALL CARE HOME,19/12/2023,"-2,900.65",6541-Residential,THIRD PARTY PAYMENTS,PRIVATE CONTRACTOR,REVENUE
Walsall Council,http://opendatacommunities.org/id/metropolitan-district-council/walsall ,WC157-776,31.12.2023,ADULT SOCIAL CARE,ANCHOR HANOVER GROUP - HARDEN HALL CARE HOME,19/12/2023,"2,137.32",6541-Residential,THIRD PARTY PAYMENTS,PRIVATE CONTRACTOR,REVENUE
Walsall Council,http://opendatacommunities.org/id/metropolitan-district-council/walsall ,WC157-777,31.12.2023,ADULT SOCIAL CARE,ANCHOR HANOVER GROUP - HARDEN HALL CARE HOME,19/12/2023,"2,592.00",6541-Residential EMI,THIRD PARTY PAYMENTS,PRIVATE CONTRACTOR,REVENUE
Walsall Council,http://opendatacommunities.org/id/metropolitan-district-council/walsall ,WC157-778,31.12.2023,ADULT SOCIAL CARE,ANCHOR HANOVER GROUP - HARDEN HALL CARE HOME,19/12/2023,891.43,6541-Residential EMI,THIRD PARTY PAYMENTS,PRIVATE CONTRACTOR,REVENUE
Walsall Council,http://opendatacommunities.org/id/metropolitan-district-council/walsall ,WC157-779,31.12.2023,ADULT SOCIAL CARE,ANCHOR HANOVER GROUP - HARDEN HALL CARE HOME,19/12/2023,"2,497.32",6541-Residential,THIRD PARTY PAYMENTS,PRIVATE CONTRACTOR,REVENUE
Walsall Council,http://opendatacommunities.org/id/metropolitan-district-council/walsall ,WC157-780,31.12.2023,CHILDRENS,REDACTED,14/12/2023,355.56,6223-Special Guardianship Orders,TRANSFER PAYMENTS,CHILDREN SOCIAL SERVICES CLIENT,REVENUE
Walsall Council,http://opendatacommunities.org/id/metropolitan-district-council/walsall ,WC157-781,31.12.2023,ADULT SOCIAL CARE,REDACTED,07/12/2023,954.75,6541-Direct Payment,THIRD PARTY PAYMENTS,PRIVATE CONTRACTOR,REVENUE
Walsall Council,http://opendatacommunities.org/id/metropolitan-district-council/walsall ,WC157-782,31.12.2023,ADULT SOCIAL CARE,REDACTED,07/12/2023,"3,915.00",6541-Direct Payment,THIRD PARTY PAYMENTS,PRIVATE CONTRACTOR,REVENUE
Walsall Council,http://opendatacommunities.org/id/metropolitan-district-council/walsall ,WC157-783,31.12.2023,CHILDRENS CAPITAL,ANDREWS ELECTRICAL LTD,12/12/2023,668.00,7150-Site Works Contractors,CAPITAL,"NEW CONSTRUCTION,CONVERSION & RENOVATION",CAPITAL
Walsall Council,http://opendatacommunities.org/id/metropolitan-district-council/walsall ,WC157-784,31.12.2023,CHILDRENS CAPITAL,ANDREWS ELECTRICAL LTD,08/12/2023,"19,691.16",7155-Purchase of Furniture & Equipment,CAPITAL,"VEHICLES,PLANT,EQUIPMENT & MACHINERY",CAPITAL
Walsall Council,http://opendatacommunities.org/id/metropolitan-district-council/walsall ,WC157-785,31.12.2023,CHILDRENS CAPITAL,ANDREWS ELECTRICAL LTD,01/12/2023,"15,577.00",7155-Site Works Contractors,CAPITAL,"NEW CONSTRUCTION,CONVERSION & RENOVATION",CAPITAL
Walsall Council,http://opendatacommunities.org/id/metropolitan-district-council/walsall ,WC157-786,31.12.2023,CHILDRENS CAPITAL,ANDREWS ELECTRICAL LTD,08/12/2023,"1,655.00",7155-Purchase of Furniture & Equipment,CAPITAL,"VEHICLES,PLANT,EQUIPMENT & MACHINERY",CAPITAL
Walsall Council,http://opendatacommunities.org/id/metropolitan-district-council/walsall ,WC157-787,31.12.2023,CHILDRENS CAPITAL,ANDREWS ELECTRICAL LTD,21/12/2023,"1,988.00",7150-Site Works Contractors,CAPITAL,"NEW CONSTRUCTION,CONVERSION & RENOVATION",CAPITAL
Walsall Council,http://opendatacommunities.org/id/metropolitan-district-council/walsall ,WC157-788,31.12.2023,CHILDRENS,REDACTED,14/12/2023,401.32,6223-Special Guardianship Orders,TRANSFER PAYMENTS,CHILDREN SOCIAL SERVICES CLIENT,REVENUE
Walsall Council,http://opendatacommunities.org/id/metropolitan-district-council/walsall ,WC157-789,31.12.2023,ADULT SOCIAL CARE,REDACTED,07/12/2023,"2,338.20",6541-Direct Payment,THIRD PARTY PAYMENTS,PRIVATE CONTRACTOR,REVENUE
Walsall Council,http://opendatacommunities.org/id/metropolitan-district-council/walsall ,WC157-790,31.12.2023,CHILDRENS,REDACTED,14/12/2023,352.00,6223-Special Guardianship Orders,TRANSFER PAYMENTS,CHILDREN SOCIAL SERVICES CLIENT,REVENUE
Walsall Council,http://opendatacommunities.org/id/metropolitan-district-council/walsall ,WC157-791,31.12.2023,CHILDRENS,ANGELS AND BUTTERFLIES CHILDMINDING,01/12/2023,315.40,1265-Early Years Supplementary Grant Expenditure,TRANSFER PAYMENTS,SCHOOLCHILDREN/STUDENTS,REVENUE
Walsall Council,http://opendatacommunities.org/id/metropolitan-district-council/walsall ,WC157-792,31.12.2023,CHILDRENS,ANGELS AND BUTTERFLIES CHILDMINDING,01/12/2023,471.20,1265-Early Years Supplementary Grant Expenditure,TRANSFER PAYMENTS,SCHOOLCHILDREN/STUDENTS,REVENUE
Walsall Council,http://opendatacommunities.org/id/metropolitan-district-council/walsall ,WC157-793,31.12.2023,CHILDRENS,ANIMALS IN HANDS,22/12/2023,895.00,6211-Professional Fees & Services,SUPPLIES & SERVICES,SERVICES,REVENUE
Walsall Council,http://opendatacommunities.org/id/metropolitan-district-council/walsall ,WC157-794,31.12.2023,ADULT SOCIAL CARE,REDACTED,07/12/2023,"1,650.00",6541-Direct Payment,THIRD PARTY PAYMENTS,PRIVATE CONTRACTOR,REVENUE
Walsall Council,http://opendatacommunities.org/id/metropolitan-district-council/walsall ,WC157-795,31.12.2023,CHILDRENS,REDACTED,14/12/2023,417.96,6223-Residents Orders,TRANSFER PAYMENTS,CHILDREN SOCIAL SERVICES CLIENT,REVENUE
Walsall Council,http://opendatacommunities.org/id/metropolitan-district-council/walsall ,WC157-796,31.12.2023,CHILDRENS,REDACTED,14/12/2023,534.00,6223-Internal Foster Carers-Carer Fees,TRANSFER PAYMENTS,CHILDREN SOCIAL SERVICES CLIENT,REVENUE
Walsall Council,http://opendatacommunities.org/id/metropolitan-district-council/walsall ,WC157-797,31.12.2023,CHILDRENS,REDACTED,14/12/2023,756.00,6223-Foster Carers Maintenance Allowance,TRANSFER PAYMENTS,CHILDREN SOCIAL SERVICES CLIENT,REVENUE
Walsall Council,http://opendatacommunities.org/id/metropolitan-district-council/walsall ,WC157-798,31.12.2023,ADULT SOCIAL CARE,REDACTED,07/12/2023,"1,090.00",6541-Direct Payment,THIRD PARTY PAYMENTS,PRIVATE CONTRACTOR,REVENUE
Walsall Council,http://opendatacommunities.org/id/metropolitan-district-council/walsall ,WC157-799,31.12.2023,ADULT SOCIAL CARE,REDACTED,07/12/2023,-559.13,6541-Direct Payment,THIRD PARTY PAYMENTS,PRIVATE CONTRACTOR,REVENUE
Walsall Council,http://opendatacommunities.org/id/metropolitan-district-council/walsall ,WC157-800,31.12.2023,ADULT SOCIAL CARE,ANSON COURT RESIDENTIAL HOME,19/12/2023,"2,413.36",6541-Residential EMI,THIRD PARTY PAYMENTS,PRIVATE CONTRACTOR,REVENUE
Walsall Council,http://opendatacommunities.org/id/metropolitan-district-council/walsall ,WC157-801,31.12.2023,ADULT SOCIAL CARE,ANSON COURT RESIDENTIAL HOME,19/12/2023,517.15,6541-Residential EMI,THIRD PARTY PAYMENTS,PRIVATE CONTRACTOR,REVENUE
Walsall Council,http://opendatacommunities.org/id/metropolitan-district-council/walsall ,WC157-802,31.12.2023,ADULT SOCIAL CARE,ANSON COURT RESIDENTIAL HOME,19/12/2023,"2,413.36",6541-Residential EMI,THIRD PARTY PAYMENTS,PRIVATE CONTRACTOR,REVENUE
Walsall Council,http://opendatacommunities.org/id/metropolitan-district-council/walsall ,WC157-803,31.12.2023,ADULT SOCIAL CARE,ANSON COURT RESIDENTIAL HOME,19/12/2023,"2,257.32",6541-Residential,THIRD PARTY PAYMENTS,PRIVATE CONTRACTOR,REVENUE
Walsall Council,http://opendatacommunities.org/id/metropolitan-district-council/walsall ,WC157-804,31.12.2023,ADULT SOCIAL CARE,ANSON COURT RESIDENTIAL HOME,19/12/2023,"2,413.36",6541-Residential EMI,THIRD PARTY PAYMENTS,PRIVATE CONTRACTOR,REVENUE
